Workbook

Sheet Orçamento
O3: UNIDADE ESCOLAR | X3: CÓDIGO INEP
M4: =IF($M$7="MANUAL","DESPROTEJA A PLANILHA PARA FORMATAR","") ->  | O4: COORDENAÇÃO REGIONAL DE EDUCAÇÃO DE ITAPACI
AB5: DESONERADA | AC5: ONERADA | AD5: Δ%
A6: Nmax | O6: OBRA | S6: DATA | X6: CIDADE | AB6: 158681.54 | AC6: 159370.22 | AD6: =IFERROR(IF(AB6>AC6,ABS(AB6-AC6)/AB6,ABS(AC6-AB6)/AC6),"-") -> 0.004321259016 | AE6: =IF(AD6>5%,"Atentar quanto ao total para tabelas 'ONERADA' e 'DESONERADA'","") -> 
A7: =MAX($C$18:$C$284) -> 4 | O7: CONSTRUÇÃO | S7: 2020-07-07 | X7: ITAPACI
O9: CRE | R9: ENDEREÇO | S9: REFERÊNCIA AGETOP | X9: REFERÊNCIA SINAPI
O10: ITAPACI | R10: AVENIDA DONA LÚCIA LOURENÇONI, 156, CENTRO | S10: ABR/19 | T10: DESONERADA | X10: ABR/20 | Y10: DESONERADA
O12: ÁREA EXISTENTE (M²) | R12: ÁREA A CONSTRUIR (M²) | S12: ÁREA A DEMOLIR (M²) | X12: ÁREA TOTAL CONSTRUÍDA (M²)
R13: 100.68 | X13: 100.68
L15: FILTRO | O15: PLANILHA ORÇAMENTÁRIA
A16: Nível E | B16: Save Nivel | C16: Nível C | D16: Altura | E16: n1 | F16: n2 | G16: n3 | H16: n4 | I16: n5 | J16: Czero | K16: Cnível | L16: ↓ | M16: Nível | N16: Nível Corrigido | O16: ITEM | P16: TABELA | Q16: CODIGO | R16: DESCRIÇÃO DOS SERVIÇOS | S16: UNID | T16: QUANT | U16: REPET | V16: QUANT TOTAL | W16: MAT | X16: MO | Y16: T.SERVIÇO UNIT | Z16: VALOR TOTAL | AA16: OBSERVAÇÕES¹ | AB16: TROCAR PREÇO? | AC16: FONTE | AD16: CÓDIGO | AE16: DESCRIÇÃO DO SERVIÇO | AF16: UNID | AG16: MAT | AH16: MO
A17: =CHOOSE(1+LOG(1+2*(ORÇAMENTO.Nivel="Nível 1")+4*(ORÇAMENTO.Nivel="Nível 2")+8*(ORÇAMENTO.Nivel="Nível 3")+16*(ORÇAMENTO.Nivel="Nível 4")+32*(ORÇAMENTO.Nivel="Serviço"),2),0,1,2,3,4,"S") -> S | B17: =IF(OR(C17="s",C17=0),OFFSET(B17,-1,0),C17) -> Save Nivel | C17: =IF(OFFSET(C17,-1,0)="L",1,IF(OFFSET(C17,-1,0)=1,2,IF(OR(A17="s",A17=0),"S",IF(AND(OFFSET(C17,-1,0)=2,A17=4),3,IF(AND(OR(OFFSET(C17,-1,0)="s",OFFSET(C17,-1,0)=0),A17<>"s",A17>OFFSET(B17,-1,0)),OFFSET(B17,-1,0),A17))))) -> S | D17: =IF(OR(C17="S",C17=0),0,IF(ISERROR(K17),J17,SMALL(J17:K17,1))) -> 0 | E17: =IF($C17=1,OFFSET(E17,-1,0)+1,OFFSET(E17,-1,0)) -> n1 | F17: =IF($C17=1,0,IF($C17=2,OFFSET(F17,-1,0)+1,OFFSET(F17,-1,0))) -> n2 | G17: =IF(AND($C17<=2,$C17<>0),0,IF($C17=3,OFFSET(G17,-1,0)+1,OFFSET(G17,-1,0))) -> n3 | H17: =IF(AND($C17<=3,$C17<>0),0,IF($C17=4,OFFSET(H17,-1,0)+1,OFFSET(H17,-1,0))) -> n4 | I17: =IF(AND($C17<=4,$C17<>0),0,IF(AND($C17="S",$Y17>0),OFFSET(I17,-1,0)+1,OFFSET(I17,-1,0))) -> n5 | J17: =IF(OR($C17="S",$C17=0),0,MATCH(0,OFFSET($D17,1,$C17,ROW($C$284)-ROW($C17)),0)) -> 0 | K17: =IF(OR($C17="S",$C17=0),0,MATCH(OFFSET($D17,0,$C17)+1,OFFSET($D17,1,$C17,ROW($C$284)-ROW($C17)),0)) -> 0 | L17: =IF(OR(Y17>0,$C17=1),"F","") ->  | M17: Serviço | N17: =CHOOSE(1+LOG(1+2*(C17=1)+4*(C17=2)+8*(C17=3)+16*(C17=4)+32*(C17="S"),2),"","Nível 1","Nível 2","Nível 3","Nível 4","Serviço") -> Serviço | O17: - | P17: SINAPI | R17: (sem código) | S17: - | U17: REPET | V17: - | W17: 0 | X17: 0 | Y17: 0 | Z17: - | AC17: =IFERROR(VLOOKUP(Q17,INDIRECT("EQUIVALÊNCIAS"),4,FALSE),"") ->  | AD17: =IFERROR(VLOOKUP(Q17,INDIRECT("EQUIVALÊNCIAS"),5,FALSE),"") ->  | AE17: =IFERROR(IF(OR($C17=0,$C17=1,$C17=2,$C17=3,$C17=4),R17,VLOOKUP($AD17,INDIRECT($AC17),2,FALSE)),"(sem código)") -> (sem código) | AF17: =IFERROR(VLOOKUP(AD17,INDIRECT(AC17),3,FALSE()),"-") -> - | AG17: =IFERROR(VLOOKUP($AD17,INDIRECT($AC17),IF($T$10="DESONERADA",4,7),FALSE()),0) -> 0 | AH17: =IFERROR(VLOOKUP($AD17,INDIRECT($AC17),IF($T$10="DESONERADA",5,8),FALSE()),0) -> 0
A18: 0 | C18: L | D18: =COUNTA(OFFSET(D18,1,0):D$284) -> 265 | E18: =LEFT(O19,1)-1 -> 0 | L18: F | M18: LOTE | N18: LOTE | O18: CONSTRUÇÃO - COORDENAÇÃO REGIONAL DE EDUCAÇÃO DE ITAPACI | Z18: 0 | AB18: =O18 -> CONSTRUÇÃO - COORDENAÇÃO REGIONAL DE EDUCAÇÃO DE ITAPACI
A19: =CHOOSE(1+LOG(1+2*(ORÇAMENTO.Nivel="Nível 1")+4*(ORÇAMENTO.Nivel="Nível 2")+8*(ORÇAMENTO.Nivel="Nível 3")+16*(ORÇAMENTO.Nivel="Nível 4")+32*(ORÇAMENTO.Nivel="Serviço"),2),0,1,2,3,4,"S") -> 1 | B19: =IF(OR(C19="s",C19=0),OFFSET(B19,-1,0),C19) -> 1 | C19: =IF(OFFSET(C19,-1,0)="L",1,IF(OFFSET(C19,-1,0)=1,2,IF(OR(A19="s",A19=0),"S",IF(AND(OFFSET(C19,-1,0)=2,A19=4),3,IF(AND(OR(OFFSET(C19,-1,0)="s",OFFSET(C19,-1,0)=0),A19<>"s",A19>OFFSET(B19,-1,0)),OFFSET(B19,-1,0),A19))))) -> 1 | D19: =IF(OR(C19="S",C19=0),0,IF(ISERROR(K19),J19,SMALL(J19:K19,1))) -> 34 | E19: =IF($C19=1,OFFSET(E19,-1,0)+1,OFFSET(E19,-1,0)) -> 1 | F19: =IF($C19=1,0,IF($C19=2,OFFSET(F19,-1,0)+1,OFFSET(F19,-1,0))) -> 0 | G19: =IF(AND($C19<=2,$C19<>0),0,IF($C19=3,OFFSET(G19,-1,0)+1,OFFSET(G19,-1,0))) -> 0 | H19: =IF(AND($C19<=3,$C19<>0),0,IF($C19=4,OFFSET(H19,-1,0)+1,OFFSET(H19,-1,0))) -> 0 | I19: =IF(AND($C19<=4,$C19<>0),0,IF(AND($C19="S",$Y19>0),OFFSET(I19,-1,0)+1,OFFSET(I19,-1,0))) -> 0 | J19: =IF(OR($C19="S",$C19=0),0,MATCH(0,OFFSET($D19,1,$C19,ROW($C$284)-ROW($C19)),0)) -> 265 | K19: =IF(OR($C19="S",$C19=0),0,MATCH(OFFSET($D19,0,$C19)+1,OFFSET($D19,1,$C19,ROW($C$284)-ROW($C19)),0)) -> 34 | L19: =IF(OR(Y19>0,$C19=1),"F","") -> F | M19: Nível 1 | N19: =CHOOSE(1+LOG(1+2*(C19=1)+4*(C19=2)+8*(C19=3)+16*(C19=4)+32*(C19="S"),2),"","Nível 1","Nível 2","Nível 3","Nível 4","Serviço") -> Nível 1 | O19: 1. | P19: AGETOP | R19: 1 - IMPLANTAÇÃO BLOCO ADMINISTRATIVO | S19: UN | T19: 1 | U19: 1 | V19: 1 | Y19: 0 | Z19: 0 | AE19: =IFERROR(IF(OR($C19=0,$C19=1,$C19=2,$C19=3,$C19=4),R19,VLOOKUP($AD19,INDIRECT($AC19),2,FALSE)),"(sem código)") -> 1 - IMPLANTAÇÃO BLOCO ADMINISTRATIVO | AF19: =IFERROR(VLOOKUP(AD19,INDIRECT(AC19),3,FALSE()),"-") -> - | AG19: =IFERROR(VLOOKUP($AD19,INDIRECT($AC19),IF($T$10="DESONERADA",4,7),FALSE()),0) -> 0 | AH19: =IFERROR(VLOOKUP($AD19,INDIRECT($AC19),IF($T$10="DESONERADA",5,8),FALSE()),0) -> 0 | AJ19: RESPOSTA
A20: 2 | B20: 2 | C20: 2 | D20: 6 | E20: 1 | F20: 1 | G20: 0 | H20: 0 | I20: 0 | J20: 33 | K20: 6 | M20: Nível 2 | N20: Nível 2 | O20: - | P20: AGETOP | R20: SERVIÇOS PRELIMINARES | S20: - | U20: 1 | V20: - | Y20: 0 | Z20: 0 | AC20: =IFERROR(VLOOKUP(Q20,INDIRECT("EQUIVALÊNCIAS"),4,FALSE),"") ->  | AD20: =IFERROR(VLOOKUP(Q20,INDIRECT("EQUIVALÊNCIAS"),5,FALSE),"") ->  | AE20: SERVIÇOS PRELIMINARES | AF20: - | AG20: 0 | AH20: 0 | AJ20: SIM | AK20: NÃO
A21: S | B21: 2 | C21: S | D21: 0 | E21: 1 | F21: 1 | G21: 0 | H21: 0 | I21: 0 | J21: 0 | K21: 0 | M21: Serviço | N21: Serviço | O21: - | P21: AGETOP | Q21: 20121 | R21: DEM. MANUAL EM CONCR.SIMPLES C/TR.ATE CB.E CARGA (O.C.) | S21: m3 | T21: 6.76 | U21: 1 | V21: 6.76 | Y21: 0 | Z21: 0 | AE21: (sem código) | AF21: - | AG21: 0 | AH21: 0
A22: S | B22: 2 | C22: S | D22: 0 | E22: 1 | F22: 1 | G22: 0 | H22: 0 | I22: 0 | J22: 0 | K22: 0 | M22: Serviço | N22: Serviço | O22: - | P22: SINAPI | Q22: 97622 | R22: DEMOLIÇÃO DE ALVENARIA DE BLOCO FURADO, DE FORMA MANUAL, SEM REAPROVEITAMENTO. AF_12/2017 | S22: M3 | T22: 4.18 | U22: 1 | V22: 4.18 | Y22: 0 | Z22: 0 | AA22: Referência: AGETOP - 20118 | AB22: SIM | AE22: (sem código) | AF22: - | AG22: 0 | AH22: 0
A23: =CHOOSE(1+LOG(1+2*(ORÇAMENTO.Nivel="Nível 1")+4*(ORÇAMENTO.Nivel="Nível 2")+8*(ORÇAMENTO.Nivel="Nível 3")+16*(ORÇAMENTO.Nivel="Nível 4")+32*(ORÇAMENTO.Nivel="Serviço"),2),0,1,2,3,4,"S") -> S | B23: =IF(OR(C23="s",C23=0),OFFSET(B23,-1,0),C23) -> 2 | C23: =IF(OFFSET(C23,-1,0)="L",1,IF(OFFSET(C23,-1,0)=1,2,IF(OR(A23="s",A23=0),"S",IF(AND(OFFSET(C23,-1,0)=2,A23=4),3,IF(AND(OR(OFFSET(C23,-1,0)="s",OFFSET(C23,-1,0)=0),A23<>"s",A23>OFFSET(B23,-1,0)),OFFSET(B23,-1,0),A23))))) -> S | D23: =IF(OR(C23="S",C23=0),0,IF(ISERROR(K23),J23,SMALL(J23:K23,1))) -> 0 | E23: =IF($C23=1,OFFSET(E23,-1,0)+1,OFFSET(E23,-1,0)) -> 1 | F23: =IF($C23=1,0,IF($C23=2,OFFSET(F23,-1,0)+1,OFFSET(F23,-1,0))) -> 1 | G23: =IF(AND($C23<=2,$C23<>0),0,IF($C23=3,OFFSET(G23,-1,0)+1,OFFSET(G23,-1,0))) -> 0 | H23: =IF(AND($C23<=3,$C23<>0),0,IF($C23=4,OFFSET(H23,-1,0)+1,OFFSET(H23,-1,0))) -> 0 | I23: =IF(AND($C23<=4,$C23<>0),0,IF(AND($C23="S",$Y23>0),OFFSET(I23,-1,0)+1,OFFSET(I23,-1,0))) -> 0 | J23: =IF(OR($C23="S",$C23=0),0,MATCH(0,OFFSET($D23,1,$C23,ROW($C$284)-ROW($C23)),0)) -> 0 | K23: =IF(OR($C23="S",$C23=0),0,MATCH(OFFSET($D23,0,$C23)+1,OFFSET($D23,1,$C23,ROW($C$284)-ROW($C23)),0)) -> 0 | L23: =IF(OR(Y23>0,$C23=1),"F","") ->  | M23: Serviço | N23: =CHOOSE(1+LOG(1+2*(C23=1)+4*(C23=2)+8*(C23=3)+16*(C23=4)+32*(C23="S"),2),"","Nível 1","Nível 2","Nível 3","Nível 4","Serviço") -> Serviço | O23: - | P23: SINAPI | Q23: 98529 | R23: CORTE RASO E RECORTE DE ÁRVORE COM DIÂMETRO DE TRONCO MAIOR OU IGUAL A 0,20 M E MENOR QUE 0,40 M.AF_05/2018 | S23: UN | T23: 3 | U23: 1 | V23: 3 | Y23: 0 | Z23: 0 | AC23: =IFERROR(VLOOKUP(Q23,INDIRECT("EQUIVALÊNCIAS"),4,FALSE),"") ->  | AD23: =IFERROR(VLOOKUP(Q23,INDIRECT("EQUIVALÊNCIAS"),5,FALSE),"") ->  | AE23: =IFERROR(IF(OR($C23=0,$C23=1,$C23=2,$C23=3,$C23=4),R23,VLOOKUP($AD23,INDIRECT($AC23),2,FALSE)),"(sem código)") -> (sem código) | AF23: =IFERROR(VLOOKUP(AD23,INDIRECT(AC23),3,FALSE()),"-") -> - | AG23: =IFERROR(VLOOKUP($AD23,INDIRECT($AC23),IF($T$10="DESONERADA",4,7),FALSE()),0) -> 0 | AH23: =IFERROR(VLOOKUP($AD23,INDIRECT($AC23),IF($T$10="DESONERADA",5,8),FALSE()),0) -> 0
A24: =CHOOSE(1+LOG(1+2*(ORÇAMENTO.Nivel="Nível 1")+4*(ORÇAMENTO.Nivel="Nível 2")+8*(ORÇAMENTO.Nivel="Nível 3")+16*(ORÇAMENTO.Nivel="Nível 4")+32*(ORÇAMENTO.Nivel="Serviço"),2),0,1,2,3,4,"S") -> S | B24: =IF(OR(C24="s",C24=0),OFFSET(B24,-1,0),C24) -> 2 | C24: =IF(OFFSET(C24,-1,0)="L",1,IF(OFFSET(C24,-1,0)=1,2,IF(OR(A24="s",A24=0),"S",IF(AND(OFFSET(C24,-1,0)=2,A24=4),3,IF(AND(OR(OFFSET(C24,-1,0)="s",OFFSET(C24,-1,0)=0),A24<>"s",A24>OFFSET(B24,-1,0)),OFFSET(B24,-1,0),A24))))) -> S | D24: =IF(OR(C24="S",C24=0),0,IF(ISERROR(K24),J24,SMALL(J24:K24,1))) -> 0 | E24: =IF($C24=1,OFFSET(E24,-1,0)+1,OFFSET(E24,-1,0)) -> 1 | F24: =IF($C24=1,0,IF($C24=2,OFFSET(F24,-1,0)+1,OFFSET(F24,-1,0))) -> 1 | G24: =IF(AND($C24<=2,$C24<>0),0,IF($C24=3,OFFSET(G24,-1,0)+1,OFFSET(G24,-1,0))) -> 0 | H24: =IF(AND($C24<=3,$C24<>0),0,IF($C24=4,OFFSET(H24,-1,0)+1,OFFSET(H24,-1,0))) -> 0 | I24: =IF(AND($C24<=4,$C24<>0),0,IF(AND($C24="S",$Y24>0),OFFSET(I24,-1,0)+1,OFFSET(I24,-1,0))) -> 0 | J24: 0 | K24: 0 | L24: =IF(OR(Y24>0,$C24=1),"F","") ->  | M24: Serviço | N24: =CHOOSE(1+LOG(1+2*(C24=1)+4*(C24=2)+8*(C24=3)+16*(C24=4)+32*(C24="S"),2),"","Nível 1","Nível 2","Nível 3","Nível 4","Serviço") -> Serviço | O24: - | P24: SINAPI | Q24: 98533 | R24: PODA EM ALTURA DE ÁRVORE COM DIÂMETRO DE TRONCO MAIOR OU IGUAL A 0,20 M E MENOR QUE 0,40 M.AF_05/2018 | S24: UN | T24: 3 | U24: 1 | V24: 3 | Y24: 0 | Z24: 0 | AC24: =IFERROR(VLOOKUP(Q24,INDIRECT("EQUIVALÊNCIAS"),4,FALSE),"") ->  | AD24: =IFERROR(VLOOKUP(Q24,INDIRECT("EQUIVALÊNCIAS"),5,FALSE),"") ->  | AE24: =IFERROR(IF(OR($C24=0,$C24=1,$C24=2,$C24=3,$C24=4),R24,VLOOKUP($AD24,INDIRECT($AC24),2,FALSE)),"(sem código)") -> (sem código) | AF24: =IFERROR(VLOOKUP(AD24,INDIRECT(AC24),3,FALSE()),"-") -> - | AG24: =IFERROR(VLOOKUP($AD24,INDIRECT($AC24),IF($T$10="DESONERADA",4,7),FALSE()),0) -> 0 | AH24: =IFERROR(VLOOKUP($AD24,INDIRECT($AC24),IF($T$10="DESONERADA",5,8),FALSE()),0) -> 0
A25: =CHOOSE(1+LOG(1+2*(ORÇAMENTO.Nivel="Nível 1")+4*(ORÇAMENTO.Nivel="Nível 2")+8*(ORÇAMENTO.Nivel="Nível 3")+16*(ORÇAMENTO.Nivel="Nível 4")+32*(ORÇAMENTO.Nivel="Serviço"),2),0,1,2,3,4,"S") -> S | B25: =IF(OR(C25="s",C25=0),OFFSET(B25,-1,0),C25) -> 2 | C25: =IF(OFFSET(C25,-1,0)="L",1,IF(OFFSET(C25,-1,0)=1,2,IF(OR(A25="s",A25=0),"S",IF(AND(OFFSET(C25,-1,0)=2,A25=4),3,IF(AND(OR(OFFSET(C25,-1,0)="s",OFFSET(C25,-1,0)=0),A25<>"s",A25>OFFSET(B25,-1,0)),OFFSET(B25,-1,0),A25))))) -> S | D25: =IF(OR(C25="S",C25=0),0,IF(ISERROR(K25),J25,SMALL(J25:K25,1))) -> 0 | E25: =IF($C25=1,OFFSET(E25,-1,0)+1,OFFSET(E25,-1,0)) -> 1 | F25: =IF($C25=1,0,IF($C25=2,OFFSET(F25,-1,0)+1,OFFSET(F25,-1,0))) -> 1 | G25: =IF(AND($C25<=2,$C25<>0),0,IF($C25=3,OFFSET(G25,-1,0)+1,OFFSET(G25,-1,0))) -> 0 | H25: =IF(AND($C25<=3,$C25<>0),0,IF($C25=4,OFFSET(H25,-1,0)+1,OFFSET(H25,-1,0))) -> 0 | I25: =IF(AND($C25<=4,$C25<>0),0,IF(AND($C25="S",$Y25>0),OFFSET(I25,-1,0)+1,OFFSET(I25,-1,0))) -> 0 | J25: =IF(OR($C25="S",$C25=0),0,MATCH(0,OFFSET($D25,1,$C25,ROW($C$284)-ROW($C25)),0)) -> 0 | K25: =IF(OR($C25="S",$C25=0),0,MATCH(OFFSET($D25,0,$C25)+1,OFFSET($D25,1,$C25,ROW($C$284)-ROW($C25)),0)) -> 0 | L25: =IF(OR(Y25>0,$C25=1),"F","") ->  | M25: Serviço | N25: =CHOOSE(1+LOG(1+2*(C25=1)+4*(C25=2)+8*(C25=3)+16*(C25=4)+32*(C25="S"),2),"","Nível 1","Nível 2","Nível 3","Nível 4","Serviço") -> Serviço | O25: - | P25: SINAPI | Q25: 98526 | R25: REMOÇÃO DE RAÍZES REMANESCENTES DE TRONCO DE ÁRVORE COM DIÂMETRO MAIOR OU IGUAL A 0,20 M E MENOR QUE 0,40 M.AF_05/2018 | S25: UN | T25: 3 | U25: 1 | V25: 3 | Y25: 0 | Z25: 0 | AC25: =IFERROR(VLOOKUP(Q25,INDIRECT("EQUIVALÊNCIAS"),4,FALSE),"") ->  | AD25: =IFERROR(VLOOKUP(Q25,INDIRECT("EQUIVALÊNCIAS"),5,FALSE),"") ->  | AE25: =IFERROR(IF(OR($C25=0,$C25=1,$C25=2,$C25=3,$C25=4),R25,VLOOKUP($AD25,INDIRECT($AC25),2,FALSE)),"(sem código)") -> (sem código) | AF25: =IFERROR(VLOOKUP(AD25,INDIRECT(AC25),3,FALSE()),"-") -> - | AG25: =IFERROR(VLOOKUP($AD25,INDIRECT($AC25),IF($T$10="DESONERADA",4,7),FALSE()),0) -> 0 | AH25: =IFERROR(VLOOKUP($AD25,INDIRECT($AC25),IF($T$10="DESONERADA",5,8),FALSE()),0) -> 0
A26: 2 | B26: 2 | C26: 2 | D26: 3 | E26: 1 | F26: 2 | G26: 0 | H26: 0 | I26: 0 | J26: 27 | K26: 3 | M26: Nível 2 | N26: Nível 2 | O26: - | P26: AGETOP | R26: TRANSPORTES | S26: - | U26: 1 | V26: - | Y26: 0 | Z26: 0 | AE26: TRANSPORTES | AF26: - | AG26: 0 | AH26: 0
A27: S | B27: 2 | C27: S | D27: 0 | E27: 1 | F27: 2 | G27: 0 | H27: 0 | I27: 0 | J27: 0 | K27: 0 | M27: Serviço | N27: Serviço | O27: - | P27: SINAPI | Q27: 72900 | R27: TRANSPORTE DE ENTULHO COM CAMINHAO BASCULANTE 6 M3, RODOVIA PAVIMENTADA, DMT 0,5 A 1,0 KM | S27: M3 | T27: 11.39 | U27: 1 | V27: 11.39 | Y27: 0 | Z27: 0 | AB27: NÃO | AE27: (sem código) | AF27: - | AG27: 0 | AH27: 0
A28: S | B28: 2 | C28: S | D28: 0 | E28: 1 | F28: 2 | G28: 0 | H28: 0 | I28: 0 | J28: 0 | K28: 0 | M28: Serviço | N28: Serviço | O28: - | P28: SINAPI | Q28: 72897 | R28: CARGA MANUAL DE ENTULHO EM CAMINHAO BASCULANTE 6 M3 | S28: M3 | T28: 11.39 | U28: 1 | V28: 11.39 | Y28: 0 | Z28: 0 | AB28: NÃO | AE28: (sem código) | AF28: - | AG28: 0 | AH28: 0
A29: 2 | B29: 2 | C29: 2 | D29: 2 | E29: 1 | F29: 3 | G29: 0 | H29: 0 | I29: 0 | J29: 24 | K29: 2 | M29: Nível 2 | N29: Nível 2 | O29: - | P29: SINAPI | R29: DIVERSOS | S29: - | U29: 1 | V29: - | Y29: 0 | Z29: 0 | AE29: DIVERSOS | AF29: - | AG29: 0 | AH29: 0
A30: S | B30: 2 | C30: S | D30: 0 | E30: 1 | F30: 3 | G30: 0 | H30: 0 | I30: 0 | J30: 0 | K30: 0 | M30: Serviço | N30: Serviço | O30: - | P30: COMPOSIÇÃO | Q30: COMP 405_SEE | R30: SERRALHEIRO | S30: H | T30: 2 | U30: 1 | V30: 2 | Y30: 0 | Z30: 0 | AE30: (sem código) | AF30: - | AG30: 0 | AH30: 0
A31: 2 | B31: 2 | C31: 2 | D31: 2 | E31: 1 | F31: 4 | G31: 0 | H31: 0 | I31: 0 | J31: 22 | K31: 2 | M31: Nível 2 | N31: Nível 2 | O31: - | P31: SINAPI | R31: ALVENARIAS E DIVISÓRIAS | S31: - | U31: 1 | V31: - | Y31: 0 | Z31: 0 | AE31: ALVENARIAS E DIVISÓRIAS | AF31: - | AG31: 0 | AH31: 0
A32: S | B32: 2 | C32: S | D32: 0 | E32: 1 | F32: 4 | G32: 0 | H32: 0 | I32: 0 | J32: 0 | K32: 0 | M32: Serviço | N32: Serviço | O32: - | P32: AGETOP | Q32: 100201 | R32: ALVENARIA DE TIJOLO FURADO 1/2 VEZ - 9 x 19 x 19 - ARG. (1CALH:4ARML+100KG DE CI/M3) | S32: m2 | T32: 45 | U32: 1 | V32: 45 | Y32: 0 | Z32: 0 | AE32: (sem código) | AF32: - | AG32: 0 | AH32: 0
A33: 2 | B33: 2 | C33: 2 | D33: 3 | E33: 1 | F33: 5 | G33: 0 | H33: 0 | I33: 0 | J33: 20 | K33: 3 | M33: Nível 2 | N33: Nível 2 | O33: - | P33: SINAPI | R33: REVESTIMENTO DE PAREDE | S33: - | U33: 1 | V33: - | Y33: 0 | Z33: 0 | AE33: REVESTIMENTO DE PAREDE | AF33: - | AG33: 0 | AH33: 0
A34: S | B34: 2 | C34: S | D34: 0 | E34: 1 | F34: 5 | G34: 0 | H34: 0 | I34: 0 | J34: 0 | K34: 0 | M34: Serviço | N34: Serviço | O34: - | P34: AGETOP | Q34: 200101 | R34: CHAPISCO COMUM | S34: m2 | T34: 90 | U34: 1 | V34: 90 | Y34: 0 | Z34: 0 | AE34: (sem código) | AF34: - | AG34: 0 | AH34: 0
A35: S | B35: 2 | C35: S | D35: 0 | E35: 1 | F35: 5 | G35: 0 | H35: 0 | I35: 0 | J35: 0 | K35: 0 | M35: Serviço | N35: Serviço | O35: - | P35: AGETOP | Q35: 200499 | R35: REBOCO PAULISTA A-14 (1CALH:4ARMLC+100kgCI/M3) | S35: m2 | T35: 113.3 | U35: 1 | V35: 113.3 | Y35: 0 | Z35: 0 | AE35: (sem código) | AF35: - | AG35: 0 | AH35: 0
A36: 2 | B36: 2 | C36: 2 | D36: 7 | E36: 1 | F36: 6 | G36: 0 | H36: 0 | I36: 0 | J36: 17 | K36: 7 | M36: Nível 2 | N36: Nível 2 | O36: - | P36: SINAPI | R36: PINTURA | S36: - | U36: 1 | V36: - | Y36: 0 | Z36: 0 | AE36: PINTURA | AF36: - | AG36: 0 | AH36: 0
A37: 3 | B37: 3 | C37: 3 | D37: 2 | E37: 1 | F37: 6 | G37: 1 | H37: 0 | I37: 0 | J37: 6 | K37: 2 | M37: Nível 3 | N37: Nível 3 | O37: - | P37: SINAPI | R37: MURO | S37: - | U37: 1 | V37: - | Y37: 0 | Z37: 0 | AE37: MURO | AF37: - | AG37: 0 | AH37: 0
A38: S | B38: 3 | C38: S | D38: 0 | E38: 1 | F38: 6 | G38: 1 | H38: 0 | I38: 0 | J38: 0 | K38: 0 | M38: Serviço | N38: Serviço | O38: - | P38: AGETOP | Q38: 261000 | R38: PINTURA LATEX ACRILICA 2 DEMAOS C/SELADOR | S38: m2 | T38: 289.68 | U38: 1 | V38: 289.68 | Y38: 0 | Z38: 0 | AE38: (sem código) | AF38: - | AG38: 0 | AH38: 0
A39: 3 | B39: 3 | C39: 3 | D39: 2 | E39: 1 | F39: 6 | G39: 2 | H39: 0 | I39: 0 | J39: 4 | K39: 2 | M39: Nível 3 | N39: Nível 3 | O39: - | P39: SINAPI | R39: OUTROS | S39: - | U39: 1 | V39: - | Y39: 0 | Z39: 0 | AE39: OUTROS | AF39: - | AG39: 0 | AH39: 0
A40: S | B40: 3 | C40: S | D40: 0 | E40: 1 | F40: 6 | G40: 2 | H40: 0 | I40: 0 | J40: 0 | K40: 0 | M40: Serviço | N40: Serviço | O40: - | P40: AGETOP | Q40: 261620 | R40: LETREIRO MÉDIO A GRANDE PORTE EM PAREDE FEITO A PINCEL | S40: m2 | T40: 7.2 | U40: 1 | V40: 7.2 | Y40: 0 | Z40: 0 | AE40: (sem código) | AF40: - | AG40: 0 | AH40: 0
A41: 3 | B41: 3 | C41: 3 | D41: 2 | E41: 1 | F41: 6 | G41: 3 | H41: 0 | I41: 0 | J41: 2 | K41: 42 | M41: Nível 3 | N41: Nível 3 | O41: - | P41: SINAPI | R41: ESQUADRIAS NOVAS | S41: - | U41: 1 | V41: - | Y41: 0 | Z41: 0 | AE41: ESQUADRIAS NOVAS | AF41: - | AG41: 0 | AH41: 0
A42: S | B42: 3 | C42: S | D42: 0 | E42: 1 | F42: 6 | G42: 3 | H42: 0 | I42: 0 | J42: 0 | K42: 0 | M42: Serviço | N42: Serviço | O42: - | P42: AGETOP | Q42: 261602 | R42: PINT.ESMALTE/ESQUAD.FERRO C/FUNDO ANTICOR. | S42: m2 | T42: 6 | U42: 1 | V42: 6 | Y42: 0 | Z42: 0 | AE42: (sem código) | AF42: - | AG42: 0 | AH42: 0
A43: 2 | B43: 2 | C43: 2 | D43: 2 | E43: 1 | F43: 7 | G43: 0 | H43: 0 | I43: 0 | J43: 10 | K43: 2 | M43: Nível 2 | N43: Nível 2 | O43: - | P43: SINAPI | R43: ESQUADRIAS METÁLICAS | S43: - | U43: 1 | V43: - | Y43: 0 | Z43: 0 | AE43: ESQUADRIAS METÁLICAS | AF43: - | AG43: 0 | AH43: 0
A44: S | B44: 2 | C44: S | D44: 0 | E44: 1 | F44: 7 | G44: 0 | H44: 0 | I44: 0 | J44: 0 | K44: 0 | M44: Serviço | N44: Serviço | O44: - | P44: AGETOP | Q44: 180307 | R44: PORTAO /CHAPA TRAPEZ / TUBO DE ACO PT-5 C/FERRAGEM | S44: m2 | T44: 2 | U44: 1 | V44: 2 | Y44: 0 | Z44: 0 | AE44: (sem código) | AF44: - | AG44: 0 | AH44: 0
A45: 2 | B45: 2 | C45: 2 | D45: 8 | E45: 1 | F45: 8 | G45: 0 | H45: 0 | I45: 0 | J45: 8 | M45: Nível 2 | N45: Nível 2 | O45: - | P45: AGETOP | R45: SERVIÇO EM TERRA | S45: - | U45: 1 | V45: - | Y45: 0 | Z45: 0 | AE45: SERVIÇO EM TERRA | AF45: - | AG45: 0 | AH45: 0
A46: 3 | B46: 3 | C46: 3 | D46: 7 | E46: 1 | F46: 8 | G46: 1 | H46: 0 | I46: 0 | J46: 7 | K46: 32 | M46: Nível 3 | N46: Nível 3 | O46: - | R46: AQUISIÇÃO DE TERRA (SOMENTE ATERRO) | S46: - | U46: 1 | V46: - | Y46: 0 | Z46: 0 | AE46: AQUISIÇÃO DE TERRA (SOMENTE ATERRO) | AF46: - | AG46: 0 | AH46: 0
A47: S | B47: 3 | C47: S | D47: 0 | E47: 1 | F47: 8 | G47: 1 | H47: 0 | I47: 0 | J47: 0 | K47: 0 | M47: Serviço | N47: Serviço | O47: - | P47: AGETOP | Q47: 41004 | R47: ESCAVACAO MECANICA | S47: m3 | T47: 53.8125 | U47: 1 | V47: 53.8125 | Y47: 0 | Z47: 0 | AE47: (sem código) | AF47: - | AG47: 0 | AH47: 0
A48: S | B48: 3 | C48: S | D48: 0 | E48: 1 | F48: 8 | G48: 1 | H48: 0 | I48: 0 | J48: 0 | K48: 0 | M48: Serviço | N48: Serviço | O48: - | P48: AGETOP | Q48: 41005 | R48: CARGA MECANIZADA | S48: m3 | T48: 53.8125 | U48: 1 | V48: 53.8125 | Y48: 0 | Z48: 0 | AE48: (sem código) | AF48: - | AG48: 0 | AH48: 0
A49: S | B49: 3 | C49: S | D49: 0 | E49: 1 | F49: 8 | G49: 1 | H49: 0 | I49: 0 | J49: 0 | K49: 0 | M49: Serviço | N49: Serviço | O49: - | P49: AGETOP | Q49: 41012 | R49: INDENIZAÇÃO DE JAZIDA | S49: m3 | T49: 53.8125 | U49: 1 | V49: 53.8125 | Y49: 0 | Z49: 0 | AE49: (sem código) | AF49: - | AG49: 0 | AH49: 0
A50: S | B50: 3 | C50: S | D50: 0 | E50: 1 | F50: 8 | G50: 1 | H50: 0 | I50: 0 | J50: 0 | K50: 0 | M50: Serviço | N50: Serviço | O50: - | P50: AGETOP | Q50: 41006 | R50: TRANSPORTE DE MATERIAL ESCAVADO M3.KM | S50: m3km | T50: 53.8125 | U50: 1 | V50: 53.8125 | Y50: 0 | Z50: 0 | AE50: (sem código) | AF50: - | AG50: 0 | AH50: 0
A51: S | B51: 3 | C51: S | D51: 0 | E51: 1 | F51: 8 | G51: 1 | H51: 0 | I51: 0 | J51: 0 | K51: 0 | M51: Serviço | N51: Serviço | O51: - | P51: AGETOP | Q51: 41140 | R51: REGULARIZAÇÃO DO TERRENO SEM APILOAMENTO COM TRANSPORTE MANUAL DA TERRA ESCAVADA | S51: m2 | T51: 205 | U51: 1 | V51: 205 | Y51: 0 | Z51: 0 | AE51: (sem código) | AF51: - | AG51: 0 | AH51: 0
A52: S | B52: 3 | C52: S | D52: 0 | E52: 1 | F52: 8 | G52: 1 | H52: 0 | I52: 0 | J52: 0 | K52: 0 | M52: Serviço | N52: Serviço | O52: - | P52: AGETOP | Q52: 40905 | R52: APILOAMENTO MECÂNICO | S52: m2 | T52: 205 | U52: 1 | V52: 205 | Y52: 0 | Z52: 0 | AE52: (sem código) | AF52: - | AG52: 0 | AH52: 0
A53: 1 | B53: 1 | C53: 1 | D53: 46 | E53: 2 | F53: 0 | G53: 0 | H53: 0 | I53: 0 | J53: 231 | K53: 46 | L53: F | M53: Nível 1 | N53: Nível 1 | O53: 2. | P53: SINAPI | R53: 1.1 - NOVO BLOCO ADMINISTRATIVO | S53: UN | T53: 1 | U53: 1 | V53: 1 | Y53: 0 | Z53: 0 | AE53: 1.1 - NOVO BLOCO ADMINISTRATIVO | AF53: - | AG53: 0 | AH53: 0
A54: 2 | B54: 2 | C54: 2 | D54: 2 | E54: 2 | F54: 1 | G54: 0 | H54: 0 | I54: 0 | J54: 45 | K54: 2 | M54: Nível 2 | N54: Nível 2 | O54: - | P54: SINAPI | R54: ALVENARIAS E DIVISÓRIAS | S54: - | U54: 1 | V54: - | Y54: 0 | Z54: 0 | AE54: ALVENARIAS E DIVISÓRIAS | AF54: - | AG54: 0 | AH54: 0
A55: S | B55: 2 | C55: S | D55: 0 | E55: 2 | F55: 1 | G55: 0 | H55: 0 | I55: 0 | J55: 0 | K55: 0 | M55: Serviço | N55: Serviço | O55: - | P55: AGETOP | Q55: 100201 | R55: ALVENARIA DE TIJOLO FURADO 1/2 VEZ - 9 x 19 x 19 - ARG. (1CALH:4ARML+100KG DE CI/M3) | S55: m2 | T55: 160.25 | U55: 1 | V55: 160.25 | Y55: 0 | Z55: 0 | AE55: (sem código) | AF55: - | AG55: 0 | AH55: 0
A56: 2 | B56: 2 | C56: 2 | D56: 5 | E56: 2 | F56: 2 | G56: 0 | H56: 0 | I56: 0 | J56: 43 | K56: 5 | M56: Nível 2 | N56: Nível 2 | O56: - | P56: SINAPI | R56: REVESTIMENTO DE PAREDE | S56: - | U56: 1 | V56: - | Y56: 0 | Z56: 0 | AE56: REVESTIMENTO DE PAREDE | AF56: - | AG56: 0 | AH56: 0
A57: S | B57: 2 | C57: S | D57: 0 | E57: 2 | F57: 2 | G57: 0 | H57: 0 | I57: 0 | J57: 0 | K57: 0 | M57: Serviço | N57: Serviço | O57: - | P57: AGETOP | Q57: 200101 | R57: CHAPISCO COMUM | S57: m2 | T57: 320.5 | U57: 1 | V57: 320.5 | Y57: 0 | Z57: 0 | AE57: (sem código) | AF57: - | AG57: 0 | AH57: 0
A58: S | B58: 2 | C58: S | D58: 0 | E58: 2 | F58: 2 | G58: 0 | H58: 0 | I58: 0 | J58: 0 | K58: 0 | M58: Serviço | N58: Serviço | O58: - | P58: AGETOP | Q58: 200499 | R58: REBOCO PAULISTA A-14 (1CALH:4ARMLC+100kgCI/M3) | S58: m2 | T58: 265.98 | U58: 1 | V58: 265.98 | Y58: 0 | Z58: 0 | AE58: (sem código) | AF58: - | AG58: 0 | AH58: 0
A59: S | B59: 2 | C59: S | D59: 0 | E59: 2 | F59: 2 | G59: 0 | H59: 0 | I59: 0 | J59: 0 | K59: 0 | M59: Serviço | N59: Serviço | O59: - | P59: SINAPI | Q59: 87553 | R59: EMBOÇO, PARA RECEBIMENTO DE CERÂMICA, EM ARGAMASSA TRAÇO 1:2:8, PREPARO MECÂNICO COM BETONEIRA 400L, APLICADO MANUALMENTE EM FACES INTERNAS DE PAREDES, PARA AMBIENTE COM ÁREA MAIOR QUE 10M2, ESPESSURA DE 10MM, COM EXECUÇÃO DE TALISCAS. AF_06/2014 | S59: M2 | T59: 54.52 | U59: 1 | V59: 54.52 | Y59: 0 | Z59: 0 | AB59: NÃO | AE59: (sem código) | AF59: - | AG59: 0 | AH59: 0
A60: S | B60: 2 | C60: S | D60: 0 | E60: 2 | F60: 2 | G60: 0 | H60: 0 | I60: 0 | J60: 0 | K60: 0 | M60: Serviço | N60: Serviço | O60: - | P60: SINAPI | Q60: 87273 | R60: REVESTIMENTO CERÂMICO PARA PAREDES INTERNAS COM PLACAS TIPO ESMALTADA EXTRA DE DIMENSÕES 33X45 CM APLICADAS EM AMBIENTES DE ÁREA MAIOR QUE 5 M² NA ALTURA INTEIRA DAS PAREDES. AF_06/2014 | S60: M2 | T60: 54.52 | U60: 1 | V60: 54.52 | Y60: 0 | Z60: 0 | AB60: NÃO | AE60: (sem código) | AF60: - | AG60: 0 | AH60: 0
A61: 2 | B61: 2 | C61: 2 | D61: 7 | E61: 2 | F61: 3 | G61: 0 | H61: 0 | I61: 0 | J61: 38 | K61: 7 | M61: Nível 2 | N61: Nível 2 | O61: - | P61: SINAPI | R61: ESQUADRIAS METÁLICAS | S61: - | U61: 1 | V61: - | Y61: 0 | Z61: 0 | AE61: ESQUADRIAS METÁLICAS | AF61: - | AG61: 0 | AH61: 0
A62: S | B62: 2 | C62: S | D62: 0 | E62: 2 | F62: 3 | G62: 0 | H62: 0 | I62: 0 | J62: 0 | K62: 0 | M62: Serviço | N62: Serviço | O62: - | P62: AGETOP | Q62: 180501 | R62: PORTA DE ABRIR EM CHAPA PF-1 C/FERRAGENS | S62: m2 | T62: 13.86 | U62: 1 | V62: 13.86 | Y62: 0 | Z62: 0 | AE62: (sem código) | AF62: - | AG62: 0 | AH62: 0
A63: S | B63: 2 | C63: S | D63: 0 | E63: 2 | F63: 3 | G63: 0 | H63: 0 | I63: 0 | J63: 0 | K63: 0 | M63: Serviço | N63: Serviço | O63: - | P63: AGETOP | Q63: 180380 | R63: ESQ. MAXIMO AR CHAPA/VIDRO J4 C/FERRAGENS | S63: m2 | T63: 0.5 | U63: 1 | V63: 0.5 | Y63: 0 | Z63: 0 | AE63: (sem código) | AF63: - | AG63: 0 | AH63: 0
A64: S | B64: 2 | C64: S | D64: 0 | E64: 2 | F64: 3 | G64: 0 | H64: 0 | I64: 0 | J64: 0 | K64: 0 | M64: Serviço | N64: Serviço | O64: - | P64: AGETOP | Q64: 180401 | R64: ESQ.DE CORRER CHAPA/VIDRO J9/J10/J12/J13 C/FERRAGENS | S64: m2 | T64: 10.08 | U64: 1 | V64: 10.08 | Y64: 0 | Z64: 0 | AE64: (sem código) | AF64: - | AG64: 0 | AH64: 0
A65: S | B65: 2 | C65: S | D65: 0 | E65: 2 | F65: 3 | G65: 0 | H65: 0 | I65: 0 | J65: 0 | K65: 0 | M65: Serviço | N65: Serviço | O65: - | P65: AGETOP | Q65: 180208 | R65: GRADE PROTECAO TIPO TIJOLINHO GP-1/GP-2 | S65: m2 | T65: 15.75 | U65: 1 | V65: 15.75 | Y65: 0 | Z65: 0 | AE65: (sem código) | AF65: - | AG65: 0 | AH65: 0
A66: =CHOOSE(1+LOG(1+2*(ORÇAMENTO.Nivel="Nível 1")+4*(ORÇAMENTO.Nivel="Nível 2")+8*(ORÇAMENTO.Nivel="Nível 3")+16*(ORÇAMENTO.Nivel="Nível 4")+32*(ORÇAMENTO.Nivel="Serviço"),2),0,1,2,3,4,"S") -> S | B66: =IF(OR(C66="s",C66=0),OFFSET(B66,-1,0),C66) -> 2 | C66: =IF(OFFSET(C66,-1,0)="L",1,IF(OFFSET(C66,-1,0)=1,2,IF(OR(A66="s",A66=0),"S",IF(AND(OFFSET(C66,-1,0)=2,A66=4),3,IF(AND(OR(OFFSET(C66,-1,0)="s",OFFSET(C66,-1,0)=0),A66<>"s",A66>OFFSET(B66,-1,0)),OFFSET(B66,-1,0),A66))))) -> S | D66: =IF(OR(C66="S",C66=0),0,IF(ISERROR(K66),J66,SMALL(J66:K66,1))) -> 0 | E66: =IF($C66=1,OFFSET(E66,-1,0)+1,OFFSET(E66,-1,0)) -> 2 | F66: =IF($C66=1,0,IF($C66=2,OFFSET(F66,-1,0)+1,OFFSET(F66,-1,0))) -> 3 | G66: =IF(AND($C66<=2,$C66<>0),0,IF($C66=3,OFFSET(G66,-1,0)+1,OFFSET(G66,-1,0))) -> 0 | H66: =IF(AND($C66<=3,$C66<>0),0,IF($C66=4,OFFSET(H66,-1,0)+1,OFFSET(H66,-1,0))) -> 0 | I66: =IF(AND($C66<=4,$C66<>0),0,IF(AND($C66="S",$Y66>0),OFFSET(I66,-1,0)+1,OFFSET(I66,-1,0))) -> 0 | J66: 0 | K66: 0 | L66: =IF(OR(Y66>0,$C66=1),"F","") ->  | M66: Serviço | N66: =CHOOSE(1+LOG(1+2*(C66=1)+4*(C66=2)+8*(C66=3)+16*(C66=4)+32*(C66="S"),2),"","Nível 1","Nível 2","Nível 3","Nível 4","Serviço") -> Serviço | O66: - | P66: AGETOP | Q66: 230174 | R66: BARRA DE APOIO EM AÇO INOX - 40 CM | S66: un | T66: 4 | U66: 1 | V66: 4 | Y66: 0 | Z66: 0 | AC66: =IFERROR(VLOOKUP(Q66,INDIRECT("EQUIVALÊNCIAS"),4,FALSE),"") ->  | AD66: =IFERROR(VLOOKUP(Q66,INDIRECT("EQUIVALÊNCIAS"),5,FALSE),"") ->  | AE66: =IFERROR(IF(OR($C66=0,$C66=1,$C66=2,$C66=3,$C66=4),R66,VLOOKUP($AD66,INDIRECT($AC66),2,FALSE)),"(sem código)") -> (sem código) | AF66: =IFERROR(VLOOKUP(AD66,INDIRECT(AC66),3,FALSE()),"-") -> - | AG66: =IFERROR(VLOOKUP($AD66,INDIRECT($AC66),IF($T$10="DESONERADA",4,7),FALSE()),0) -> 0 | AH66: =IFERROR(VLOOKUP($AD66,INDIRECT($AC66),IF($T$10="DESONERADA",5,8),FALSE()),0) -> 0
A67: =CHOOSE(1+LOG(1+2*(ORÇAMENTO.Nivel="Nível 1")+4*(ORÇAMENTO.Nivel="Nível 2")+8*(ORÇAMENTO.Nivel="Nível 3")+16*(ORÇAMENTO.Nivel="Nível 4")+32*(ORÇAMENTO.Nivel="Serviço"),2),0,1,2,3,4,"S") -> S | B67: 2 | C67: S | D67: 0 | E67: 2 | F67: 3 | G67: 0 | H67: 0 | I67: 0 | J67: 0 | K67: 0 | M67: Serviço | N67: Serviço | O67: - | P67: AGETOP | Q67: 230176 | R67: BARRA DE APOIO EM AÇO INOX - 80 CM | S67: un | T67: 3 | U67: 1 | V67: 3 | Y67: 0 | Z67: 0 | AE67: (sem código) | AF67: - | AG67: 0 | AH67: 0
A68: 2 | B68: 2 | C68: 2 | D68: 2 | E68: 2 | F68: 4 | G68: 0 | H68: 0 | I68: 0 | J68: 31 | K68: 2 | M68: Nível 2 | N68: Nível 2 | O68: - | P68: SINAPI | R68: VIDROS | S68: - | U68: 1 | V68: - | Y68: 0 | Z68: 0 | AE68: VIDROS | AF68: - | AG68: 0 | AH68: 0
A69: S | B69: 2 | C69: S | D69: 0 | E69: 2 | F69: 4 | G69: 0 | H69: 0 | I69: 0 | J69: 0 | K69: 0 | M69: Serviço | N69: Serviço | O69: - | P69: SINAPI | Q69: 72117 | R69: VIDRO LISO COMUM TRANSPARENTE, ESPESSURA 4MM | S69: M2 | T69: 10.58 | U69: 1 | V69: 10.58 | Y69: 0 | Z69: 0 | AA69: Referência: AGETOP - 190102 | AB69: SIM | AE69: (sem código) | AF69: - | AG69: 0 | AH69: 0
A70: 2 | B70: 2 | C70: 2 | D70: 4 | E70: 2 | F70: 5 | G70: 0 | H70: 0 | I70: 0 | J70: 29 | K70: 4 | M70: Nível 2 | N70: Nível 2 | O70: - | P70: SINAPI | R70: DIVERSOS | S70: - | U70: 1 | V70: - | Y70: 0 | Z70: 0 | AE70: DIVERSOS | AF70: - | AG70: 0 | AH70: 0
A71: S | B71: 2 | C71: S | D71: 0 | E71: 2 | F71: 5 | G71: 0 | H71: 0 | I71: 0 | J71: 0 | K71: 0 | M71: Serviço | N71: Serviço | O71: - | P71: COMPOSIÇÃO | Q71: COMP 415_SEE | R71: PEITORIL EM GRANITO CINZA, LARGURA VARIÁVEL E PINGADEIRA | S71: M2 | T71: 1.89 | U71: 1 | V71: 1.89 | Y71: 0 | Z71: 0 | AE71: (sem código) | AF71: - | AG71: 0 | AH71: 0
A72: S | B72: 2 | C72: S | D72: 0 | E72: 2 | F72: 5 | G72: 0 | H72: 0 | I72: 0 | J72: 0 | K72: 0 | M72: Serviço | N72: Serviço | O72: - | P72: AGETOP | Q72: 60010 | R72: VERGA/CONTRAVERGA EM CONCRETO ARMADO FCK = 20 MPA | S72: m3 | T72: 0.212 | U72: 1 | V72: 0.212 | Y72: 0 | Z72: 0 | AE72: (sem código) | AF72: - | AG72: 0 | AH72: 0
A73: =CHOOSE(1+LOG(1+2*(ORÇAMENTO.Nivel="Nível 1")+4*(ORÇAMENTO.Nivel="Nível 2")+8*(ORÇAMENTO.Nivel="Nível 3")+16*(ORÇAMENTO.Nivel="Nível 4")+32*(ORÇAMENTO.Nivel="Serviço"),2),0,1,2,3,4,"S") -> S | B73: =IF(OR(C73="s",C73=0),OFFSET(B73,-1,0),C73) -> 2 | C73: =IF(OFFSET(C73,-1,0)="L",1,IF(OFFSET(C73,-1,0)=1,2,IF(OR(A73="s",A73=0),"S",IF(AND(OFFSET(C73,-1,0)=2,A73=4),3,IF(AND(OR(OFFSET(C73,-1,0)="s",OFFSET(C73,-1,0)=0),A73<>"s",A73>OFFSET(B73,-1,0)),OFFSET(B73,-1,0),A73))))) -> S | D73: =IF(OR(C73="S",C73=0),0,IF(ISERROR(K73),J73,SMALL(J73:K73,1))) -> 0 | E73: =IF($C73=1,OFFSET(E73,-1,0)+1,OFFSET(E73,-1,0)) -> 2 | F73: =IF($C73=1,0,IF($C73=2,OFFSET(F73,-1,0)+1,OFFSET(F73,-1,0))) -> 5 | G73: =IF(AND($C73<=2,$C73<>0),0,IF($C73=3,OFFSET(G73,-1,0)+1,OFFSET(G73,-1,0))) -> 0 | H73: =IF(AND($C73<=3,$C73<>0),0,IF($C73=4,OFFSET(H73,-1,0)+1,OFFSET(H73,-1,0))) -> 0 | I73: =IF(AND($C73<=4,$C73<>0),0,IF(AND($C73="S",$Y73>0),OFFSET(I73,-1,0)+1,OFFSET(I73,-1,0))) -> 0 | J73: 0 | K73: 0 | L73: =IF(OR(Y73>0,$C73=1),"F","") ->  | M73: Serviço | N73: =CHOOSE(1+LOG(1+2*(C73=1)+4*(C73=2)+8*(C73=3)+16*(C73=4)+32*(C73="S"),2),"","Nível 1","Nível 2","Nível 3","Nível 4","Serviço") -> Serviço | O73: - | P73: AGETOP | Q73: 271608 | R73: BANCADA DE GRANITO C/ESPELHO | S73: m2 | T73: 0.72 | U73: 1 | V73: 0.72 | Y73: 0 | Z73: 0 | AC73: =IFERROR(VLOOKUP(Q73,INDIRECT("EQUIVALÊNCIAS"),4,FALSE),"") ->  | AD73: =IFERROR(VLOOKUP(Q73,INDIRECT("EQUIVALÊNCIAS"),5,FALSE),"") ->  | AE73: =IFERROR(IF(OR($C73=0,$C73=1,$C73=2,$C73=3,$C73=4),R73,VLOOKUP($AD73,INDIRECT($AC73),2,FALSE)),"(sem código)") -> (sem código) | AF73: =IFERROR(VLOOKUP(AD73,INDIRECT(AC73),3,FALSE()),"-") -> - | AG73: =IFERROR(VLOOKUP($AD73,INDIRECT($AC73),IF($T$10="DESONERADA",4,7),FALSE()),0) -> 0 | AH73: =IFERROR(VLOOKUP($AD73,INDIRECT($AC73),IF($T$10="DESONERADA",5,8),FALSE()),0) -> 0
A74: 2 | B74: 2 | C74: 2 | D74: 13 | E74: 2 | F74: 6 | G74: 0 | H74: 0 | I74: 0 | J74: 25 | K74: 13 | M74: Nível 2 | N74: Nível 2 | O74: - | R74: PINTURA | S74: - | U74: 1 | V74: - | Y74: 0 | Z74: 0 | AE74: PINTURA | AF74: - | AG74: 0 | AH74: 0
A75: 3 | B75: 3 | C75: 3 | D75: 3 | E75: 2 | F75: 6 | G75: 1 | H75: 0 | I75: 0 | J75: 12 | K75: 3 | M75: Nível 3 | N75: Nível 3 | O75: - | P75: AGETOP | R75: LÁTEX ACRÍLICA | S75: - | U75: 1 | V75: - | Y75: 0 | Z75: 0 | AE75: LÁTEX ACRÍLICA | AF75: - | AG75: 0 | AH75: 0
A76: S | B76: 3 | C76: S | D76: 0 | E76: 2 | F76: 6 | G76: 1 | H76: 0 | I76: 0 | J76: 0 | K76: 0 | M76: Serviço | N76: Serviço | O76: - | P76: AGETOP | Q76: 261300 | R76: EMASSAMENTO COM MASSA PVA DUAS DEMAOS | S76: m2 | T76: 292.41 | U76: 1 | V76: 292.41 | Y76: 0 | Z76: 0 | AE76: (sem código) | AF76: - | AG76: 0 | AH76: 0
A77: S | B77: 3 | C77: S | D77: 0 | E77: 2 | F77: 6 | G77: 1 | H77: 0 | I77: 0 | J77: 0 | K77: 0 | M77: Serviço | N77: Serviço | O77: - | P77: AGETOP | Q77: 261001 | R77: PINTURA LATEX ACRILICO 2 DEMAOS | S77: m2 | T77: 182.41 | U77: 1 | V77: 182.41 | Y77: 0 | Z77: 0 | AE77: (sem código) | AF77: - | AG77: 0 | AH77: 0
A78: 3 | B78: 3 | C78: 3 | D78: 3 | E78: 2 | F78: 6 | G78: 2 | H78: 0 | I78: 0 | J78: 9 | K78: 3 | M78: Nível 3 | N78: Nível 3 | O78: - | P78: AGETOP | R78: TETO | S78: - | U78: 1 | V78: - | Y78: 0 | Z78: 0 | AE78: TETO | AF78: - | AG78: 0 | AH78: 0
A79: S | B79: 3 | C79: S | D79: 0 | E79: 2 | F79: 6 | G79: 2 | H79: 0 | I79: 0 | J79: 0 | K79: 0 | M79: Serviço | N79: Serviço | O79: - | P79: AGETOP | Q79: 261300 | R79: EMASSAMENTO COM MASSA PVA DUAS DEMAOS | S79: m2 | T79: 66.6 | U79: 1 | V79: 66.6 | Y79: 0 | Z79: 0 | AE79: (sem código) | AF79: - | AG79: 0 | AH79: 0
A80: S | B80: 3 | C80: S | D80: 0 | E80: 2 | F80: 6 | G80: 2 | H80: 0 | I80: 0 | J80: 0 | K80: 0 | M80: Serviço | N80: Serviço | O80: - | P80: AGETOP | Q80: 261307 | R80: PINTURA PVA LATEX 2 DEMAOS SEM SELADOR | S80: m2 | T80: 66.6 | U80: 1 | V80: 66.6 | Y80: 0 | Z80: 0 | AE80: (sem código) | AF80: - | AG80: 0 | AH80: 0
A81: 3 | B81: 3 | C81: 3 | D81: 2 | E81: 2 | F81: 6 | G81: 3 | H81: 0 | I81: 0 | J81: 6 | K81: 2 | M81: Nível 3 | N81: Nível 3 | O81: - | P81: AGETOP | R81: EXTERNA | S81: - | U81: 1 | V81: - | Y81: 0 | Z81: 0 | AE81: EXTERNA | AF81: - | AG81: 0 | AH81: 0
A82: S | B82: 3 | C82: S | D82: 0 | E82: 2 | F82: 6 | G82: 3 | H82: 0 | I82: 0 | J82: 0 | K82: 0 | M82: Serviço | N82: Serviço | O82: - | P82: AGETOP | Q82: 261000 | R82: PINTURA LATEX ACRILICA 2 DEMAOS C/SELADOR | S82: m2 | T82: 110 | U82: 1 | V82: 110 | Y82: 0 | Z82: 0 | AE82: (sem código) | AF82: - | AG82: 0 | AH82: 0
A83: 3 | B83: 3 | C83: 3 | D83: 2 | E83: 2 | F83: 6 | G83: 4 | H83: 0 | I83: 0 | J83: 4 | K83: 2 | M83: Nível 3 | N83: Nível 3 | O83: - | P83: AGETOP | R83: ESQUADRIAS NOVAS | S83: - | U83: 1 | V83: - | Y83: 0 | Z83: 0 | AE83: ESQUADRIAS NOVAS | AF83: - | AG83: 0 | AH83: 0
A84: S | B84: 3 | C84: S | D84: 0 | E84: 2 | F84: 6 | G84: 4 | H84: 0 | I84: 0 | J84: 0 | K84: 0 | M84: Serviço | N84: Serviço | O84: - | P84: AGETOP | Q84: 261602 | R84: PINT.ESMALTE/ESQUAD.FERRO C/FUNDO ANTICOR. | S84: m2 | T84: 86.37 | U84: 1 | V84: 86.37 | Y84: 0 | Z84: 0 | AE84: (sem código) | AF84: - | AG84: 0 | AH84: 0
A85: 3 | B85: 3 | C85: 3 | D85: 2 | E85: 2 | F85: 6 | G85: 5 | H85: 0 | I85: 0 | J85: =IF(OR($C85="S",$C85=0),0,MATCH(0,OFFSET($D85,1,$C85,ROW($C$284)-ROW($C85)),0)) -> 2 | K85: =IF(OR($C85="S",$C85=0),0,MATCH(OFFSET($D85,0,$C85)+1,OFFSET($D85,1,$C85,ROW($C$284)-ROW($C85)),0)) ->  | M85: Nível 3 | N85: Nível 3 | O85: - | P85: SINAPI | R85: ESTRUTURA METÁLICA | S85: - | U85: 1 | V85: - | Y85: 0 | Z85: 0 | AE85: ESTRUTURA METÁLICA | AF85: - | AG85: 0 | AH85: 0
A86: S | B86: 3 | C86: S | D86: 0 | E86: 2 | F86: 6 | G86: 5 | H86: 0 | I86: 0 | J86: 0 | K86: 0 | M86: Serviço | N86: Serviço | O86: - | P86: AGETOP | Q86: 261609 | R86: PINTURA ESMALTE ALQUIDICO ESTR.METALICA 2 DEMAOS | S86: m2 | T86: 135.21 | U86: 1 | V86: 135.21 | Y86: 0 | Z86: 0 | AE86: (sem código) | AF86: - | AG86: 0 | AH86: 0
A87: 2 | B87: 2 | C87: 2 | D87: 7 | E87: 2 | F87: 7 | G87: 0 | H87: 0 | I87: 0 | J87: 12 | K87: 7 | M87: Nível 2 | N87: Nível 2 | O87: - | P87: SINAPI | R87: REVESTIMENTO DE PISO | S87: - | U87: 1 | V87: - | Y87: 0 | Z87: 0 | AE87: REVESTIMENTO DE PISO | AF87: - | AG87: 0 | AH87: 0
A88: 3 | B88: 3 | C88: 3 | D88: 4 | E88: 2 | F88: 7 | G88: 1 | H88: 0 | I88: 0 | J88: 6 | K88: 4 | M88: Nível 3 | N88: Nível 3 | O88: - | R88: GRANITINA | S88: - | U88: 1 | V88: - | Y88: 0 | Z88: 0 | AE88: GRANITINA | AF88: - | AG88: 0 | AH88: 0
A89: S | B89: 3 | C89: S | D89: 0 | E89: 2 | F89: 7 | G89: 1 | H89: 0 | I89: 0 | J89: 0 | K89: 0 | M89: Serviço | N89: Serviço | O89: - | P89: AGETOP | Q89: 221101 | R89: GRANITINA 8MM FUNDIDA COM CONTRAPISO (1CI:3ARML) E=2CM E JUNTA PLASTICA 27MM | S89: m2 | T89: 90.8 | U89: 1 | V89: 90.8 | Y89: 0 | Z89: 0 | AE89: (sem código) | AF89: - | AG89: 0 | AH89: 0
A90: S | B90: 3 | C90: S | D90: 0 | E90: 2 | F90: 7 | G90: 1 | H90: 0 | I90: 0 | J90: 0 | K90: 0 | M90: Serviço | N90: Serviço | O90: - | P90: AGETOP | Q90: 221104 | R90: RASPAGEM E APLICAÇÃO RESINA ACRÍLICA DUAS DEMÃOS | S90: m2 | T90: 96.1 | U90: 1 | V90: 96.1 | Y90: 0 | Z90: 0 | AE90: (sem código) | AF90: - | AG90: 0 | AH90: 0
A91: S | B91: 3 | C91: S | D91: 0 | E91: 2 | F91: 7 | G91: 1 | H91: 0 | I91: 0 | J91: 0 | K91: 0 | M91: Serviço | N91: Serviço | O91: - | P91: AGETOP | Q91: 221102 | R91: RODAPÉ FUNDIDO DE GRANITINA 7CM | S91: m | T91: 75.71 | U91: 1 | V91: 75.71 | Y91: 0 | Z91: 0 | AE91: (sem código) | AF91: - | AG91: 0 | AH91: 0
A92: 3 | B92: 3 | C92: 3 | D92: 2 | E92: 2 | F92: 7 | G92: 2 | H92: 0 | I92: 0 | J92: 2 | K92: 112 | M92: Nível 3 | N92: Nível 3 | O92: - | P92: SINAPI | R92: CALÇADA | S92: - | U92: 1 | V92: - | Y92: 0 | Z92: 0 | AE92: CALÇADA | AF92: - | AG92: 0 | AH92: 0
A93: S | B93: 3 | C93: S | D93: 0 | E93: 2 | F93: 7 | G93: 2 | H93: 0 | I93: 0 | J93: 0 | K93: 0 | M93: Serviço | N93: Serviço | O93: - | P93: SINAPI | Q93: 94993 | R93: EXECUÇÃO DE PASSEIO (CALÇADA) OU PISO DE CONCRETO COM CONCRETO MOLDADO IN LOCO, USINADO, ACABAMENTO CONVENCIONAL, ESPESSURA 6 CM, ARMADO. AF_07/2016 | S93: M2 | T93: 34.65 | U93: 1 | V93: 34.65 | Y93: 0 | Z93: 0 | AE93: (sem código) | AF93: - | AG93: 0 | AH93: 0
A94: 2 | B94: 2 | C94: 2 | D94: 5 | E94: 2 | F94: 8 | G94: 0 | H94: 0 | I94: 0 | J94: 5 | M94: Nível 2 | N94: Nível 2 | O94: - | P94: SINAPI | R94: COBERTURAS | S94: - | U94: 1 | V94: - | Y94: 0 | Z94: 0 | AE94: COBERTURAS | AF94: - | AG94: 0 | AH94: 0
A95: S | B95: 2 | C95: S | D95: 0 | E95: 2 | F95: 8 | G95: 0 | H95: 0 | I95: 0 | J95: 0 | K95: 0 | M95: Serviço | N95: Serviço | O95: - | P95: AGETOP | Q95: 160100 | R95: COBERTURA COM TELHA AMERICANA RESINADA COR VERMELHA | S95: m2 | T95: 135.21 | U95: 1 | V95: 135.21 | Y95: 0 | Z95: 0 | AE95: (sem código) | AF95: - | AG95: 0 | AH95: 0
A96: S | B96: 2 | C96: S | D96: 0 | E96: 2 | F96: 8 | G96: 0 | H96: 0 | I96: 0 | J96: 0 | K96: 0 | M96: Serviço | N96: Serviço | O96: - | P96: AGETOP | Q96: 160403 | R96: EMBOCAMENTO LATERAL (OITOES) | S96: m | T96: 19.8 | U96: 1 | V96: 19.8 | Y96: 0 | Z96: 0 | AE96: (sem código) | AF96: - | AG96: 0 | AH96: 0
A97: S | B97: 2 | C97: S | D97: 0 | E97: 2 | F97: 8 | G97: 0 | H97: 0 | I97: 0 | J97: 0 | K97: 0 | M97: Serviço | N97: Serviço | O97: - | P97: AGETOP | Q97: 160404 | R97: EMBOCAMENTO DE BEIRAL | S97: M | T97: 26.7 | U97: 1 | V97: 26.7 | Y97: 0 | Z97: 0 | AE97: (sem código) | AF97: - | AG97: 0 | AH97: 0
A98: S | B98: 2 | C98: S | D98: 0 | E98: 2 | F98: 8 | G98: 0 | H98: 0 | I98: 0 | J98: 0 | K98: 0 | M98: Serviço | N98: Serviço | O98: - | P98: AGETOP | Q98: 160101 | R98: CUMEEIRA PARA TELHA AMERICANA RESINADA COR VERMELHA | S98: m | T98: 13.35 | U98: 1 | V98: 13.35 | Y98: 0 | Z98: 0 | AE98: (sem código) | AF98: - | AG98: 0 | AH98: 0
A99: 1 | B99: 1 | C99: 1 | D99: 5 | E99: 3 | F99: 0 | G99: 0 | H99: 0 | I99: 0 | J99: 185 | K99: 5 | L99: F | M99: Nível 1 | N99: Nível 1 | O99: 3. | P99: SINAPI | R99: ADMINISTRAÇÃO LOCAL | S99: UN | T99: 1 | U99: 1 | V99: 1 | Y99: 0 | Z99: 0 | AE99: ADMINISTRAÇÃO LOCAL | AF99: - | AG99: 0 | AH99: 0
A100: 2 | B100: 2 | C100: 2 | D100: 4 | E100: 3 | F100: 1 | G100: 0 | H100: 0 | I100: 0 | J100: 4 | K100: 13 | M100: Nível 2 | N100: Nível 2 | O100: - | R100: ADMINISTRAÇÃO | S100: - | U100: 1 | V100: - | Y100: 0 | Z100: 0 | AE100: ADMINISTRAÇÃO | AF100: - | AG100: 0 | AH100: 0
A101: 3 | B101: 3 | C101: 3 | D101: 3 | E101: 3 | F101: 1 | G101: 1 | H101: 0 | I101: 0 | J101: 3 | K101: 74 | M101: Nível 3 | N101: Nível 3 | O101: - | R101: MENSALISTAS | S101: - | U101: 1 | V101: - | Y101: 0 | Z101: 0 | AE101: MENSALISTAS | AF101: - | AG101: 0 | AH101: 0
A102: S | B102: 3 | C102: S | D102: 0 | E102: 3 | F102: 1 | G102: 1 | H102: 0 | I102: 0 | J102: 0 | K102: 0 | M102: Serviço | N102: Serviço | O102: - | P102: SINAPI | Q102: 90778 | R102: ENGENHEIRO CIVIL DE OBRA PLENO COM ENCARGOS COMPLEMENTARES | S102: H | T102: 20 | U102: 1 | V102: 20 | Y102: 0 | Z102: 0 | AA102: Referência: AGETOP - 250101 | AB102: SIM | AE102: (sem código) | AF102: - | AG102: 0 | AH102: 0
A103: S | B103: 3 | C103: S | D103: 0 | E103: 3 | F103: 1 | G103: 1 | H103: 0 | I103: 0 | J103: 0 | K103: 0 | M103: Serviço | N103: Serviço | O103: - | P103: SINAPI | Q103: 90776 | R103: ENCARREGADO GERAL COM ENCARGOS COMPLEMENTARES | S103: H | T103: 330 | U103: 1 | V103: 330 | Y103: 0 | Z103: 0 | AA103: Referência: AGETOP - 250103 | AB103: SIM | AE103: (sem código) | AF103: - | AG103: 0 | AH103: 0
A104: 1 | B104: 1 | C104: 1 | D104: 5 | E104: 4 | F104: 0 | G104: 0 | H104: 0 | I104: 0 | J104: 180 | K104: 5 | L104: F | M104: Nível 1 | N104: Nível 1 | O104: 4. | P104: SINAPI | R104: OBRA | S104: UN | T104: 1 | U104: 1 | V104: 1 | Y104: 0 | Z104: 0 | AE104: OBRA | AF104: - | AG104: 0 | AH104: 0
A105: 2 | B105: 2 | C105: 2 | D105: 4 | E105: 4 | F105: 1 | G105: 0 | H105: 0 | I105: 0 | J105: 4 | K105: 8 | M105: Nível 2 | N105: Nível 2 | O105: - | P105: SINAPI | R105: DIVERSOS | S105: - | U105: 1 | V105: - | Y105: 0 | Z105: 0 | AE105: DIVERSOS | AF105: - | AG105: 0 | AH105: 0
A106: S | B106: 2 | C106: S | D106: 0 | E106: 4 | F106: 1 | G106: 0 | H106: 0 | I106: 0 | J106: 0 | K106: 0 | M106: Serviço | N106: Serviço | O106: - | P106: AGETOP | Q106: 270501 | R106: LIMPEZA FINAL DE OBRA - (OBRAS CIVIS) | S106: m2 | T106: 100 | U106: 1 | V106: 100 | Y106: 0 | Z106: 0 | AE106: (sem código) | AF106: - | AG106: 0 | AH106: 0
A107: S | B107: 2 | C107: S | D107: 0 | E107: 4 | F107: 1 | G107: 0 | H107: 0 | I107: 0 | J107: 0 | K107: 0 | M107: Serviço | N107: Serviço | O107: - | P107: AGETOP | Q107: 21301 | R107: PLACA DE OBRA PLOTADA EM CHAPA METÁLICA 26 , AFIXADA EM CAVALETES DE MADEIRA DE LEI (VIGOTAS 6X12CM) - PADRÃO GOINFRA | S107: m2 | T107: 7.5 | U107: 1 | V107: 7.5 | Y107: 0 | Z107: 0 | AE107: (sem código) | AF107: - | AG107: 0 | AH107: 0
A108: S | B108: 2 | C108: S | D108: 0 | E108: 4 | F108: 1 | G108: 0 | H108: 0 | I108: 0 | J108: 0 | K108: 0 | M108: Serviço | N108: Serviço | O108: - | P108: AGETOP | Q108: 270804 | R108: PLACA DE INAUGURAÇÃO AÇO ESCOVADO 60 X 120 CM | S108: un | T108: 1 | U108: 1 | V108: 1 | Y108: 0 | Z108: 0 | AE108: (sem código) | AF108: - | AG108: 0 | AH108: 0
A109: 1 | B109: 1 | C109: 1 | D109: 36 | E109: 5 | F109: 0 | G109: 0 | H109: 0 | I109: 0 | J109: 175 | K109: 36 | L109: F | M109: Nível 1 | N109: Nível 1 | O109: 5. | P109: AGETOP | R109: PROJETO ELÉTRICO | S109: UN | T109: 1 | U109: 1 | V109: 1 | Y109: 0 | Z109: 0 | AE109: PROJETO ELÉTRICO | AF109: - | AG109: 0 | AH109: 0
A110: 2 | B110: 2 | C110: 2 | D110: 3 | E110: 5 | F110: 1 | G110: 0 | H110: 0 | I110: 0 | J110: 35 | K110: 3 | M110: Nível 2 | N110: Nível 2 | O110: - | P110: AGETOP | R110: SERVIÇO EM TERRA | S110: - | U110: 1 | V110: - | Y110: 0 | Z110: 0 | AE110: SERVIÇO EM TERRA | AF110: - | AG110: 0 | AH110: 0
A111: S | B111: 2 | C111: S | D111: 0 | E111: 5 | F111: 1 | G111: 0 | H111: 0 | I111: 0 | J111: 0 | K111: 0 | M111: Serviço | N111: Serviço | O111: - | P111: SINAPI | Q111: 93358 | R111: ESCAVAÇÃO MANUAL DE VALA COM PROFUNDIDADE MENOR OU IGUAL A 1,30 M. AF_03/2016 | S111: M3 | T111: 12.6 | U111: 1 | V111: 12.6 | Y111: 0 | Z111: 0 | AA111: Referência: AGETOP - 40101 | AB111: SIM | AE111: (sem código) | AF111: - | AG111: 0 | AH111: 0
A112: S | B112: 2 | C112: S | D112: 0 | E112: 5 | F112: 1 | G112: 0 | H112: 0 | I112: 0 | J112: 0 | K112: 0 | M112: Serviço | N112: Serviço | O112: - | P112: SINAPI | Q112: 96995 | R112: REATERRO MANUAL APILOADO COM SOQUETE. AF_10/2017 | S112: M3 | T112: 12.6 | U112: 1 | V112: 12.6 | Y112: 0 | Z112: 0 | AA112: Referência: AGETOP - 40902 | AB112: SIM | AE112: (sem código) | AF112: - | AG112: 0 | AH112: 0
A113: 2 | B113: 2 | C113: 2 | D113: 32 | E113: 5 | F113: 2 | G113: 0 | H113: 0 | I113: 0 | J113: 32 | K113: 130 | M113: Nível 2 | N113: Nível 2 | O113: - | R113: INSTALAÇÕES ELÉTRICAS | S113: - | U113: 1 | V113: - | Y113: 0 | Z113: 0 | AE113: INSTALAÇÕES ELÉTRICAS | AF113: - | AG113: 0 | AH113: 0
A114: S | B114: 2 | C114: S | D114: 0 | E114: 5 | F114: 2 | G114: 0 | H114: 0 | I114: 0 | J114: 0 | K114: 0 | M114: Serviço | N114: Serviço | O114: - | P114: AGETOP | Q114: 70374 | R114: BRACADEIRA METALICA TIPO "D" DIAM. 1.1/2" | S114: Un | T114: 60 | U114: 1 | V114: 60 | Y114: 0 | Z114: 0 | AE114: (sem código) | AF114: - | AG114: 0 | AH114: 0
A115: S | B115: 2 | C115: S | D115: 0 | E115: 5 | F115: 2 | G115: 0 | H115: 0 | I115: 0 | J115: 0 | K115: 0 | M115: Serviço | N115: Serviço | O115: - | P115: AGETOP | Q115: 70424 | R115: BUCHA E ARRUELA METALICA DIAM. 1.1/2" | S115: PR | T115: 60 | U115: 1 | V115: 60 | Y115: 0 | Z115: 0 | AE115: (sem código) | AF115: - | AG115: 0 | AH115: 0
A116: S | B116: 2 | C116: S | D116: 0 | E116: 5 | F116: 2 | G116: 0 | H116: 0 | I116: 0 | J116: 0 | K116: 0 | M116: Serviço | N116: Serviço | O116: - | P116: AGETOP | Q116: 71254 | R116: ELETRODUTO EM AÇO ZINCADO DIÂMETRO 1.1/2" | S116: M | T116: 90 | U116: 1 | V116: 90 | Y116: 0 | Z116: 0 | AE116: (sem código) | AF116: - | AG116: 0 | AH116: 0
A117: S | B117: 2 | C117: S | D117: 0 | E117: 5 | F117: 2 | G117: 0 | H117: 0 | I117: 0 | J117: 0 | K117: 0 | M117: Serviço | N117: Serviço | O117: - | P117: AGETOP | Q117: 71724 | R117: LUVA EM AÇO ZINCADO DIÂMETRO 1.1/2" | S117: Un | T117: 16 | U117: 1 | V117: 16 | Y117: 0 | Z117: 0 | AE117: (sem código) | AF117: - | AG117: 0 | AH117: 0
A118: S | B118: 2 | C118: S | D118: 0 | E118: 5 | F118: 2 | G118: 0 | H118: 0 | I118: 0 | J118: 0 | K118: 0 | M118: Serviço | N118: Serviço | O118: - | P118: AGETOP | Q118: 71124 | R118: CURVA 90 GRAUS AÇO ZINCADO DIÂMETRO 1.1/2" | S118: Un | T118: 8 | U118: 1 | V118: 8 | Y118: 0 | Z118: 0 | AE118: (sem código) | AF118: - | AG118: 0 | AH118: 0
A119: S | B119: 2 | C119: S | D119: 0 | E119: 5 | F119: 2 | G119: 0 | H119: 0 | I119: 0 | J119: 0 | K119: 0 | M119: Serviço | N119: Serviço | O119: - | P119: SINAPI | Q119: 97667 | R119: ELETRODUTO FLEXÍVEL CORRUGADO, PEAD, DN 50 (1 ½) - FORNECIMENTO E INSTALAÇÃO. AF_04/2016 | S119: M | T119: 35 | U119: 1 | V119: 35 | Y119: 0 | Z119: 0 | AE119: (sem código) | AF119: - | AG119: 0 | AH119: 0
A120: S | B120: 2 | C120: S | D120: 0 | E120: 5 | F120: 2 | G120: 0 | H120: 0 | I120: 0 | J120: 0 | K120: 0 | M120: Serviço | N120: Serviço | O120: - | P120: SINAPI | Q120: 91845 | R120: ELETRODUTO FLEXÍVEL CORRUGADO REFORÇADO, PVC, DN 25 MM (3/4"), PARA CIRCUITOS TERMINAIS, INSTALADO EM LAJE - FORNECIMENTO E INSTALAÇÃO. AF_12/2015 | S120: M | T120: 145 | U120: 1 | V120: 145 | Y120: 0 | Z120: 0 | AE120: (sem código) | AF120: - | AG120: 0 | AH120: 0
A121: S | B121: 2 | C121: S | D121: 0 | E121: 5 | F121: 2 | G121: 0 | H121: 0 | I121: 0 | J121: 0 | K121: 0 | M121: Serviço | N121: Serviço | O121: - | P121: SINAPI | Q121: 91847 | R121: ELETRODUTO FLEXÍVEL CORRUGADO REFORÇADO, PVC, DN 32 MM (1"), PARA CIRCUITOS TERMINAIS, INSTALADO EM LAJE - FORNECIMENTO E INSTALAÇÃO. AF_12/2015 | S121: M | T121: 12 | U121: 1 | V121: 12 | Y121: 0 | Z121: 0 | AE121: (sem código) | AF121: - | AG121: 0 | AH121: 0
A122: S | B122: 2 | C122: S | D122: 0 | E122: 5 | F122: 2 | G122: 0 | H122: 0 | I122: 0 | J122: 0 | K122: 0 | M122: Serviço | N122: Serviço | O122: - | P122: AGETOP | Q122: 70681 | R122: CAIXA METALICA OCTOGONAL FUNDO MOVEL, SIMPLES 2" | S122: Un | T122: 28 | U122: 1 | V122: 28 | Y122: 0 | Z122: 0 | AE122: (sem código) | AF122: - | AG122: 0 | AH122: 0
A123: S | B123: 2 | C123: S | D123: 0 | E123: 5 | F123: 2 | G123: 0 | H123: 0 | I123: 0 | J123: 0 | K123: 0 | M123: Serviço | N123: Serviço | O123: - | P123: SINAPI | Q123: 97592 | R123: LUMINÁRIA TIPO PLAFON, DE SOBREPOR, COM 1 LÂMPADA LED DE 12/13 W, SEM REATOR - FORNECIMENTO E INSTALAÇÃO. AF_02/2020 | S123: UN | T123: 28 | U123: 1 | V123: 28 | Y123: 0 | Z123: 0 | AE123: (sem código) | AF123: - | AG123: 0 | AH123: 0
A124: S | B124: 2 | C124: S | D124: 0 | E124: 5 | F124: 2 | G124: 0 | H124: 0 | I124: 0 | J124: 0 | K124: 0 | M124: Serviço | N124: Serviço | O124: - | P124: AGETOP | Q124: 70924 | R124: CONDULETE DE PVC - CAIXA COM 5 ENTRADAS | S124: un | T124: 5 | U124: 1 | V124: 5 | Y124: 0 | Z124: 0 | AE124: (sem código) | AF124: - | AG124: 0 | AH124: 0
A125: S | B125: 2 | C125: S | D125: 0 | E125: 5 | F125: 2 | G125: 0 | H125: 0 | I125: 0 | J125: 0 | K125: 0 | M125: Serviço | N125: Serviço | O125: - | P125: SINAPI | Q125: 92008 | R125: TOMADA BAIXA DE EMBUTIR (2 MÓDULOS), 2P+T 10 A, INCLUINDO SUPORTE E PLACA - FORNECIMENTO E INSTALAÇÃO. AF_12/2015 | S125: UN | T125: 19 | U125: 1 | V125: 19 | Y125: 0 | Z125: 0 | AE125: (sem código) | AF125: - | AG125: 0 | AH125: 0
A126: S | B126: 2 | C126: S | D126: 0 | E126: 5 | F126: 2 | G126: 0 | H126: 0 | I126: 0 | J126: 0 | K126: 0 | M126: Serviço | N126: Serviço | O126: - | P126: SINAPI | Q126: 92004 | R126: TOMADA MÉDIA DE EMBUTIR (2 MÓDULOS), 2P+T 10 A, INCLUINDO SUPORTE E PLACA - FORNECIMENTO E INSTALAÇÃO. AF_12/2015 | S126: UN | T126: 3 | U126: 1 | V126: 3 | Y126: 0 | Z126: 0 | AA126: Referência: AGETOP - 72578 | AB126: SIM | AE126: (sem código) | AF126: - | AG126: 0 | AH126: 0
A127: S | B127: 2 | C127: S | D127: 0 | E127: 5 | F127: 2 | G127: 0 | H127: 0 | I127: 0 | J127: 0 | K127: 0 | M127: Serviço | N127: Serviço | O127: - | P127: SINAPI | Q127: 91992 | R127: TOMADA ALTA DE EMBUTIR (1 MÓDULO), 2P+T 10 A, INCLUINDO SUPORTE E PLACA - FORNECIMENTO E INSTALAÇÃO. AF_12/2015 | S127: UN | T127: 3 | U127: 1 | V127: 3 | Y127: 0 | Z127: 0 | AE127: (sem código) | AF127: - | AG127: 0 | AH127: 0
A128: S | B128: 2 | C128: S | D128: 0 | E128: 5 | F128: 2 | G128: 0 | H128: 0 | I128: 0 | J128: 0 | K128: 0 | M128: Serviço | N128: Serviço | O128: - | P128: AGETOP | Q128: 71440 | R128: INTERRUPTOR SIMPLES (1 SECAO) | S128: Un | T128: 11 | U128: 1 | V128: 11 | Y128: 0 | Z128: 0 | AE128: (sem código) | AF128: - | AG128: 0 | AH128: 0
A129: S | B129: 2 | C129: S | D129: 0 | E129: 5 | F129: 2 | G129: 0 | H129: 0 | I129: 0 | J129: 0 | K129: 0 | M129: Serviço | N129: Serviço | O129: - | P129: AGETOP | Q129: 71043 | R129: CONECTOR TRIPOLAR EM PORCELANA PARA FIOS DE ATÉ 10MM2 (BORNES) 50A-250V (CHUVEIRO) | S129: un | T129: 4 | U129: 1 | V129: 4 | Y129: 0 | Z129: 0 | AE129: (sem código) | AF129: - | AG129: 0 | AH129: 0
A130: S | B130: 2 | C130: S | D130: 0 | E130: 5 | F130: 2 | G130: 0 | H130: 0 | I130: 0 | J130: 0 | K130: 0 | M130: Serviço | N130: Serviço | O130: - | P130: AGETOP | Q130: 72575 | R130: TOMADA HEXAGONAL 2P + T - 20A - 250V (LINHA X OU EQUIVALENTE) | S130: Un | T130: 4 | U130: 1 | V130: 4 | Y130: 0 | Z130: 0 | AE130: (sem código) | AF130: - | AG130: 0 | AH130: 0
A131: S | B131: 2 | C131: S | D131: 0 | E131: 5 | F131: 2 | G131: 0 | H131: 0 | I131: 0 | J131: 0 | K131: 0 | M131: Serviço | N131: Serviço | O131: - | P131: SINAPI | Q131: 91926 | R131: CABO DE COBRE FLEXÍVEL ISOLADO, 2,5 MM², ANTI-CHAMA 450/750 V, PARA CIRCUITOS TERMINAIS - FORNECIMENTO E INSTALAÇÃO. AF_12/2015 | S131: M | T131: 755 | U131: 1 | V131: 755 | Y131: 0 | Z131: 0 | AA131: Referência: AGETOP - 70563 | AB131: SIM | AE131: (sem código) | AF131: - | AG131: 0 | AH131: 0
A132: S | B132: 2 | C132: S | D132: 0 | E132: 5 | F132: 2 | G132: 0 | H132: 0 | I132: 0 | J132: 0 | K132: 0 | M132: Serviço | N132: Serviço | O132: - | P132: SINAPI | Q132: 92982 | R132: CABO DE COBRE FLEXÍVEL ISOLADO, 16 MM², ANTI-CHAMA 0,6/1,0 KV, PARA DISTRIBUIÇÃO - FORNECIMENTO E INSTALAÇÃO. AF_12/2015 | S132: M | T132: 550 | U132: 1 | V132: 550 | Y132: 0 | Z132: 0 | AB132: NÃO | AE132: (sem código) | AF132: - | AG132: 0 | AH132: 0
A133: S | B133: 2 | C133: S | D133: 0 | E133: 5 | F133: 2 | G133: 0 | H133: 0 | I133: 0 | J133: 0 | K133: 0 | M133: Serviço | N133: Serviço | O133: - | P133: AGETOP | Q133: 70634 | R133: CAIXA DE PASSAGEM - TAMPA EM CONCRETO ARMADO 25 MPA E=5CM | S133: m2 | T133: 2 | U133: 1 | V133: 2 | Y133: 0 | Z133: 0 | AE133: (sem código) | AF133: - | AG133: 0 | AH133: 0
A134: S | B134: 2 | C134: S | D134: 0 | E134: 5 | F134: 2 | G134: 0 | H134: 0 | I134: 0 | J134: 0 | K134: 0 | M134: Serviço | N134: Serviço | O134: - | P134: AGETOP | Q134: 70714 | R134: CAIXA DE PASSAGEM 50X50X80CM FUNDO DE BRITA SEM TAMPA | S134: Un | T134: 2 | U134: 1 | V134: 2 | Y134: 0 | Z134: 0 | AE134: (sem código) | AF134: - | AG134: 0 | AH134: 0
A135: S | B135: 2 | C135: S | D135: 0 | E135: 5 | F135: 2 | G135: 0 | H135: 0 | I135: 0 | J135: 0 | K135: 0 | M135: Serviço | N135: Serviço | O135: - | P135: SINAPI | Q135: 74131/6 | R135: QUADRO DE DISTRIBUICAO DE ENERGIA DE EMBUTIR, EM CHAPA METALICA, PARA 32 DISJUNTORES TERMOMAGNETICOS MONOPOLARES, COM BARRAMENTO TRIFASICO E NEUTRO, FORNECIMENTO E INSTALACAO | S135: UN | T135: 1 | U135: 1 | V135: 1 | Y135: 0 | Z135: 0 | AB135: NÃO | AE135: (sem código) | AF135: - | AG135: 0 | AH135: 0
A136: S | B136: 2 | C136: S | D136: 0 | E136: 5 | F136: 2 | G136: 0 | H136: 0 | I136: 0 | J136: 0 | K136: 0 | M136: Serviço | N136: Serviço | O136: - | P136: AGETOP | Q136: 71184 | R136: DISPOSITIVO DE PROTEÇÃO CONTRA SURTOS (D.P.S.) 275V DE 8 A 40KA | S136: Un | T136: 3 | U136: 1 | V136: 3 | Y136: 0 | Z136: 0 | AE136: (sem código) | AF136: - | AG136: 0 | AH136: 0
A137: S | B137: 2 | C137: S | D137: 0 | E137: 5 | F137: 2 | G137: 0 | H137: 0 | I137: 0 | J137: 0 | K137: 0 | M137: Serviço | N137: Serviço | O137: - | P137: SINAPI | Q137: 93655 | R137: DISJUNTOR MONOPOLAR TIPO DIN, CORRENTE NOMINAL DE 20A - FORNECIMENTO E INSTALAÇÃO. AF_04/2016 | S137: UN | T137: 6 | U137: 1 | V137: 6 | Y137: 0 | Z137: 0 | AE137: (sem código) | AF137: - | AG137: 0 | AH137: 0
A138: S | B138: 2 | C138: S | D138: 0 | E138: 5 | F138: 2 | G138: 0 | H138: 0 | I138: 0 | J138: 0 | K138: 0 | M138: Serviço | N138: Serviço | O138: - | P138: SINAPI | Q138: 93654 | R138: DISJUNTOR MONOPOLAR TIPO DIN, CORRENTE NOMINAL DE 16A - FORNECIMENTO E INSTALAÇÃO. AF_04/2016 | S138: UN | T138: 12 | U138: 1 | V138: 12 | Y138: 0 | Z138: 0 | AB138: NÃO | AE138: (sem código) | AF138: - | AG138: 0 | AH138: 0
A139: S | B139: 2 | C139: S | D139: 0 | E139: 5 | F139: 2 | G139: 0 | H139: 0 | I139: 0 | J139: 0 | K139: 0 | M139: Serviço | N139: Serviço | O139: - | P139: AGETOP | Q139: 71450 | R139: INTERRUPTOR DIFERENCIAL RESIDUAL (D.R.) BIPOLAR DE 25A-30mA | S139: Un | T139: 3 | U139: 1 | V139: 3 | Y139: 0 | Z139: 0 | AE139: (sem código) | AF139: - | AG139: 0 | AH139: 0
A140: S | B140: 2 | C140: S | D140: 0 | E140: 5 | F140: 2 | G140: 0 | H140: 0 | I140: 0 | J140: 0 | K140: 0 | M140: Serviço | N140: Serviço | O140: - | P140: SINAPI | Q140: 93672 | R140: DISJUNTOR TRIPOLAR TIPO DIN, CORRENTE NOMINAL DE 40A - FORNECIMENTO E INSTALAÇÃO. AF_04/2016 | S140: UN | T140: 2 | U140: 1 | V140: 2 | Y140: 0 | Z140: 0 | AA140: Referência: AGETOP - 71174 | AB140: SIM | AE140: (sem código) | AF140: - | AG140: 0 | AH140: 0
A141: S | B141: 2 | C141: S | D141: 0 | E141: 5 | F141: 2 | G141: 0 | H141: 0 | I141: 0 | J141: 0 | K141: 0 | M141: Serviço | N141: Serviço | O141: - | P141: AGETOP | Q141: 70764 | R141: CANALETA COM TAMPA (LINHA X OU EQUIVALENTE) 50X20X2000 MM | S141: M | T141: 2 | U141: 1 | V141: 2 | Y141: 0 | Z141: 0 | AE141: (sem código) | AF141: - | AG141: 0 | AH141: 0
A142: S | B142: 2 | C142: S | D142: 0 | E142: 5 | F142: 2 | G142: 0 | H142: 0 | I142: 0 | J142: 0 | K142: 0 | M142: Serviço | N142: Serviço | O142: - | P142: AGETOP | Q142: 72630 | R142: TRILHO OU SUPORTE P/BORNE TERMINAL | S142: M | T142: 2 | U142: 1 | V142: 2 | Y142: 0 | Z142: 0 | AE142: (sem código) | AF142: - | AG142: 0 | AH142: 0
A143: S | B143: 2 | C143: S | D143: 0 | E143: 5 | F143: 2 | G143: 0 | H143: 0 | I143: 0 | J143: 0 | K143: 0 | M143: Serviço | N143: Serviço | O143: - | P143: AGETOP | Q143: 71331 | R143: FITA ISOLANTE, ROLO DE 20,00 M | S143: Un | T143: 2 | U143: 1 | V143: 2 | Y143: 0 | Z143: 0 | AE143: (sem código) | AF143: - | AG143: 0 | AH143: 0
A144: S | B144: 2 | C144: S | D144: 0 | E144: 5 | F144: 2 | G144: 0 | H144: 0 | I144: 0 | J144: 0 | K144: 0 | M144: Serviço | N144: Serviço | O144: - | P144: AGETOP | Q144: 71321 | R144: FITA DE AUTO FUSAO, ROLO E 10,00 MM | S144: Un | T144: 4 | U144: 1 | V144: 4 | Y144: 0 | Z144: 0 | AE144: (sem código) | AF144: - | AG144: 0 | AH144: 0
A145: 1 | B145: 1 | C145: 1 | D145: 85 | E145: 6 | F145: 0 | G145: 0 | H145: 0 | I145: 0 | J145: 139 | K145: 85 | L145: F | M145: Nível 1 | N145: Nível 1 | O145: 6. | P145: AGETOP | R145: PROJETO HIDROSSANITÁRIO | S145: UN | T145: 1 | U145: 1 | V145: 1 | Y145: 0 | Z145: 0 | AE145: PROJETO HIDROSSANITÁRIO | AF145: - | AG145: 0 | AH145: 0
A146: 2 | B146: 2 | C146: 2 | D146: 84 | E146: 6 | F146: 1 | G146: 0 | H146: 0 | I146: 0 | J146: 84 | K146: 94 | M146: Nível 2 | N146: Nível 2 | O146: - | P146: AGETOP | R146: INSTALAÇÕES HIDROSSANITÁRIAS | S146: - | U146: 1 | V146: - | Y146: 0 | Z146: 0 | AE146: INSTALAÇÕES HIDROSSANITÁRIAS | AF146: - | AG146: 0 | AH146: 0
A147: 3 | B147: 3 | C147: 3 | D147: 28 | E147: 6 | F147: 1 | G147: 1 | H147: 0 | I147: 0 | J147: 83 | K147: 28 | M147: Nível 3 | N147: Nível 3 | O147: - | P147: SINAPI | R147: PEÇAS E ACESSÓRIOS | S147: - | U147: 1 | V147: - | Y147: 0 | Z147: 0 | AE147: PEÇAS E ACESSÓRIOS | AF147: - | AG147: 0 | AH147: 0
A148: 4 | B148: 4 | C148: 4 | D148: 11 | E148: 6 | F148: 1 | G148: 1 | H148: 1 | I148: 0 | J148: 27 | K148: 11 | M148: Nível 4 | N148: Nível 4 | O148: - | P148: SINAPI | R148: VASO SANITÁRIO E ACESSÓRIOS | S148: - | U148: 1 | V148: - | Y148: 0 | Z148: 0 | AE148: VASO SANITÁRIO E ACESSÓRIOS | AF148: - | AG148: 0 | AH148: 0
A149: S | B149: 4 | C149: S | D149: 0 | E149: 6 | F149: 1 | G149: 1 | H149: 1 | I149: 0 | J149: =IF(OR($C149="S",$C149=0),0,MATCH(0,OFFSET($D149,1,$C149,ROW($C$284)-ROW($C149)),0)) -> 0 | K149: =IF(OR($C149="S",$C149=0),0,MATCH(OFFSET($D149,0,$C149)+1,OFFSET($D149,1,$C149,ROW($C$284)-ROW($C149)),0)) -> 0 | M149: Serviço | N149: Serviço | O149: - | P149: SINAPI | Q149: 95469 | R149: VASO SANITARIO SIFONADO CONVENCIONAL COM LOUÇA BRANCA - FORNECIMENTO E INSTALAÇÃO. AF_01/2020 | S149: UN | T149: 1 | U149: 1 | V149: 1 | Y149: 0 | Z149: 0 | AE149: (sem código) | AF149: - | AG149: 0 | AH149: 0
A150: S | B150: 4 | C150: S | D150: 0 | E150: 6 | F150: 1 | G150: 1 | H150: 1 | I150: 0 | J150: 0 | K150: 0 | M150: Serviço | N150: Serviço | O150: - | P150: AGETOP | Q150: 80517 | R150: VÁLVULA DE DESCARGA DUPLO ACIONAMENTO COM ACABAMENTO CROMADO ANTIVANDALISMO | S150: Un | T150: 1 | U150: 1 | V150: 1 | Y150: 0 | Z150: 0 | AE150: (sem código) | AF150: - | AG150: 0 | AH150: 0
A151: S | B151: 4 | C151: S | D151: 0 | E151: 6 | F151: 1 | G151: 1 | H151: 1 | I151: 0 | J151: 0 | K151: 0 | M151: Serviço | N151: Serviço | O151: - | P151: SINAPI | Q151: 95471 | R151: VASO SANITARIO SIFONADO CONVENCIONAL PARA PCD SEM FURO FRONTAL COM LOUÇA BRANCA SEM ASSENTO - FORNECIMENTO E INSTALAÇÃO. AF_01/2020 | S151: UN | T151: 1 | U151: 1 | V151: 1 | Y151: 0 | Z151: 0 | AE151: (sem código) | AF151: - | AG151: 0 | AH151: 0
A152: S | B152: 4 | C152: S | D152: 0 | E152: 6 | F152: 1 | G152: 1 | H152: 1 | I152: 0 | J152: 0 | K152: 0 | M152: Serviço | N152: Serviço | O152: - | P152: AGETOP | Q152: 80519 | R152: VÁLVULA DE DESCARGA PARA P.N.E. COM ACABAMENTO CROMADO ANTIVANDALISMO | S152: un | T152: 1 | U152: 1 | V152: 1 | Y152: 0 | Z152: 0 | AE152: (sem código) | AF152: - | AG152: 0 | AH152: 0
A153: S | B153: 4 | C153: S | D153: 0 | E153: 6 | F153: 1 | G153: 1 | H153: 1 | I153: 0 | J153: 0 | K153: 0 | M153: Serviço | N153: Serviço | O153: - | P153: AGETOP | Q153: 80520 | R153: CONJUNTO DE FIXACAO P/VASO SANITARIO (PAR) | S153: CJ | T153: 2 | U153: 1 | V153: 2 | Y153: 0 | Z153: 0 | AE153: (sem código) | AF153: - | AG153: 0 | AH153: 0
A154: S | B154: 4 | C154: S | D154: 0 | E154: 6 | F154: 1 | G154: 1 | H154: 1 | I154: 0 | J154: 0 | K154: 0 | M154: Serviço | N154: Serviço | O154: - | P154: AGETOP | Q154: 80526 | R154: ASSENTO EM POLIPROPILENO COM SISTEMA DE FECHAMENTO SUAVE PARA VASO SANITÁRIO | S154: Un | T154: 2 | U154: 1 | V154: 2 | Y154: 0 | Z154: 0 | AE154: (sem código) | AF154: - | AG154: 0 | AH154: 0
A155: S | B155: 4 | C155: S | D155: 0 | E155: 6 | F155: 1 | G155: 1 | H155: 1 | I155: 0 | J155: 0 | K155: 0 | M155: Serviço | N155: Serviço | O155: - | P155: AGETOP | Q155: 80513 | R155: TUBO PARA VÁLVULA DE DESCARGA ( CURTO 1.1/4" ) | S155: Un | T155: 2 | U155: 1 | V155: 2 | Y155: 0 | Z155: 0 | AE155: (sem código) | AF155: - | AG155: 0 | AH155: 0
A156: S | B156: 4 | C156: S | D156: 0 | E156: 6 | F156: 1 | G156: 1 | H156: 1 | I156: 0 | J156: 0 | K156: 0 | M156: Serviço | N156: Serviço | O156: - | P156: AGETOP | Q156: 80514 | R156: TUBO DE LIGACAO PVC CROMADO 1.1/2" / ESPUDE - (ENTRADA) | S156: Un | T156: 2 | U156: 1 | V156: 2 | Y156: 0 | Z156: 0 | AE156: (sem código) | AF156: - | AG156: 0 | AH156: 0
A157: S | B157: 4 | C157: S | D157: 0 | E157: 6 | F157: 1 | G157: 1 | H157: 1 | I157: 0 | J157: 0 | K157: 0 | M157: Serviço | N157: Serviço | O157: - | P157: AGETOP | Q157: 80510 | R157: ANEL DE VEDAÇÃO PARA VASO SANITÁRIO | S157: Un | T157: 2 | U157: 1 | V157: 2 | Y157: 0 | Z157: 0 | AE157: (sem código) | AF157: - | AG157: 0 | AH157: 0
A158: S | B158: 4 | C158: S | D158: 0 | E158: 6 | F158: 1 | G158: 1 | H158: 1 | I158: 0 | J158: 0 | K158: 0 | M158: Serviço | N158: Serviço | O158: - | P158: SINAPI | Q158: 95544 | R158: PAPELEIRA DE PAREDE EM METAL CROMADO SEM TAMPA, INCLUSO FIXAÇÃO. AF_01/2020 | S158: UN | T158: 2 | U158: 1 | V158: 2 | Y158: 0 | Z158: 0 | AB158: NÃO | AE158: (sem código) | AF158: - | AG158: 0 | AH158: 0
A159: 4 | B159: 4 | C159: 4 | D159: 8 | E159: 6 | F159: 1 | G159: 1 | H159: 2 | I159: 0 | J159: 16 | K159: 8 | M159: Nível 4 | N159: Nível 4 | O159: - | P159: SINAPI | R159: LAVATÓRIO E ACESSÓRIOS | S159: - | U159: 1 | V159: - | Y159: 0 | Z159: 0 | AE159: LAVATÓRIO E ACESSÓRIOS | AF159: - | AG159: 0 | AH159: 0
A160: S | B160: 4 | C160: S | D160: 0 | E160: 6 | F160: 1 | G160: 1 | H160: 2 | I160: 0 | J160: 0 | K160: 0 | M160: Serviço | N160: Serviço | O160: - | P160: AGETOP | Q160: 80541 | R160: LAVATÓRIO MÉDIO COM COLUNA | S160: Un | T160: 1 | U160: 1 | V160: 1 | Y160: 0 | Z160: 0 | AE160: (sem código) | AF160: - | AG160: 0 | AH160: 0
A161: S | B161: 4 | C161: S | D161: 0 | E161: 6 | F161: 1 | G161: 1 | H161: 2 | I161: 0 | J161: 0 | K161: 0 | M161: Serviço | N161: Serviço | O161: - | P161: AGETOP | Q161: 80542 | R161: LAVATÓRIO MÉDIO SEM COLUNA | S161: Un | T161: 1 | U161: 1 | V161: 1 | Y161: 0 | Z161: 0 | AE161: (sem código) | AF161: - | AG161: 0 | AH161: 0
A162: S | B162: 4 | C162: S | D162: 0 | E162: 6 | F162: 1 | G162: 1 | H162: 2 | I162: 0 | J162: 0 | K162: 0 | M162: Serviço | N162: Serviço | O162: - | P162: AGETOP | Q162: 80550 | R162: FIXACAO P/LAVATORIO (PAR) | S162: PAR | T162: 2 | U162: 1 | V162: 2 | Y162: 0 | Z162: 0 | AE162: (sem código) | AF162: - | AG162: 0 | AH162: 0
A163: S | B163: 4 | C163: S | D163: 0 | E163: 6 | F163: 1 | G163: 1 | H163: 2 | I163: 0 | J163: 0 | K163: 0 | M163: Serviço | N163: Serviço | O163: - | P163: AGETOP | Q163: 80555 | R163: LIGAÇÃO FLEXÍVEL METÁLICA DIAM.1/2"(ENGATE) | S163: Un | T163: 2 | U163: 1 | V163: 2 | Y163: 0 | Z163: 0 | AE163: (sem código) | AF163: - | AG163: 0 | AH163: 0
A164: S | B164: 4 | C164: S | D164: 0 | E164: 6 | F164: 1 | G164: 1 | H164: 2 | I164: 0 | J164: 0 | K164: 0 | M164: Serviço | N164: Serviço | O164: - | P164: SINAPI | Q164: 86883 | R164: SIFÃO DO TIPO FLEXÍVEL EM PVC 1 X 1.1/2 - FORNECIMENTO E INSTALAÇÃO. AF_01/2020 | S164: UN | T164: 2 | U164: 1 | V164: 2 | Y164: 0 | Z164: 0 | AB164: NÃO | AE164: (sem código) | AF164: - | AG164: 0 | AH164: 0
A165: S | B165: 4 | C165: S | D165: 0 | E165: 6 | F165: 1 | G165: 1 | H165: 2 | I165: 0 | J165: 0 | K165: 0 | M165: Serviço | N165: Serviço | O165: - | P165: AGETOP | Q165: 80570 | R165: TORNEIRA DE MESA PARA LAVATÓRIO DIÂMETRO DE 1/2" | S165: Un | T165: 2 | U165: 1 | V165: 2 | Y165: 0 | Z165: 0 | AE165: (sem código) | AF165: - | AG165: 0 | AH165: 0
A166: S | B166: 4 | C166: S | D166: 0 | E166: 6 | F166: 1 | G166: 1 | H166: 2 | I166: 0 | J166: 0 | K166: 0 | M166: Serviço | N166: Serviço | O166: - | P166: AGETOP | Q166: 80580 | R166: VALVULA P/LAVATORIO OU BEBEDOURO METALICO DIAMETRO 1" | S166: Un | T166: 2 | U166: 1 | V166: 2 | Y166: 0 | Z166: 0 | AE166: (sem código) | AF166: - | AG166: 0 | AH166: 0
A167: 4 | B167: 4 | C167: 4 | D167: 5 | E167: 6 | F167: 1 | G167: 1 | H167: 3 | I167: 0 | J167: 8 | K167: 5 | M167: Nível 4 | N167: Nível 4 | O167: - | P167: SINAPI | R167: PIA E ACESSÓRIOS | S167: - | U167: 1 | V167: - | Y167: 0 | Z167: 0 | AE167: PIA E ACESSÓRIOS | AF167: - | AG167: 0 | AH167: 0
A168: S | B168: 4 | C168: S | D168: 0 | E168: 6 | F168: 1 | G168: 1 | H168: 3 | I168: 0 | J168: 0 | K168: 0 | M168: Serviço | N168: Serviço | O168: - | P168: AGETOP | Q168: 80660 | R168: TORNEIRA DE PAREDE PARA PIA OU BEBEDOURO DIÂMETRO DE 1/2" E 3/4" | S168: Un | T168: 1 | U168: 1 | V168: 1 | Y168: 0 | Z168: 0 | AE168: (sem código) | AF168: - | AG168: 0 | AH168: 0
A169: S | B169: 4 | C169: S | D169: 0 | E169: 6 | F169: 1 | G169: 1 | H169: 3 | I169: 0 | J169: 0 | K169: 0 | M169: Serviço | N169: Serviço | O169: - | P169: AGETOP | Q169: 80670 | R169: SIFAO P/PIA 1.1/2" X 2" METAL | S169: Un | T169: 1 | U169: 1 | V169: 1 | Y169: 0 | Z169: 0 | AE169: (sem código) | AF169: - | AG169: 0 | AH169: 0
A170: S | B170: 4 | C170: S | D170: 0 | E170: 6 | F170: 1 | G170: 1 | H170: 3 | I170: 0 | J170: 0 | K170: 0 | M170: Serviço | N170: Serviço | O170: - | P170: SINAPI | Q170: 86878 | R170: VÁLVULA EM METAL CROMADO TIPO AMERICANA 3.1/2 X 1.1/2 PARA PIA - FORNECIMENTO E INSTALAÇÃO. AF_01/2020 | S170: UN | T170: 1 | U170: 1 | V170: 1 | Y170: 0 | Z170: 0 | AB170: NÃO | AE170: (sem código) | AF170: - | AG170: 0 | AH170: 0
A171: =CHOOSE(1+LOG(1+2*(ORÇAMENTO.Nivel="Nível 1")+4*(ORÇAMENTO.Nivel="Nível 2")+8*(ORÇAMENTO.Nivel="Nível 3")+16*(ORÇAMENTO.Nivel="Nível 4")+32*(ORÇAMENTO.Nivel="Serviço"),2),0,1,2,3,4,"S") -> S | B171: =IF(OR(C171="s",C171=0),OFFSET(B171,-1,0),C171) -> 4 | C171: =IF(OFFSET(C171,-1,0)="L",1,IF(OFFSET(C171,-1,0)=1,2,IF(OR(A171="s",A171=0),"S",IF(AND(OFFSET(C171,-1,0)=2,A171=4),3,IF(AND(OR(OFFSET(C171,-1,0)="s",OFFSET(C171,-1,0)=0),A171<>"s",A171>OFFSET(B171,-1,0)),OFFSET(B171,-1,0),A171))))) -> S | D171: =IF(OR(C171="S",C171=0),0,IF(ISERROR(K171),J171,SMALL(J171:K171,1))) -> 0 | E171: =IF($C171=1,OFFSET(E171,-1,0)+1,OFFSET(E171,-1,0)) -> 6 | F171: =IF($C171=1,0,IF($C171=2,OFFSET(F171,-1,0)+1,OFFSET(F171,-1,0))) -> 1 | G171: =IF(AND($C171<=2,$C171<>0),0,IF($C171=3,OFFSET(G171,-1,0)+1,OFFSET(G171,-1,0))) -> 1 | H171: =IF(AND($C171<=3,$C171<>0),0,IF($C171=4,OFFSET(H171,-1,0)+1,OFFSET(H171,-1,0))) -> 3 | I171: =IF(AND($C171<=4,$C171<>0),0,IF(AND($C171="S",$Y171>0),OFFSET(I171,-1,0)+1,OFFSET(I171,-1,0))) -> 0 | J171: 0 | K171: 0 | L171: =IF(OR(Y171>0,$C171=1),"F","") ->  | M171: Serviço | N171: =CHOOSE(1+LOG(1+2*(C171=1)+4*(C171=2)+8*(C171=3)+16*(C171=4)+32*(C171="S"),2),"","Nível 1","Nível 2","Nível 3","Nível 4","Serviço") -> Serviço | O171: - | P171: AGETOP | Q171: 80689 | R171: CUBA INOX 50X40X20CM E=0,7MM-AÇO 304 | S171: Un | T171: 1 | U171: 1 | V171: 1 | Y171: 0 | Z171: 0 | AC171: =IFERROR(VLOOKUP(Q171,INDIRECT("EQUIVALÊNCIAS"),4,FALSE),"") ->  | AD171: =IFERROR(VLOOKUP(Q171,INDIRECT("EQUIVALÊNCIAS"),5,FALSE),"") ->  | AE171: =IFERROR(IF(OR($C171=0,$C171=1,$C171=2,$C171=3,$C171=4),R171,VLOOKUP($AD171,INDIRECT($AC171),2,FALSE)),"(sem código)") -> (sem código) | AF171: =IFERROR(VLOOKUP(AD171,INDIRECT(AC171),3,FALSE()),"-") -> - | AG171: =IFERROR(VLOOKUP($AD171,INDIRECT($AC171),IF($T$10="DESONERADA",4,7),FALSE()),0) -> 0 | AH171: =IFERROR(VLOOKUP($AD171,INDIRECT($AC171),IF($T$10="DESONERADA",5,8),FALSE()),0) -> 0
A172: 4 | B172: 4 | C172: 4 | D172: 3 | E172: 6 | F172: 1 | G172: 1 | H172: 4 | I172: 0 | J172: 3 | K172: 18 | M172: Nível 4 | N172: Nível 4 | O172: - | P172: SINAPI | R172: REGISTROS | S172: - | U172: 1 | V172: - | Y172: 0 | Z172: 0 | AE172: REGISTROS | AF172: - | AG172: 0 | AH172: 0
A173: S | B173: 4 | C173: S | D173: 0 | E173: 6 | F173: 1 | G173: 1 | H173: 4 | I173: 0 | J173: 0 | K173: 0 | M173: Serviço | N173: Serviço | O173: - | P173: SINAPI | Q173: 89985 | R173: REGISTRO DE PRESSÃO BRUTO, LATÃO, ROSCÁVEL, 3/4", COM ACABAMENTO E CANOPLA CROMADOS. FORNECIDO E INSTALADO EM RAMAL DE ÁGUA. AF_12/2014 | S173: UN | T173: 1 | U173: 1 | V173: 1 | Y173: 0 | Z173: 0 | AA173: Referência: AGETOP - 80926 | AB173: SIM | AE173: (sem código) | AF173: - | AG173: 0 | AH173: 0
A174: S | B174: 4 | C174: S | D174: 0 | E174: 6 | F174: 1 | G174: 1 | H174: 4 | I174: 0 | J174: 0 | K174: 0 | M174: Serviço | N174: Serviço | O174: - | P174: SINAPI | Q174: 94492 | R174: REGISTRO DE ESFERA, PVC, SOLDÁVEL, DN 50 MM, INSTALADO EM RESERVAÇÃO DE ÁGUA DE EDIFICAÇÃO QUE POSSUA RESERVATÓRIO DE FIBRA/FIBROCIMENTO FORNECIMENTO E INSTALAÇÃO. AF_06/2016 | S174: UN | T174: 2 | U174: 1 | V174: 2 | Y174: 0 | Z174: 0 | AB174: NÃO | AE174: (sem código) | AF174: - | AG174: 0 | AH174: 0
A175: 3 | B175: 3 | C175: 3 | D175: 29 | E175: 6 | F175: 1 | G175: 2 | H175: 0 | I175: 0 | J175: 55 | K175: 29 | M175: Nível 3 | N175: Nível 3 | O175: - | P175: SINAPI | R175: ÁGUA FRIA | S175: - | U175: 1 | V175: - | Y175: 0 | Z175: 0 | AE175: ÁGUA FRIA | AF175: - | AG175: 0 | AH175: 0
A176: 4 | B176: 4 | C176: 4 | D176: 3 | E176: 6 | F176: 1 | G176: 2 | H176: 1 | I176: 0 | J176: 28 | K176: 3 | M176: Nível 4 | N176: Nível 4 | O176: - | P176: SINAPI | R176: TUBOS DE PVC SOLDÁVEL | S176: - | U176: 1 | V176: - | Y176: 0 | Z176: 0 | AE176: TUBOS DE PVC SOLDÁVEL | AF176: - | AG176: 0 | AH176: 0
A177: S | B177: 4 | C177: S | D177: 0 | E177: 6 | F177: 1 | G177: 2 | H177: 1 | I177: 0 | J177: 0 | K177: 0 | M177: Serviço | N177: Serviço | O177: - | P177: AGETOP | Q177: 81003 | R177: TUBO SOLDAVEL PVC MARROM DIAMETRO 25 mm | S177: M | T177: 36 | U177: 1 | V177: 36 | Y177: 0 | Z177: 0 | AE177: (sem código) | AF177: - | AG177: 0 | AH177: 0
A178: S | B178: 4 | C178: S | D178: 0 | E178: 6 | F178: 1 | G178: 2 | H178: 1 | I178: 0 | J178: 0 | K178: 0 | M178: Serviço | N178: Serviço | O178: - | P178: SINAPI | Q178: 89449 | R178: TUBO, PVC, SOLDÁVEL, DN 50MM, INSTALADO EM PRUMADA DE ÁGUA - FORNECIMENTO E INSTALAÇÃO. AF_12/2014 | S178: M | T178: 24 | U178: 1 | V178: 24 | Y178: 0 | Z178: 0 | AB178: NÃO | AE178: (sem código) | AF178: - | AG178: 0 | AH178: 0
A179: 4 | B179: 4 | C179: 4 | D179: 5 | E179: 6 | F179: 1 | G179: 2 | H179: 2 | I179: 0 | J179: 25 | K179: 5 | M179: Nível 4 | N179: Nível 4 | O179: - | P179: SINAPI | R179: ADAPTADORES DE PVC SOLDÁVEL | S179: - | U179: 1 | V179: - | Y179: 0 | Z179: 0 | AE179: ADAPTADORES DE PVC SOLDÁVEL | AF179: - | AG179: 0 | AH179: 0
A180: S | B180: 4 | C180: S | D180: 0 | E180: 6 | F180: 1 | G180: 2 | H180: 2 | I180: 0 | J180: 0 | K180: 0 | M180: Serviço | N180: Serviço | O180: - | P180: AGETOP | Q180: 81041 | R180: ADAPTAD.PVC SOLD.LONGO C/FLANGES LIVRES P/CX.DAGUA 25X3/4" | S180: Un | T180: 2 | U180: 1 | V180: 2 | Y180: 0 | Z180: 0 | AE180: (sem código) | AF180: - | AG180: 0 | AH180: 0
A181: S | B181: 4 | C181: S | D181: 0 | E181: 6 | F181: 1 | G181: 2 | H181: 2 | I181: 0 | J181: 0 | K181: 0 | M181: Serviço | N181: Serviço | O181: - | P181: SINAPI | Q181: 89429 | R181: ADAPTADOR CURTO COM BOLSA E ROSCA PARA REGISTRO, PVC, SOLDÁVEL, DN 25MM X 3/4, INSTALADO EM RAMAL DE DISTRIBUIÇÃO DE ÁGUA - FORNECIMENTO E INSTALAÇÃO. AF_12/2014 | S181: UN | T181: 4 | U181: 1 | V181: 4 | Y181: 0 | Z181: 0 | AA181: Referência: AGETOP - 81066 | AB181: SIM | AE181: (sem código) | AF181: - | AG181: 0 | AH181: 0
A182: S | B182: 4 | C182: S | D182: 0 | E182: 6 | F182: 1 | G182: 2 | H182: 2 | I182: 0 | J182: 0 | K182: 0 | M182: Serviço | N182: Serviço | O182: - | P182: AGETOP | Q182: 81043 | R182: ADAPTAD.PVC SOLD.LONGO C/FLANGES LIVRES P/ CX.DAGUA 50X1.1/2 | S182: Un | T182: 2 | U182: 1 | V182: 2 | Y182: 0 | Z182: 0 | AE182: (sem código) | AF182: - | AG182: 0 | AH182: 0
A183: S | B183: 4 | C183: S | D183: 0 | E183: 6 | F183: 1 | G183: 2 | H183: 2 | I183: 0 | J183: 0 | K183: 0 | M183: Serviço | N183: Serviço | O183: - | P183: SINAPI | Q183: 94662 | R183: ADAPTADOR CURTO COM BOLSA E ROSCA PARA REGISTRO, PVC, SOLDÁVEL, DN 50 MM X 1 1/2 , INSTALADO EM RESERVAÇÃO DE ÁGUA DE EDIFICAÇÃO QUE POSSUA RESERVATÓRIO DE FIBRA/FIBROCIMENTO FORNECIMENTO E INSTALAÇÃO. AF_06/2016 | S183: UN | T183: 6 | U183: 1 | V183: 6 | Y183: 0 | Z183: 0 | AA183: Referência: AGETOP - 81069 | AB183: SIM | AE183: (sem código) | AF183: - | AG183: 0 | AH183: 0
A184: 4 | B184: 4 | C184: 4 | D184: 4 | E184: 6 | F184: 1 | G184: 2 | H184: 3 | I184: 0 | J184: 20 | K184: 4 | M184: Nível 4 | N184: Nível 4 | O184: - | P184: SINAPI | R184: LUVAS DE PVC | S184: - | U184: 1 | V184: - | Y184: 0 | Z184: 0 | AE184: LUVAS DE PVC | AF184: - | AG184: 0 | AH184: 0
A185: S | B185: 4 | C185: S | D185: 0 | E185: 6 | F185: 1 | G185: 2 | H185: 3 | I185: 0 | J185: 0 | K185: 0 | M185: Serviço | N185: Serviço | O185: - | P185: SINAPI | Q185: 89528 | R185: LUVA, PVC, SOLDÁVEL, DN 25MM, INSTALADO EM PRUMADA DE ÁGUA - FORNECIMENTO E INSTALAÇÃO. AF_12/2014 | S185: UN | T185: 2 | U185: 1 | V185: 2 | Y185: 0 | Z185: 0 | AB185: NÃO | AE185: (sem código) | AF185: - | AG185: 0 | AH185: 0
A186: S | B186: 4 | C186: S | D186: 0 | E186: 6 | F186: 1 | G186: 2 | H186: 3 | I186: 0 | J186: 0 | K186: 0 | M186: Serviço | N186: Serviço | O186: - | P186: SINAPI | Q186: 89558 | R186: LUVA, PVC, SOLDÁVEL, DN 40MM, INSTALADO EM PRUMADA DE ÁGUA - FORNECIMENTO E INSTALAÇÃO. AF_12/2014 | S186: UN | T186: 3 | U186: 1 | V186: 3 | Y186: 0 | Z186: 0 | AB186: NÃO | AE186: (sem código) | AF186: - | AG186: 0 | AH186: 0
A187: S | B187: 4 | C187: S | D187: 0 | E187: 6 | F187: 1 | G187: 2 | H187: 3 | I187: 0 | J187: 0 | K187: 0 | M187: Serviço | N187: Serviço | O187: - | P187: AGETOP | Q187: 81105 | R187: LUVA SOLDAVEL DIAMETRO 50 mm | S187: Un | T187: 3 | U187: 1 | V187: 3 | Y187: 0 | Z187: 0 | AE187: (sem código) | AF187: - | AG187: 0 | AH187: 0
A188: 4 | B188: 4 | C188: 4 | D188: 2 | E188: 6 | F188: 1 | G188: 2 | H188: 4 | I188: 0 | J188: 16 | K188: 2 | M188: Nível 4 | N188: Nível 4 | O188: - | P188: SINAPI | R188: BUCHAS | S188: - | U188: 1 | V188: - | Y188: 0 | Z188: 0 | AE188: BUCHAS | AF188: - | AG188: 0 | AH188: 0
A189: S | B189: 4 | C189: S | D189: 0 | E189: 6 | F189: 1 | G189: 2 | H189: 4 | I189: 0 | J189: 0 | K189: 0 | M189: Serviço | N189: Serviço | O189: - | P189: SINAPI | Q189: 89579 | R189: LUVA DE REDUÇÃO, PVC, SOLDÁVEL, DN 50MM X 25MM, INSTALADO EM PRUMADA DE ÁGUA FORNECIMENTO E INSTALAÇÃO. AF_12/2014 | S189: UN | T189: 2 | U189: 1 | V189: 2 | Y189: 0 | Z189: 0 | AE189: (sem código) | AF189: - | AG189: 0 | AH189: 0
A190: 4 | B190: 4 | C190: 4 | D190: 4 | E190: 6 | F190: 1 | G190: 2 | H190: 5 | I190: 0 | J190: 14 | K190: 4 | M190: Nível 4 | N190: Nível 4 | O190: - | P190: SINAPI | R190: JOELHO | S190: - | U190: 1 | V190: - | Y190: 0 | Z190: 0 | AE190: JOELHO | AF190: - | AG190: 0 | AH190: 0
A191: S | B191: 4 | C191: S | D191: 0 | E191: 6 | F191: 1 | G191: 2 | H191: 5 | I191: 0 | J191: 0 | K191: 0 | M191: Serviço | N191: Serviço | O191: - | P191: SINAPI | Q191: 89481 | R191: JOELHO 90 GRAUS, PVC, SOLDÁVEL, DN 25MM, INSTALADO EM PRUMADA DE ÁGUA - FORNECIMENTO E INSTALAÇÃO. AF_12/2014 | S191: UN | T191: 20 | U191: 1 | V191: 20 | Y191: 0 | Z191: 0 | AB191: NÃO | AE191: (sem código) | AF191: - | AG191: 0 | AH191: 0
A192: S | B192: 4 | C192: S | D192: 0 | E192: 6 | F192: 1 | G192: 2 | H192: 5 | I192: 0 | J192: 0 | K192: 0 | M192: Serviço | N192: Serviço | O192: - | P192: SINAPI | Q192: 89501 | R192: JOELHO 90 GRAUS, PVC, SOLDÁVEL, DN 50MM, INSTALADO EM PRUMADA DE ÁGUA - FORNECIMENTO E INSTALAÇÃO. AF_12/2014 | S192: UN | T192: 6 | U192: 1 | V192: 6 | Y192: 0 | Z192: 0 | AB192: NÃO | AE192: (sem código) | AF192: - | AG192: 0 | AH192: 0
A193: S | B193: 4 | C193: S | D193: 0 | E193: 6 | F193: 1 | G193: 2 | H193: 5 | I193: 0 | J193: 0 | K193: 0 | M193: Serviço | N193: Serviço | O193: - | P193: AGETOP | Q193: 81380 | R193: JOELHO 90 GRAUS C/ROSCA E BUCHA LATAO DIAM.1/2" | S193: Un | T193: 3 | U193: 1 | V193: 3 | Y193: 0 | Z193: 0 | AE193: (sem código) | AF193: - | AG193: 0 | AH193: 0
A194: 4 | B194: 4 | C194: 4 | D194: 4 | E194: 6 | F194: 1 | G194: 2 | H194: 6 | I194: 0 | J194: 10 | K194: 4 | M194: Nível 4 | N194: Nível 4 | O194: - | P194: SINAPI | R194: TÊ | S194: - | U194: 1 | V194: - | Y194: 0 | Z194: 0 | AE194: TÊ | AF194: - | AG194: 0 | AH194: 0
A195: S | B195: 4 | C195: S | D195: 0 | E195: 6 | F195: 1 | G195: 2 | H195: 6 | I195: 0 | J195: 0 | K195: 0 | M195: Serviço | N195: Serviço | O195: - | P195: SINAPI | Q195: 89625 | R195: TE, PVC, SOLDÁVEL, DN 50MM, INSTALADO EM PRUMADA DE ÁGUA - FORNECIMENTO E INSTALAÇÃO. AF_12/2014 | S195: UN | T195: 3 | U195: 1 | V195: 3 | Y195: 0 | Z195: 0 | AB195: NÃO | AE195: (sem código) | AF195: - | AG195: 0 | AH195: 0
A196: S | B196: 4 | C196: S | D196: 0 | E196: 6 | F196: 1 | G196: 2 | H196: 6 | I196: 0 | J196: 0 | K196: 0 | M196: Serviço | N196: Serviço | O196: - | P196: SINAPI | Q196: 89627 | R196: TÊ DE REDUÇÃO, PVC, SOLDÁVEL, DN 50MM X 25MM, INSTALADO EM PRUMADA DE ÁGUA - FORNECIMENTO E INSTALAÇÃO. AF_12/2014 | S196: UN | T196: 2 | U196: 1 | V196: 2 | Y196: 0 | Z196: 0 | AB196: NÃO | AE196: (sem código) | AF196: - | AG196: 0 | AH196: 0
A197: S | B197: 4 | C197: S | D197: 0 | E197: 6 | F197: 1 | G197: 2 | H197: 6 | I197: 0 | J197: 0 | K197: 0 | M197: Serviço | N197: Serviço | O197: - | P197: AGETOP | Q197: 81445 | R197: TE RED.SOLD.90GR.BUC.LATAO BOLSA CENT.25X25X1/2" | S197: Un | T197: 3 | U197: 1 | V197: 3 | Y197: 0 | Z197: 0 | AE197: (sem código) | AF197: - | AG197: 0 | AH197: 0
A198: 4 | B198: 4 | C198: 4 | D198: 3 | E198: 6 | F198: 1 | G198: 2 | H198: 7 | I198: 0 | J198: 6 | K198: 3 | M198: Nível 4 | N198: Nível 4 | O198: - | P198: SINAPI | R198: UNIÃO | S198: - | U198: 1 | V198: - | Y198: 0 | Z198: 0 | AE198: UNIÃO | AF198: - | AG198: 0 | AH198: 0
A199: S | B199: 4 | C199: S | D199: 0 | E199: 6 | F199: 1 | G199: 2 | H199: 7 | I199: 0 | J199: 0 | K199: 0 | M199: Serviço | N199: Serviço | O199: - | P199: AGETOP | Q199: 81462 | R199: UNIAO SOLDAVEL DIAMETRO 25 mm | S199: Un | T199: 3 | U199: 1 | V199: 3 | Y199: 0 | Z199: 0 | AE199: (sem código) | AF199: - | AG199: 0 | AH199: 0
A200: S | B200: 4 | C200: S | D200: 0 | E200: 6 | F200: 1 | G200: 2 | H200: 7 | I200: 0 | J200: 0 | K200: 0 | M200: Serviço | N200: Serviço | O200: - | P200: SINAPI | Q200: 89594 | R200: UNIÃO, PVC, SOLDÁVEL, DN 50MM, INSTALADO EM PRUMADA DE ÁGUA - FORNECIMENTO E INSTALAÇÃO. AF_12/2014 | S200: UN | T200: 2 | U200: 1 | V200: 2 | Y200: 0 | Z200: 0 | AB200: NÃO | AE200: (sem código) | AF200: - | AG200: 0 | AH200: 0
A201: 4 | B201: 4 | C201: 4 | D201: 3 | E201: 6 | F201: 1 | G201: 2 | H201: 8 | I201: 0 | J201: 3 | M201: Nível 4 | N201: Nível 4 | O201: - | P201: SINAPI | R201: ADESIVOS | S201: - | U201: 1 | V201: - | Y201: 0 | Z201: 0 | AE201: ADESIVOS | AF201: - | AG201: 0 | AH201: 0
A202: S | B202: 4 | C202: S | D202: 0 | E202: 6 | F202: 1 | G202: 2 | H202: 8 | I202: 0 | J202: 0 | K202: 0 | M202: Serviço | N202: Serviço | O202: - | P202: AGETOP | Q202: 81501 | R202: ADESIVO PLASTICO - FRASCO 850 G | S202: Un | T202: 2 | U202: 1 | V202: 2 | Y202: 0 | Z202: 0 | AE202: (sem código) | AF202: - | AG202: 0 | AH202: 0
A203: S | B203: 4 | C203: S | D203: 0 | E203: 6 | F203: 1 | G203: 2 | H203: 8 | I203: 0 | J203: 0 | K203: 0 | M203: Serviço | N203: Serviço | O203: - | P203: AGETOP | Q203: 81504 | R203: SOLUCAO LIMPADORA 1000 CM3 | S203: Un | T203: 2 | U203: 1 | V203: 2 | Y203: 0 | Z203: 0 | AE203: (sem código) | AF203: - | AG203: 0 | AH203: 0
A204: 3 | B204: 3 | C204: 3 | D204: 19 | E204: 6 | F204: 1 | G204: 3 | H204: 0 | I204: 0 | J204: 26 | K204: 19 | M204: Nível 3 | N204: Nível 3 | O204: - | P204: SINAPI | R204: ESGOTO SANITÁRIO | S204: - | U204: 1 | V204: - | Y204: 0 | Z204: 0 | AE204: ESGOTO SANITÁRIO | AF204: - | AG204: 0 | AH204: 0
A205: 4 | B205: 4 | C205: 4 | D205: 3 | E205: 6 | F205: 1 | G205: 3 | H205: 1 | I205: 0 | J205: 18 | K205: 3 | M205: Nível 4 | N205: Nível 4 | O205: - | P205: SINAPI | R205: CORPO DE CAIXA SIFONADA / RALO | S205: - | U205: 1 | V205: - | Y205: 0 | Z205: 0 | AE205: CORPO DE CAIXA SIFONADA / RALO | AF205: - | AG205: 0 | AH205: 0
... 152 more rows

Sheet Resumo
B3: UNIDADE ESCOLAR | G3: CÓDIGO INEP
B4: =Orçamento!$O$4 -> COORDENAÇÃO REGIONAL DE EDUCAÇÃO DE ITAPACI | G4: =Orçamento!X4 -> 0
B6: OBRA | G6: CIDADE
B7: =Orçamento!$O$7 -> CONSTRUÇÃO | G7: =Orçamento!$X$7 -> ITAPACI
B9: ENDEREÇO | G9: CRE
B10: =Orçamento!$R$10 -> AVENIDA DONA LÚCIA LOURENÇONI, 156, CENTRO | G10: =Orçamento!$O$10 -> ITAPACI
B12: REFERÊNCIA | D12: DATA | G12: ÁREA TOTAL CONSTRUÍDA (M²)
B13: =CONCATENATE("AGETOP E SINAPI - ",Orçamento!$T$10) -> AGETOP E SINAPI - DESONERADA | D13: =Orçamento!$S$7 -> 2020-07-07 | G13: =Orçamento!$X$13 -> 100.68
A14: FILTRO
B15: RESUMO GERAL DO ORÇAMENTO
A16: ↓ | B16: ITEM | C16: DESCRIÇÃO DOS SERVIÇOS | G16: PREÇO SEM BDI | H16: PREÇO COM BDI | I16: PARTICIP. (%)
A17: =IF(G17>0,"F","") ->  | B17: 1. | C17: =Orçamento!$P337 -> 1 - IMPLANTAÇÃO BLOCO ADMINISTRATIVO | G17: =IFERROR(Orçamento!S337,"-") -> 0 | H17: =IFERROR(Orçamento!X337,"") -> 0 | I17: =Orçamento!AA337 -> 
A18: =IF(G18>0,"F","") ->  | B18: 2. | C18: =Orçamento!$P338 -> 1.1 - NOVO BLOCO ADMINISTRATIVO | G18: =IFERROR(Orçamento!S338,"-") -> 0 | H18: =IFERROR(Orçamento!X338,"") -> 0 | I18: =Orçamento!AA338 -> 
B19: 3. | C19: =Orçamento!$P339 -> ADMINISTRAÇÃO LOCAL | G19: =IFERROR(Orçamento!S339,"-") -> 0 | H19: =IFERROR(Orçamento!X339,"") -> 0 | I19: =Orçamento!AA339 -> 
B20: 4. | C20: =Orçamento!$P340 -> OBRA | G20: =IFERROR(Orçamento!S340,"-") -> 0 | H20: =IFERROR(Orçamento!X340,"") -> 0 | I20: =Orçamento!AA340 -> 
B21: 5. | C21: =Orçamento!$P341 -> PROJETO ELÉTRICO | G21: =IFERROR(Orçamento!S341,"-") -> 0 | H21: =IFERROR(Orçamento!X341,"") -> 0 | I21: =Orçamento!AA341 -> 
B22: 6. | C22: =Orçamento!$P342 -> PROJETO HIDROSSANITÁRIO | G22: =IFERROR(Orçamento!S342,"-") -> 0 | H22: =IFERROR(Orçamento!X342,"") -> 0 | I22: =Orçamento!AA342 -> 
B23: 7. | C23: =Orçamento!$P343 -> PROJETO DE PREVENÇÃO E COMBATE A INCÊNDIO | G23: =IFERROR(Orçamento!S343,"-") -> 0 | H23: =IFERROR(Orçamento!X343,"") -> 0 | I23: =Orçamento!AA343 -> 
B24: 8. | C24: =Orçamento!$P344 -> PROJETO ESTRUTURAL | G24: =IFERROR(Orçamento!S344,"-") -> 0 | H24: =IFERROR(Orçamento!X344,"") -> 0 | I24: =Orçamento!AA344 -> 
B25: 9. | C25: =Orçamento!$P345 -> PROJETO ESTRUTURAS METÁLICAS | G25: =IFERROR(Orçamento!S345,"-") -> 0 | H25: =IFERROR(Orçamento!X345,"") -> 0 | I25: =Orçamento!AA345 -> 
B26: 10. | C26: =Orçamento!$P346 ->  | G26: =IFERROR(Orçamento!S346,"-") -> 0 | H26: =IFERROR(Orçamento!X346,"") -> 0 | I26: =Orçamento!AA346 -> 
B27: 11. | C27: =Orçamento!$P347 ->  | G27: =IFERROR(Orçamento!S347,"-") -> 0 | H27: =IFERROR(Orçamento!X347,"") -> 0 | I27: =Orçamento!AA347 -> 
B28: 12. | C28: =Orçamento!$P348 ->  | G28: =IFERROR(Orçamento!S348,"-") -> 0 | H28: =IFERROR(Orçamento!X348,"") -> 0 | I28: =Orçamento!AA348 -> 
B29: 13. | C29: =Orçamento!$P349 ->  | G29: =IFERROR(Orçamento!S349,"-") -> 0 | H29: =IFERROR(Orçamento!X349,"") -> 0 | I29: =Orçamento!AA349 -> 
B30: 14. | C30: =Orçamento!$P350 ->  | G30: =IFERROR(Orçamento!S350,"-") -> 0 | H30: =IFERROR(Orçamento!X350,"") -> 0 | I30: =Orçamento!AA350 -> 
B31: 15. | C31: =Orçamento!$P351 ->  | G31: =IFERROR(Orçamento!S351,"-") -> 0 | H31: =IFERROR(Orçamento!X351,"") -> 0 | I31: =Orçamento!AA351 -> 
B32: 16. | C32: =Orçamento!$P352 ->  | G32: =IFERROR(Orçamento!S352,"-") -> 0 | H32: =IFERROR(Orçamento!X352,"") -> 0 | I32: =Orçamento!AA352 -> 
B33: 17. | C33: =Orçamento!$P353 ->  | G33: =IFERROR(Orçamento!S353,"-") -> 0 | H33: =IFERROR(Orçamento!X353,"") -> 0 | I33: =Orçamento!AA353 -> 
B34: 18. | C34: =Orçamento!$P354 ->  | G34: =IFERROR(Orçamento!S354,"-") -> 0 | H34: =IFERROR(Orçamento!X354,"") -> 0 | I34: =Orçamento!AA354 -> 
B35: 19. | C35: =Orçamento!$P355 ->  | G35: =IFERROR(Orçamento!S355,"-") -> 0 | H35: =IFERROR(Orçamento!X355,"") -> 0 | I35: =Orçamento!AA355 -> 
B36: 20. | C36: =Orçamento!$P356 ->  | G36: =IFERROR(Orçamento!S356,"-") -> 0 | H36: =IFERROR(Orçamento!X356,"") -> 0 | I36: =Orçamento!AA356 -> 
A37: F | B37: TOTAL GERAL DO ORÇAMENTO (R$) | G37: =SUM(G17:G36) -> 0 | H37: =SUM(H17:H36) -> 0 | I37: =SUM(I17:I36) -> 
A38: F
A39: F

Sheet Somatório
B3: UNIDADE ESCOLAR | E3: CÓDIGO INEP
B4: =Orçamento!$O$4 -> COORDENAÇÃO REGIONAL DE EDUCAÇÃO DE ITAPACI | E4: =Orçamento!X4 -> 0
B6: OBRA | E6: CIDADE
B7: =Orçamento!$O$7 -> CONSTRUÇÃO | E7: =Orçamento!$X$7 -> ITAPACI
B9: ENDEREÇO | E9: CRE
B10: =Orçamento!$R$10 -> AVENIDA DONA LÚCIA LOURENÇONI, 156, CENTRO | E10: =Orçamento!$O$10 -> ITAPACI
B12: REFERÊNCIA | D12: DATA | E12: ÁREA TOTAL CONSTRUÍDA (M²)
B13: =CONCATENATE("AGETOP E SINAPI - ",Orçamento!$T$10) -> AGETOP E SINAPI - DESONERADA | D13: =Orçamento!$S$7 -> 2020-07-07 | E13: =Orçamento!$X$13 -> 100.68
A14: FILTRO
B15: SOMATÓRIO DE SERVIÇOS
A16: ↓ | B16: ITEM | C16: DESCRIÇÃO DOS SERVIÇOS | D16: PREÇO SEM BDI (R$) | E16: PREÇO COM BDI (R$) | F16: PARTIC. ( % )
A17: =IF(D17>0,"F","") ->  | B17: a. | C17: =Orçamento!P303 -> SERVIÇOS PRELIMINARES | D17: =Orçamento!S303 -> 0 | E17: =Orçamento!X303 -> 0 | F17: =Orçamento!AA303 -> 0
A18: =IF(D18>0,"F","") ->  | B18: b. | C18: =Orçamento!P304 -> TRANSPORTES | D18: =Orçamento!S304 -> 0 | E18: =Orçamento!X304 -> 0 | F18: =Orçamento!AA304 -> 0
B19: c. | C19: =Orçamento!P305 -> SERVIÇO EM TERRA | D19: =Orçamento!S305 -> 0 | E19: =Orçamento!X305 -> 0 | F19: =Orçamento!AA305 -> 0
B20: d. | C20: =Orçamento!P306 -> FUNDAÇÕES E SONDAGENS | D20: =Orçamento!S306 -> 0 | E20: =Orçamento!X306 -> 0 | F20: =Orçamento!AA306 -> 0
B21: e. | C21: =Orçamento!P307 -> ESTRUTURA | D21: =Orçamento!S307 -> 0 | E21: =Orçamento!X307 -> 0 | F21: =Orçamento!AA307 -> 0
B22: f. | C22: =Orçamento!P308 -> INSTALAÇÕES ELÉTRICAS | D22: =Orçamento!S308 -> 0 | E22: =Orçamento!X308 -> 0 | F22: =Orçamento!AA308 -> 0
B23: g. | C23: =Orçamento!P309 -> INSTALAÇÕES HIDROSSANITÁRIAS | D23: =Orçamento!S309 -> 0 | E23: =Orçamento!X309 -> 0 | F23: =Orçamento!AA309 -> 0
B24: h | C24: =Orçamento!P310 -> INSTALAÇÕES ESPECIAIS | D24: =Orçamento!S310 -> 0 | E24: =Orçamento!X310 -> 0 | F24: =Orçamento!AA310 -> 0
B25: i. | C25: =Orçamento!P311 -> ALVENARIAS E DIVISÓRIAS | D25: =Orçamento!S311 -> 0 | E25: =Orçamento!X311 -> 0 | F25: =Orçamento!AA311 -> 0
B26: j. | C26: =Orçamento!P312 -> ALVENARIA AUTO-PORTANTE | D26: =Orçamento!S312 -> 0 | E26: =Orçamento!X312 -> 0 | F26: =Orçamento!AA312 -> 0
B27: k. | C27: =Orçamento!P313 -> IMPERMEABILIZAÇÃO | D27: =Orçamento!S313 -> 0 | E27: =Orçamento!X313 -> 0 | F27: =Orçamento!AA313 -> 0
B28: l. | C28: =Orçamento!P314 -> ISOLAMENTO TÉRMICO E ACÚSTICO | D28: =Orçamento!S314 -> 0 | E28: =Orçamento!X314 -> 0 | F28: =Orçamento!AA314 -> 0
B29: m. | C29: =Orçamento!P315 -> ESTRUTURA DE MADEIRA | D29: =Orçamento!S315 -> 0 | E29: =Orçamento!X315 -> 0 | F29: =Orçamento!AA315 -> 0
B30: n. | C30: =Orçamento!P316 -> ESTRUTURAS METÁLICAS | D30: =Orçamento!S316 -> 0 | E30: =Orçamento!X316 -> 0 | F30: =Orçamento!AA316 -> 0
B31: o. | C31: =Orçamento!P317 -> COBERTURAS | D31: =Orçamento!S317 -> 0 | E31: =Orçamento!X317 -> 0 | F31: =Orçamento!AA317 -> 0
B32: p. | C32: =Orçamento!P318 -> ESQUADRIAS DE MADEIRA | D32: =Orçamento!S318 -> 0 | E32: =Orçamento!X318 -> 0 | F32: =Orçamento!AA318 -> 0
B33: q. | C33: =Orçamento!P319 -> ESQUADRIAS METÁLICAS | D33: =Orçamento!S319 -> 0 | E33: =Orçamento!X319 -> 0 | F33: =Orçamento!AA319 -> 0
B34: r. | C34: =Orçamento!P320 -> VIDROS | D34: =Orçamento!S320 -> 0 | E34: =Orçamento!X320 -> 0 | F34: =Orçamento!AA320 -> 0
B35: s. | C35: =Orçamento!P321 -> REVESTIMENTO DE PAREDE | D35: =Orçamento!S321 -> 0 | E35: =Orçamento!X321 -> 0 | F35: =Orçamento!AA321 -> 0
B36: t. | C36: =Orçamento!P322 -> FORROS | D36: =Orçamento!S322 -> 0 | E36: =Orçamento!X322 -> 0 | F36: =Orçamento!AA322 -> 0
B37: u. | C37: =Orçamento!P323 -> REVESTIMENTO DE PISO | D37: =Orçamento!S323 -> 0 | E37: =Orçamento!X323 -> 0 | F37: =Orçamento!AA323 -> 0
B38: v. | C38: =Orçamento!P324 -> FERRAGENS | D38: =Orçamento!S324 -> 0 | E38: =Orçamento!X324 -> 0 | F38: =Orçamento!AA324 -> 0
B39: w. | C39: =Orçamento!P325 -> MARCENARIA | D39: =Orçamento!S325 -> 0 | E39: =Orçamento!X325 -> 0 | F39: =Orçamento!AA325 -> 0
B40: x. | C40: =Orçamento!P326 -> ADMINISTRAÇÃO | D40: =Orçamento!S326 -> 0 | E40: =Orçamento!X326 -> 0 | F40: =Orçamento!AA326 -> 0
B41: y. | C41: =Orçamento!P327 -> PINTURA | D41: =Orçamento!S327 -> 0 | E41: =Orçamento!X327 -> 0 | F41: =Orçamento!AA327 -> 0
B42: z. | C42: =Orçamento!P328 -> DIVERSOS | D42: =Orçamento!S328 -> 0 | E42: =Orçamento!X328 -> 0 | F42: =Orçamento!AA328 -> 0
A43: F | B43: TOTAL GERAL DO ORÇAMENTO | D43: =SUM(D17:D42) -> 0 | E43: =SUM(E17:E42) -> 0 | F43: =SUM(F17:F42) -> 0
B45: (*) Para itens da AGETOP, os vidros não estão inclusos nas esquadrias e já foram considerados os custos de contramarco para as esquadrias de alumínio;

Sheet Cronog_45_Dias
B3: UNIDADE ESCOLAR | I3: PRAZO
B4: =Orçamento!$O$4 -> COORDENAÇÃO REGIONAL DE EDUCAÇÃO DE ITAPACI | I4: 45 DIAS CORRIDOS
B6: OBRA | I6: DATA
B7: =Orçamento!$O$7 -> CONSTRUÇÃO | I7: =Orçamento!$S$7 -> 2020-07-07
B9: LOCAL | I9: ÁREA TOTAL CONSTRUÍDA (M²)
A10: FILTRO | B10: =Orçamento!$X$7 -> ITAPACI | I10: =Orçamento!$X$13 -> 100.68
B12: CRONOGRAMA - FÍSICO FINANCEIRO
A13: ↓ | B13: CUSTO TOTAL: | C13: =D93 -> 0 | D13: VALOR | E13: Dias: | F13: 22 | J13: 45 | N13: TOTAL
B14: DESCRIÇÃO DOS SERVIÇOS | E14: % | F14: 1ª PARCELA | J14: 2ª PARCELA
A15: =IF(D15>0,"F","") ->  | B15: SERVIÇOS PRELIMINARES | D15: =Orçamento!X303 -> 0 | E15: =Orçamento!AA303 -> 0 | F15: =ROUND(F17*$D$15,2) -> 0 | J15: =ROUND(J17*$D$15,2) -> 0 | N15: =SUM(F15:M15) -> 0
A16: =IF(A15="F",A15,"") -> 
A17: =IF(A16="F",A16,"") ->  | F17: 1 | J17: =1-F17 -> 0 | N17: =IFERROR(E15/100,"") -> 0
A18: =IF(D18>0,"F","") ->  | B18: TRANSPORTES | D18: =Orçamento!X304 -> 0 | E18: =Orçamento!AA304 -> 0 | F18: =ROUND(F20*$D$18,2) -> 0 | J18: =ROUND(J20*$D$18,2) -> 0 | N18: =SUM(F18:M18) -> 0
A19: =IF(A18="F",A18,"") -> 
A20: =IF(A19="F",A19,"") ->  | F20: 0.48 | J20: =1-F20 -> 0.52 | N20: =IFERROR(E18/100,"") -> 0
A21: =IF(D21>0,"F","") ->  | B21: SERVIÇO EM TERRA | D21: =Orçamento!X305 -> 0 | E21: =Orçamento!AA305 -> 0 | F21: =ROUND(F23*$D$21,2) -> 0 | J21: =ROUND(J23*$D$21,2) -> 0 | N21: =SUM(F21:M21) -> 0
A22: =IF(A21="F",A21,"") -> 
A23: =IF(A22="F",A22,"") ->  | F23: 1 | J23: =1-F23 -> 0 | N23: =IFERROR(E21/100,"") -> 0
A24: =IF(D24>0,"F","") ->  | B24: FUNDAÇÕES E SONDAGENS | D24: =Orçamento!X306 -> 0 | E24: =Orçamento!AA306 -> 0 | F24: =ROUND(F26*$D$24,2) -> 0 | J24: =ROUND(J26*$D$24,2) -> 0 | N24: =SUM(F24:M24) -> 0
A25: =IF(A24="F",A24,"") -> 
A26: =IF(A25="F",A25,"") ->  | F26: 1 | J26: =1-F26 -> 0 | N26: =IFERROR(E24/100,"") -> 0
A27: =IF(D27>0,"F","") ->  | B27: ESTRUTURA | D27: =Orçamento!X307 -> 0 | E27: =Orçamento!AA307 -> 0 | F27: =ROUND(F29*$D$27,2) -> 0 | J27: =ROUND(J29*$D$27,2) -> 0 | N27: =SUM(F27:M27) -> 0
A28: =IF(A27="F",A27,"") -> 
A29: =IF(A28="F",A28,"") ->  | F29: 0.49 | J29: =1-F29 -> 0.51 | N29: =IFERROR(E27/100,"") -> 0
A30: =IF(D30>0,"F","") ->  | B30: INST.ELET/TELEFÔNICA/CABEAMENTO ESTRUTURADO | D30: =Orçamento!X308 -> 0 | E30: =Orçamento!AA308 -> 0 | F30: =ROUND(F32*$D$30,2) -> 0 | J30: =ROUND(J32*$D$30,2) -> 0 | N30: =SUM(F30:M30) -> 0
A31: =IF(A30="F",A30,"") -> 
A32: =IF(A31="F",A31,"") ->  | F32: 0.4 | J32: =1-F32 -> 0.6 | N32: =IFERROR(E30/100,"") -> 0
A33: =IF(D33>0,"F","") ->  | B33: INSTALAÇÕES HIDROSSANITÁRIAS | D33: =Orçamento!X309 -> 0 | E33: =Orçamento!AA309 -> 0 | F33: =ROUND(F35*$D$33,2) -> 0 | J33: =ROUND(J35*$D$33,2) -> 0 | N33: =SUM(F33:M33) -> 0
A34: =IF(A33="F",A33,"") -> 
A35: =IF(A34="F",A34,"") ->  | F35: 0.48 | J35: =1-F35 -> 0.52 | N35: =IFERROR(E33/100,"") -> 0
A36: =IF(D36>0,"F","") ->  | B36: INSTALAÇÕES ESPECIAIS | D36: =Orçamento!X310 -> 0 | E36: =Orçamento!AA310 -> 0 | F36: =ROUND(F38*$D$36,2) -> 0 | J36: =ROUND(J38*$D$36,2) -> 0 | N36: =SUM(F36:M36) -> 0
A37: =IF(A36="F",A36,"") -> 
A38: =IF(A37="F",A37,"") ->  | F38: 1 | J38: =1-F38 -> 0 | N38: =IFERROR(E36/100,"") -> 0
A39: =IF(D39>0,"F","") ->  | B39: ALVENARIA E DIVISÓRIAS | D39: =Orçamento!X311 -> 0 | E39: =Orçamento!AA311 -> 0 | F39: =ROUND(F41*$D$39,2) -> 0 | J39: =ROUND(J41*$D$39,2) -> 0 | N39: =SUM(F39:M39) -> 0
A40: =IF(A39="F",A39,"") -> 
A41: =IF(A40="F",A40,"") ->  | F41: 1 | J41: =1-F41 -> 0 | N41: =IFERROR(E39/100,"") -> 0
A42: =IF(D42>0,"F","") ->  | B42: ALVENARIA AUTO-PORTANTE | D42: =Orçamento!X312 -> 0 | E42: =Orçamento!AA312 -> 0 | F42: =ROUND(F44*$D$42,2) -> 0 | J42: =ROUND(J44*$D$42,2) -> 0 | N42: =SUM(F42:M42) -> 0
A43: =IF(A42="F",A42,"") -> 
A44: =IF(A43="F",A43,"") ->  | F44: 1 | J44: =1-F44 -> 0 | N44: =IFERROR(E42/100,"") -> 0
A45: =IF(D45>0,"F","") ->  | B45: IMPERMEABILIZAÇÃO | D45: =Orçamento!X313 -> 0 | E45: =Orçamento!AA313 -> 0 | F45: =ROUND(F47*$D$45,2) -> 0 | J45: =ROUND(J47*$D$45,2) -> 0 | N45: =SUM(F45:M45) -> 0
A46: =IF(A45="F",A45,"") -> 
A47: =IF(A46="F",A46,"") ->  | F47: 1 | J47: =1-F47 -> 0 | N47: =IFERROR(E45/100,"") -> 0
A48: =IF(D48>0,"F","") ->  | B48: ISOLAMENTO TÉRMICO E ACÚSTICO | D48: =Orçamento!X314 -> 0 | E48: =Orçamento!AA314 -> 0 | F48: =ROUND(F50*$D$48,2) -> 0 | J48: =ROUND(J50*$D$48,2) -> 0 | N48: =SUM(F48:M48) -> 0
A49: =IF(A48="F",A48,"") -> 
A50: =IF(A49="F",A49,"") ->  | F50: 0.5 | J50: =1-F50 -> 0.5 | N50: =IFERROR(E48/100,"") -> 0
A51: =IF(D51>0,"F","") ->  | B51: ESTRUTURA DE MADEIRA | D51: =Orçamento!X315 -> 0 | E51: =Orçamento!AA315 -> 0 | F51: =ROUND(F53*$D$51,2) -> 0 | J51: =ROUND(J53*$D$51,2) -> 0 | N51: =SUM(F51:M51) -> 0
A52: =IF(A51="F",A51,"") -> 
A53: =IF(A52="F",A52,"") ->  | F53: 0.4 | J53: =1-F53 -> 0.6 | N53: =IFERROR(E51/100,"") -> 0
A54: =IF(D54>0,"F","") ->  | B54: ESTRUTURA METÁLICA | D54: =Orçamento!X316 -> 0 | E54: =Orçamento!AA316 -> 0 | F54: =ROUND(F56*$D$54,2) -> 0 | J54: =ROUND(J56*$D$54,2) -> 0 | N54: =SUM(F54:M54) -> 0
A55: =IF(A54="F",A54,"") -> 
A56: =IF(A55="F",A55,"") ->  | F56: 0.35 | J56: =1-F56 -> 0.65 | N56: =IFERROR(E54/100,"") -> 0
A57: =IF(D57>0,"F","") ->  | B57: COBERTURAS | D57: =Orçamento!X317 -> 0 | E57: =Orçamento!AA317 -> 0 | F57: =ROUND(F59*$D$57,2) -> 0 | J57: =ROUND(J59*$D$57,2) -> 0 | N57: =SUM(F57:M57) -> 0
A58: =IF(A57="F",A57,"") -> 
A59: =IF(A58="F",A58,"") ->  | F59: 0 | J59: =1-F59 -> 1 | N59: =IFERROR(E57/100,"") -> 0
A60: =IF(D60>0,"F","") ->  | B60: ESQUADRIAS DE MADEIRA | D60: =Orçamento!X318 -> 0 | E60: =Orçamento!AA318 -> 0 | F60: =ROUND(F62*$D$60,2) -> 0 | J60: =ROUND(J62*$D$60,2) -> 0 | N60: =SUM(F60:M60) -> 0
A61: =IF(A60="F",A60,"") -> 
A62: =IF(A61="F",A61,"") ->  | F62: 0.54 | J62: =1-F62 -> 0.46 | N62: =IFERROR(E60/100,"") -> 0
A63: =IF(D63>0,"F","") ->  | B63: ESQUADRIAS METÁLICAS | D63: =Orçamento!X319 -> 0 | E63: =Orçamento!AA319 -> 0 | F63: =ROUND(F65*$D$63,2) -> 0 | J63: =ROUND(J65*$D$63,2) -> 0 | N63: =SUM(F63:M63) -> 0
A64: =IF(A63="F",A63,"") -> 
A65: =IF(A64="F",A64,"") ->  | F65: 0.49 | J65: =1-F65 -> 0.51 | N65: =IFERROR(E63/100,"") -> 0
A66: =IF(D66>0,"F","") ->  | B66: VIDROS | D66: =Orçamento!X320 -> 0 | E66: =Orçamento!AA320 -> 0 | F66: =ROUND(F68*$D$66,2) -> 0 | J66: =ROUND(J68*$D$66,2) -> 0 | N66: =SUM(F66:M66) -> 0
A67: =IF(A66="F",A66,"") -> 
A68: =IF(A67="F",A67,"") ->  | F68: 0 | J68: =1-F68 -> 1 | N68: =IFERROR(E66/100,"") -> 0
A69: =IF(D69>0,"F","") ->  | B69: REVESTIMENTO DE PAREDE | D69: =Orçamento!X321 -> 0 | E69: =Orçamento!AA321 -> 0 | F69: =ROUND(F71*$D$69,2) -> 0 | J69: =ROUND(J71*$D$69,2) -> 0 | N69: =SUM(F69:M69) -> 0
A70: =IF(A69="F",A69,"") -> 
A71: =IF(A70="F",A70,"") ->  | F71: 0.32 | J71: =1-F71 -> 0.68 | N71: =IFERROR(E69/100,"") -> 0
A72: =IF(D72>0,"F","") ->  | B72: FORROS | D72: =Orçamento!X322 -> 0 | E72: =Orçamento!AA322 -> 0 | F72: =ROUND(F74*$D$72,2) -> 0 | J72: =ROUND(J74*$D$72,2) -> 0 | N72: =SUM(F72:M72) -> 0
A73: =IF(A72="F",A72,"") -> 
A74: =IF(A73="F",A73,"") ->  | F74: 0.24 | J74: =1-F74 -> 0.76 | N74: =IFERROR(E72/100,"") -> 0
A75: =IF(D75>0,"F","") ->  | B75: REVESTIMENTO DE PISO | D75: =Orçamento!X323 -> 0 | E75: =Orçamento!AA323 -> 0 | F75: =ROUND(F77*$D$75,2) -> 0 | J75: =ROUND(J77*$D$75,2) -> 0 | N75: =SUM(F75:M75) -> 0
A76: =IF(A75="F",A75,"") -> 
A77: =IF(A76="F",A76,"") ->  | F77: 0.49 | J77: =1-F77 -> 0.51 | N77: =IFERROR(E75/100,"") -> 0
A78: =IF(D78>0,"F","") ->  | B78: FERRAGENS | D78: =Orçamento!X324 -> 0 | E78: =Orçamento!AA324 -> 0 | F78: =ROUND(F80*$D$78,2) -> 0 | J78: =ROUND(J80*$D$78,2) -> 0 | N78: =SUM(F78:M78) -> 0
A79: =IF(A78="F",A78,"") -> 
A80: =IF(A79="F",A79,"") ->  | F80: 0 | J80: =1-F80 -> 1 | N80: =IFERROR(E78/100,"") -> 0
A81: =IF(D81>0,"F","") ->  | B81: MARCENARIA | D81: =Orçamento!X325 -> 0 | E81: =Orçamento!AA325 -> 0 | F81: =ROUND(F83*$D$81,2) -> 0 | J81: =ROUND(J83*$D$81,2) -> 0 | N81: =SUM(F81:M81) -> 0
A82: =IF(A81="F",A81,"") -> 
A83: =IF(A82="F",A82,"") ->  | F83: 0.4 | J83: =1-F83 -> 0.6 | N83: =IFERROR(E81/100,"") -> 0
A84: =IF(D84>0,"F","") ->  | B84: ADMINISTRAÇÃO - MENSALISTAS | D84: =Orçamento!X326 -> 0 | E84: =Orçamento!AA326 -> 0 | F84: =ROUND(F86*$D$84,2) -> 0 | J84: =ROUND(J86*$D$84,2) -> 0 | N84: =SUM(F84:M84) -> 0
A85: =IF(A84="F",A84,"") -> 
A86: =IF(A85="F",A85,"") ->  | F86: 0.49 | J86: =1-F86 -> 0.51 | N86: =IFERROR(E84/100,"") -> 0
A87: =IF(D87>0,"F","") ->  | B87: PINTURA | D87: =Orçamento!X327 -> 0 | E87: =Orçamento!AA327 -> 0 | F87: =ROUND(F89*$D$87,2) -> 0 | J87: =ROUND(J89*$D$87,2) -> 0 | N87: =SUM(F87:M87) -> 0
A88: =IF(A87="F",A87,"") -> 
A89: =IF(A88="F",A88,"") ->  | F89: 0 | J89: =1-F89 -> 1 | N89: =IFERROR(E87/100,"") -> 0
A90: =IF(D90>0,"F","") ->  | B90: DIVERSOS | D90: =Orçamento!X328 -> 0 | E90: =Orçamento!AA328 -> 0 | F90: =ROUND(F92*$D$90,2) -> 0 | J90: =ROUND(J92*$D$90,2) -> 0 | N90: =SUM(F90:M90) -> 0
A91: =IF(A90="F",A90,"") -> 
A92: =IF(A91="F",A91,"") ->  | F92: 0.46 | J92: =1-F92 -> 0.54 | N92: =IFERROR(E90/100,"") -> 0
A93: F | B93: CUSTO DO ORÇAMENTO | D93: =SUM(D15:D92) -> 0 | E93: =SUM(E15:E92) -> 0 | F93: =F15+F18+F21+F24+F27+F30+F33+F36+F39+F42+F45+F48+F51+F54+F57+F60+F63+F66+F69+F72+F75+F78+F81+F84+F87+F90 -> 0 | J93: =J15+J18+J21+J24+J27+J30+J33+J36+J39+J42+J45+J48+J51+J54+J57+J60+J63+J66+J69+J72+J75+J78+J81+J84+J87+J90 -> 0 | N93: =N15+N18+N21+N24+N27+N30+N33+N36+N39+N42+N45+N48+N51+N54+N57+N60+N63+N66+N69+N72+N75+N78+N81+N84+N87+N90 -> 0
A94: F | B94: PERCENTUAIS: | F94: =IFERROR(F93/D93,"") ->  | J94: =IFERROR(J93/D93,"") ->  | N94: =SUM(F94:M94) -> 0
A95: F | B95: TOTAIS ACUMULADOS: | F95: =F93 -> 0 | J95: =F95+J93 -> 0
A96: F | B96: PERCENTUAIS ACUMULADOS: | F96: =F94 ->  | J96: =IFERROR(F96+J94,"") -> 
A97: F
A98: F | B98: OBSERVAÇÕES:
A99: F | B99: Os pagamentos somente poderão ser efetuados mediante medição e atesto pelos técnicos da Secretaria da Educação.

Sheet Composição BDI
A3: UNIDADE ESCOLAR
A4: =Orçamento!$O$4 -> COORDENAÇÃO REGIONAL DE EDUCAÇÃO DE ITAPACI
A6: OBRA
A7: =Orçamento!$O$7 -> CONSTRUÇÃO
A9: ENDEREÇO
A10: =Orçamento!$R$10 -> AVENIDA DONA LÚCIA LOURENÇONI, 156, CENTRO
A12: CIDADE
A13: =Orçamento!$X$7 -> ITAPACI
A15: CRE
A16: =Orçamento!$O$10 -> ITAPACI
A18: DETALHAMENTO DA COMPOSIÇÃO DE BDI
A19: COMPOSIÇÃO BDI PARA OBRAS CIVIS | F19: BDI CONSTRUÇÃO E REFORMA
A20: DESCRIÇÃO | B20: COEF. | C20: TAXA % (a.m) | D20: % no preço de venda | F20: Situação | G20: 1º Quartil | H20: Médio | I20: 3º Quartil
A21: 1) COFINS | B21: 1 | C21: 0.03 | D21: =C21 -> 0.03 | F21: =IF(OR(C21<G21,C21>I21),"FORA DO INTERVALO","OK") -> OK | G21: 0.03 | H21: 0.03 | I21: 0.03
A22: 2) PIS | B22: 1 | C22: 0.0065 | D22: =C22 -> 0.0065 | F22: =IF(OR(C22<G22,C22>I22),"FORA DO INTERVALO","OK") -> OK | G22: 0.0065 | H22: 0.0065 | I22: 0.0065
A23: 3) ISSQN | B23: 1 | C23: 0.025 | D23: =C23*B23 -> 0.025 | F23: OK | G23: 0.02 | H23: 0.035 | I23: 0.05
A24: 4) CPRB | B24: 1 | C24: 0.045 | D24: =C24 -> 0.045 | F24: OK | G24: 0.045 | H24: 0.045 | I24: 0.045
A25: 5) Administração Central | B25: 1 | C25: 0.04 | D25: 0.04 | F25: OK | G25: 0.03 | H25: 0.04 | I25: 0.055
A26: 6) Despesas Financeiras | B26: 1 | C26: 0.0056 | D26: 0.0056 | F26: FORA DO INTERVALO | G26: 0.0059 | H26: 0.0123 | I26: 0.0139
A27: 7) Seguros + Garantias | B27: 1 | C27: 0.0012 | D27: 0.0012 | F27: FORA DO INTERVALO | G27: 0.008 | H27: 0.008 | I27: 0.01
A28: 8) Risco | B28: 1 | C28: 0.0097 | D28: 0.0097 | F28: OK | G28: 0.0097 | H28: 0.0127 | I28: 0.0127
A29: 9) Lucro | B29: 1 | C29: 0.0687 | D29: 0.0687 | F29: OK | G29: 0.0616 | H29: 0.074 | I29: 0.0896
A30: BDI - FINAL | D30: =(((1+D25+D27+D28)*(1+D26)*(1+D29))/(1-(D21+D22+D23+D24))-1) -> 0.2640024312 | F30: =IF(OR(D30<G30,D30>I30),"FORA DO INTERVALO","OK") -> FORA DO INTERVALO | G30: 0.2034 | H30: 0.2212 | I30: 0.25
A32: Notas:
A33: (1) e (2) Alíquota definida por lei.
A34: (3) Alíquota e base de cálculo definidas pela legislação municipal.
A35: (4) Alíquota definida pelas leis 12.546/11, 12844/13 e 13.161/15 (CPRB – contribuição previdenciária sobre a receita bruta).
A36: (5) Valores definidos a partir dos limites no Acórdão nº 2.622/2013 - TCU – Plenário. Valores entre o 1º e 3º quartis.
A37: (6) Valor calculado pela expressão matemática do acórdão 2.369/2011 – TCU – Plenário e disponibilizado pela AGETOP em dezembro de 2018. (Foi utilizado para o cálculo a média da Taxa SELIC no período de 11/2017 a 10/2018)
A39: (7) Valores definidos pela AGETOP a partir dos limites no Acórdão nº 2.622/2013 - TCU – Plenário. Valores médios. Observação da AGETOP: (Seguros contra erros de execução, incêndio e explosão, danos da natureza (vendaval, destelhamento, alagamento, inundação, desmoronamento, geadas etc.), emprego de material defeituoso ou inadequado, roubo e/ou furto qualificado, quebra de equipamentos, desmoronamento de estrutura, nas modalidades de Obras Civis em Construção (OCC); Instalação e Montagem (IM); e Obras Civis em Construção e Instalação e Montagem (OCC/IM). Bem como coberturas adicionais para ampliação dessas coberturas básicas, como: cobertura de responsabilidade civil geral, cobertura de responsabilidade civil cruzada, cobertura de despesas extraordinárias, cobertura de tumultos, cobertura de desentulho do local, cobertura de riscos do fabricante, dentre outras, incluindo o seguro de vida em grupo regido pela convenção coletiva dos trabalhadores na indústria da construção civil). A partir de 24/02/2015 por intermédio da Portaria 449/2015 a Presidência da AGETOP, na pessoa do Senhor Jayme Eduardo Rincon, determinou a exclusão dos valores referentes aos Seguros de Risco de Engenharia e Responsabilidade Civil do Profissional na composição do cálculo do B.D.I..
A40: (8) Valores definidos a partir dos limites no Acórdão nº 2.622/2013 - TCU – Plenário. Valores entre 1º e 3° quartis.
A41: (9) Valores definidos a partir dos limites definidos no Acórdão nº 2.622/2013 - TCU – Plenário. Valores adotados e praticados no mercado ( “ ex ante ” ) ou aqueles entre os 1º e 3º quartis.
A43: (*) A fórmula para estipulação da taxa de BDI estimado adotado é a mesma que foi aplicada para a obtenção das tabelas contidas no Acórdão n. 2.622/2013 – TCUPlenário
A45: Obs.: Para obras com valores superiores a R$ 20.000.000,00 sugere-se recalcular o BDI, dimensionando as taxas de administração central e lucro para patamares inferiores ao estipulado acima.

Sheet Relatório CENTRAL
B3: UNIDADE ESCOLAR | D3: CIDADE
B4: =Orçamento!$O$4 -> COORDENAÇÃO REGIONAL DE EDUCAÇÃO DE ITAPACI | D4: =Orçamento!$X$7 -> ITAPACI
B6: OBRA | D6: CRE
B7: =Orçamento!$O$7 -> CONSTRUÇÃO | D7: =Orçamento!$O$10 -> ITAPACI
B9: ENDEREÇO | D9: DATA
A10: FILTRO | B10: =Orçamento!$R$10 -> AVENIDA DONA LÚCIA LOURENÇONI, 156, CENTRO | D10: =Orçamento!$S$7 -> 2020-07-07
B12: RELATÓRIO CENTRAL
A13: ↓ | B13: CÓDIGO | C13: ETAPA | D13: PREÇO (R$) C/ BDI | E13: PARTIC ( % )
A14: =IF(D14>0,"F","") ->  | B14: =Orçamento!O303 -> a. | C14: =Orçamento!P303 -> SERVIÇOS PRELIMINARES | D14: =Orçamento!X303 -> 0 | E14: =Orçamento!AA303 -> 0
A15: =IF(D15>0,"F","") ->  | B15: =Orçamento!O304 -> b. | C15: =Orçamento!P304 -> TRANSPORTES | D15: =Orçamento!X304 -> 0 | E15: =Orçamento!AA304 -> 0
B16: =Orçamento!O305 -> c. | C16: =Orçamento!P305 -> SERVIÇO EM TERRA | D16: =Orçamento!X305 -> 0 | E16: =Orçamento!AA305 -> 0
B17: =Orçamento!O306 -> d. | C17: =Orçamento!P306 -> FUNDAÇÕES E SONDAGENS | D17: =Orçamento!X306 -> 0 | E17: =Orçamento!AA306 -> 0
B18: =Orçamento!O307 -> e. | C18: =Orçamento!P307 -> ESTRUTURA | D18: =Orçamento!X307 -> 0 | E18: =Orçamento!AA307 -> 0
B19: =Orçamento!O308 -> f. | C19: =Orçamento!P308 -> INSTALAÇÕES ELÉTRICAS | D19: =Orçamento!X308 -> 0 | E19: =Orçamento!AA308 -> 0
B20: =Orçamento!O309 -> g. | C20: =Orçamento!P309 -> INSTALAÇÕES HIDROSSANITÁRIAS | D20: =Orçamento!X309 -> 0 | E20: =Orçamento!AA309 -> 0
B21: =Orçamento!O310 -> h | C21: =Orçamento!P310 -> INSTALAÇÕES ESPECIAIS | D21: =Orçamento!X310 -> 0 | E21: =Orçamento!AA310 -> 0
B22: =Orçamento!O311 -> i. | C22: =Orçamento!P311 -> ALVENARIAS E DIVISÓRIAS | D22: =Orçamento!X311 -> 0 | E22: =Orçamento!AA311 -> 0
B23: =Orçamento!O312 -> j. | C23: =Orçamento!P312 -> ALVENARIA AUTO-PORTANTE | D23: =Orçamento!X312 -> 0 | E23: =Orçamento!AA312 -> 0
B24: =Orçamento!O313 -> k. | C24: =Orçamento!P313 -> IMPERMEABILIZAÇÃO | D24: =Orçamento!X313 -> 0 | E24: =Orçamento!AA313 -> 0
B25: =Orçamento!O314 -> l. | C25: =Orçamento!P314 -> ISOLAMENTO TÉRMICO E ACÚSTICO | D25: =Orçamento!X314 -> 0 | E25: =Orçamento!AA314 -> 0
B26: =Orçamento!O315 -> m. | C26: =Orçamento!P315 -> ESTRUTURA DE MADEIRA | D26: =Orçamento!X315 -> 0 | E26: =Orçamento!AA315 -> 0
B27: =Orçamento!O316 -> n. | C27: =Orçamento!P316 -> ESTRUTURAS METÁLICAS | D27: =Orçamento!X316 -> 0 | E27: =Orçamento!AA316 -> 0
B28: =Orçamento!O317 -> o. | C28: =Orçamento!P317 -> COBERTURAS | D28: =Orçamento!X317 -> 0 | E28: =Orçamento!AA317 -> 0
B29: =Orçamento!O318 -> p. | C29: =Orçamento!P318 -> ESQUADRIAS DE MADEIRA | D29: =Orçamento!X318 -> 0 | E29: =Orçamento!AA318 -> 0
B30: =Orçamento!O319 -> q. | C30: =Orçamento!P319 -> ESQUADRIAS METÁLICAS | D30: =Orçamento!X319 -> 0 | E30: =Orçamento!AA319 -> 0
B31: =Orçamento!O320 -> r. | C31: =Orçamento!P320 -> VIDROS | D31: =Orçamento!X320 -> 0 | E31: =Orçamento!AA320 -> 0
B32: =Orçamento!O321 -> s. | C32: =Orçamento!P321 -> REVESTIMENTO DE PAREDE | D32: =Orçamento!X321 -> 0 | E32: =Orçamento!AA321 -> 0
B33: =Orçamento!O322 -> t. | C33: =Orçamento!P322 -> FORROS | D33: =Orçamento!X322 -> 0 | E33: =Orçamento!AA322 -> 0
B34: =Orçamento!O323 -> u. | C34: =Orçamento!P323 -> REVESTIMENTO DE PISO | D34: =Orçamento!X323 -> 0 | E34: =Orçamento!AA323 -> 0
B35: =Orçamento!O324 -> v. | C35: =Orçamento!P324 -> FERRAGENS | D35: =Orçamento!X324 -> 0 | E35: =Orçamento!AA324 -> 0
B36: =Orçamento!O325 -> w. | C36: =Orçamento!P325 -> MARCENARIA | D36: =Orçamento!X325 -> 0 | E36: =Orçamento!AA325 -> 0
B37: =Orçamento!O326 -> x. | C37: =Orçamento!P326 -> ADMINISTRAÇÃO | D37: =Orçamento!X326 -> 0 | E37: =Orçamento!AA326 -> 0
B38: =Orçamento!O327 -> y. | C38: =Orçamento!P327 -> PINTURA | D38: =Orçamento!X327 -> 0 | E38: =Orçamento!AA327 -> 0
B39: =Orçamento!O328 -> z. | C39: =Orçamento!P328 -> DIVERSOS | D39: =Orçamento!X328 -> 0 | E39: =Orçamento!AA328 -> 0
A40: F | B40: TOTAL GERAL DO ORÇAMENTO (R$) C/BDI | D40: =SUM(D14:D39) -> 0 | E40: =SUM(E14:E39) -> 0

Sheet Parc Maior Relev
B3: UNIDADE ESCOLAR | E3: CÓDIGO INEP
B4: =Orçamento!$O$4 -> COORDENAÇÃO REGIONAL DE EDUCAÇÃO DE ITAPACI | E4: =Orçamento!$X$4 -> 0
B6: OBRA | E6: CIDADE
B7: =Orçamento!$O$7 -> CONSTRUÇÃO | E7: =Orçamento!$X$7 -> ITAPACI
B9: CRE | E9: ÁREA TOTAL CONSTRUÍDA (M²)
B10: =Orçamento!$O$10 -> ITAPACI | E10: =Orçamento!$X$13 -> 100.68
A12: FILTRO | B12: PARCELA DE MAIOR RELEVÂNCIA
A13: =IF(G14>0,"F","") ->  | B13: CÓDIGO | C13: SERVIÇO | D13: DESCRIÇÃO | E13: UNID | F13: QUANT | G13: PARC. MAIOR RELEV (100%)
A14: =IF(G14>0,"F","") ->  | B14: f. | C14: INSTALAÇÕES ELÉTRICAS | D14: SUBESTAÇÃO | E14: KVA | F14: =SUMIF(Orçamento!$R$20:$R$284,'Parc Maior Relev'!D14,Orçamento!$T$20:$T$284) -> 0 | G14: =F14 -> 0
A15: =IF(SUM(G16:G30)>0,"F","") -> F | B15: CÓDIGO | C15: SERVIÇO | D15: DESCRIÇÃO | E15: UNID | F15: QUANT | G15: PARC. MAIOR RELEV (50%)
A16: =IF(G16>0,"F","") ->  | B16: e. | C16: ESTRUTURA | D16: CONCRETO | E16: M3 | F16: =SUMIF(Orçamento!$R$20:$R$284,'Parc Maior Relev'!D16,Orçamento!$T$20:$T$284) -> 0 | G16: =F16*0.5 -> 0
A17: =IF(G17>0,"F","") ->  | B17: f. | C17: INSTALAÇÕES ELÉTRICAS | D17: INSTALAÇÕES ELÉTRICAS | E17: KVA | F17: =SUMIF(Orçamento!$R$20:$R$284,'Parc Maior Relev'!D17,Orçamento!$T$20:$T$284) -> 0 | G17: =F17*0.5 -> 0
A18: =IF(G18>0,"F","") ->  | B18: o. | C18: COBERTURAS | D18: COBERTURA CERÂMICA | E18: M2 | F18: =SUMIF(Orçamento!$R$20:$R$284,'Parc Maior Relev'!D18,Orçamento!$T$20:$T$284) -> 0 | G18: 0
B19: o. | C19: COBERTURAS | D19: COBERTURA COM TELHA METÁLICA | E19: M2 | F19: =SUMIF(Orçamento!$R$20:$R$284,'Parc Maior Relev'!D19,Orçamento!$T$20:$T$284) -> 0 | G19: 0
B20: s. | C20: REVESTIMENTO DE PAREDE | D20: CHAPISCO | E20: M2 | F20: =SUMIF(Orçamento!$R$20:$R$284,'Parc Maior Relev'!D20,Orçamento!$T$20:$T$284) -> 0 | G20: 0
A21: F | B21: s. | C21: REVESTIMENTO DE PAREDE | D21: REBOCO | E21: M2 | F21: 379.28 | G21: 189.64
B22: s. | C22: REVESTIMENTO DE PAREDE | D22: REVESTIMENTO CERÂMICO | E22: M2 | F22: =SUMIF(Orçamento!$R$20:$R$284,'Parc Maior Relev'!D22,Orçamento!$T$20:$T$284) -> 0 | G22: 0
B23: t. | C23: FORROS | D23: FORRO DE GESSO | E23: M2 | F23: =SUMIF(Orçamento!$R$20:$R$284,'Parc Maior Relev'!D23,Orçamento!$T$20:$T$284) -> 0 | G23: 0
B24: t. | C24: FORROS | D24: FORRO DE PVC | E24: M2 | F24: =SUMIF(Orçamento!$R$20:$R$284,'Parc Maior Relev'!D24,Orçamento!$T$20:$T$284) -> 0 | G24: 0
B25: t. | C25: FORROS | D25: FORRO DE GESSO ACARTONADO | E25: M2 | F25: =SUMIF(Orçamento!$R$20:$R$284,'Parc Maior Relev'!D25,Orçamento!$T$20:$T$284) -> 0 | G25: 0
B26: u. | C26: REVESTIMENTO DE PISO | D26: PISO DE GRANITINA | E26: M2 | F26: =SUMIF(Orçamento!$R$20:$R$284,'Parc Maior Relev'!D26,Orçamento!$T$20:$T$284) -> 0 | G26: 0
B27: u. | C27: REVESTIMENTO DE PISO | D27: PISO LAMINADO | E27: M2 | F27: =SUMIF(Orçamento!$R$20:$R$284,'Parc Maior Relev'!D27,Orçamento!$T$20:$T$284) -> 0 | G27: 0
B28: u. | C28: REVESTIMENTO DE PISO | D28: PISO DE CONCRETO DESEMPENADO | E28: M2 | F28: =SUMIF(Orçamento!$R$20:$R$284,'Parc Maior Relev'!D28,Orçamento!$T$20:$T$284) -> 0 | G28: 0
B29: u. | C29: REVESTIMENTO DE PISO | D29: PISO CERÂMICO | E29: M2 | F29: =SUMIF(Orçamento!$R$20:$R$284,'Parc Maior Relev'!D29,Orçamento!$T$20:$T$284) -> 0 | G29: 0
B30: y. | C30: PINTURA | D30: PINTURA | E30: M2 | F30: =SUMIF(Orçamento!$R$20:$R$284,'Parc Maior Relev'!D30,Orçamento!$T$20:$T$284) -> 0 | G30: 0
A31: F
A32: F | B32: (*) Para os fins do inciso I dp § 1º do Art. 30 da Lei Federal 8.666/93, são consideradas parcelas de maior relevância técnica as execuções apresentadas
A33: F

Sheet Composições
A4: UNIDADE ESCOLAR | H4: CÓDIGO INEP
A5: =Orçamento!$O$4 -> COORDENAÇÃO REGIONAL DE EDUCAÇÃO DE ITAPACI | H5: =Orçamento!$X$4 -> 0
A7: OBRA | H7: CIDADE
A8: =Orçamento!$O$7 -> CONSTRUÇÃO | H8: =Orçamento!$X$7 -> ITAPACI
A10: CRE | D10: ENDEREÇO | H10: REFERÊNCIA AGETOP
A11: =Orçamento!$O$10 -> ITAPACI | D11: =Orçamento!$R$10 -> AVENIDA DONA LÚCIA LOURENÇONI, 156, CENTRO | H11: =Orçamento!$S$10 -> ABR/19 | I11: =Orçamento!$T$10 -> DESONERADA
A13: DATA | D13: ÁREA TOTAL CONSTRUÍDA (M²) | H13: REFERÊNCIA SINAPI
A14: =Orçamento!$S$7 -> 2020-07-07 | D14: =Orçamento!$X$13 -> 100.68 | H14: =Orçamento!$X$10 -> ABR/20 | I14: =Orçamento!$Y$10 -> DESONERADA
A16: COMPOSIÇÕES DE CUSTOS UNITÁRIOS - SEE-GO
A17: 405 | B17: FONTE | C17: CÓDIGO | D17: DESCRIÇÃO | E17: UNIDADE | F17: COEFIC. | G17: CUSTO UNITÁRIO | I17: CUSTO TOTAL (A) + (B) + (C) + (D) + (E)
G18: DESONERADO | H18: NÃO DESONER. | I18: DESONERADO | J18: NÃO DESONER.
B19: COMPOSIÇÃO | C19: COMP 405_SEE | D19: SERRALHEIRO | E19: H | I19: 13.95 | J19: 16.16
B20: AGETOP_I | C20: 21 | D20: SERRALHEIRO | E20: h | F20: 1 | G20: 13.95 | H20: 16.16 | I20: 13.95 | J20: 16.16
B21: MÃO DE OBRA (B) - TOTAL | I21: 13.95 | J21: 16.16
B22: MATERIAL (C) - TOTAL | I22: 0 | J22: 0
A24: 415 | B24: FONTE | C24: CÓDIGO | D24: DESCRIÇÃO | E24: UNIDADE | F24: COEFIC. | G24: CUSTO UNITÁRIO | I24: CUSTO TOTAL (A) + (B) + (C) + (D) + (E)
G25: DESONERADO | H25: NÃO DESONER. | I25: DESONERADO | J25: NÃO DESONER.
B26: COMPOSIÇÃO | C26: COMP 415_SEE | D26: PEITORIL EM GRANITO CINZA, LARGURA VARIÁVEL E PINGADEIRA | E26: M2 | I26: 204.79 | J26: 207.58
B27: AGETOP_I | C27: 28 | D27: AZULEJISTA | E27: h | F27: 0.6691 | G27: 13.95 | H27: 16.16 | I27: 9.33 | J27: 10.81
B28: AGETOP_I | C28: 5 | D28: SERVENTE | E28: h | F28: 0.9388 | G28: 8.75 | H28: 10.14 | I28: 8.21 | J28: 9.52
B29: MÃO DE OBRA (B) - TOTAL | I29: 17.54 | J29: 20.33
B30: AGETOP_I | C30: 1421 | D30: GRANITO POLIDO P/BANCADA 2 CM | E30: m2 | F30: 1 | G30: 180 | H30: 180 | I30: 180 | J30: 180
B31: AGETOP_I | C31: 1215 | D31: CIMENTO PORTLAND C.P. 32 | E31: Kg | F31: 10.34 | G31: 0.39 | H31: 0.39 | I31: 4.03 | J31: 4.03
B32: AGETOP_I | C32: 2690 | D32: ARGAMASSA DE REJUNTAMENTO | E32: Kg | F32: 0.32 | G32: 3.54 | H32: 3.54 | I32: 1.13 | J32: 1.13
B33: AGETOP_I | C33: 104 | D33: AREIA MEDIA | E33: m3 | F33: 0.0252 | G33: 82.85 | H33: 82.85 | I33: 2.09 | J33: 2.09
B34: MATERIAL (C) - TOTAL | I34: 187.25 | J34: 187.25
A36: 24 | B36: FONTE | C36: CÓDIGO | D36: DESCRIÇÃO | E36: UNIDADE | F36: COEFIC. | G36: CUSTO UNITÁRIO | I36: CUSTO TOTAL (A) + (B) + (C) + (D) + (E)
G37: DESONERADO | H37: NÃO DESONER. | I37: DESONERADO | J37: NÃO DESONER.
B38: COMPOSIÇÃO | C38: COMP 024_SEE | D38: SINALIZADOR FOTOLUMINESCENTE PARA EXTINTOR | E38: UN | G38: - | H38: - | I38: 25.32 | J38: 25.44
B39: AGETOP_I | C39: 5 | D39: SERVENTE | E39: h | F39: 0.09 | G39: 8.75 | H39: 10.14 | I39: 0.79 | J39: 0.91
B40: MÃO DE OBRA (B) - TOTAL | I40: 0.79 | J40: 0.91
B41: AGETOP_I | C41: 3070 | D41: BUCHA DE NYLON S-6 | E41: un | F41: 2 | G41: 0.04 | H41: 0.04 | I41: 0.08 | J41: 0.08
B42: AGETOP_I | C42: 3393 | D42: PARAFUSO P/BUCHA S-6 | E42: un | F42: 2 | G42: 0.08 | H42: 0.08 | I42: 0.16 | J42: 0.16
B43: SINAPI_I | C43: 37556 | D43: PLACA DE SINALIZACAO DE SEGURANCA CONTRA INCENDIO, FOTOLUMINESCENTE, QUADRADA, *20 X 20* CM, EM PVC *2* MM ANTI-CHAMAS (SIMBOLOS, CORES E PICTOGRAMAS CONFORME NBR 13434) | E43: UN | F43: 1 | G43: 24.29 | H43: 24.29 | I43: 24.29 | J43: 24.29
B44: MATERIAL (C) - TOTAL | I44: 24.53 | J44: 24.53
A46: 25 | B46: FONTE | C46: CÓDIGO | D46: DESCRIÇÃO | E46: UNIDADE | F46: COEFIC. | G46: CUSTO UNITÁRIO | I46: CUSTO TOTAL (A) + (B) + (C) + (D) + (E)
G47: DESONERADO | H47: NÃO DESONER. | I47: DESONERADO | J47: NÃO DESONER.
B48: COMPOSIÇÃO | C48: COMP 025_SEE | D48: SINALIZADOR FOTOLUMINESCENTE DE EMERGÊNCIA | E48: UN | G48: - | H48: - | I48: 25.32 | J48: 25.44
B49: AGETOP_I | C49: 5 | D49: SERVENTE | E49: h | F49: 0.09 | G49: 8.75 | H49: 10.14 | I49: 0.79 | J49: 0.91
B50: MÃO DE OBRA (B) - TOTAL | I50: 0.79 | J50: 0.91
B51: AGETOP_I | C51: 3070 | D51: BUCHA DE NYLON S-6 | E51: un | F51: 2 | G51: 0.04 | H51: 0.04 | I51: 0.08 | J51: 0.08
B52: AGETOP_I | C52: 3393 | D52: PARAFUSO P/BUCHA S-6 | E52: un | F52: 2 | G52: 0.08 | H52: 0.08 | I52: 0.16 | J52: 0.16
B53: SINAPI_I | C53: 37556 | D53: PLACA DE SINALIZACAO DE SEGURANCA CONTRA INCENDIO, FOTOLUMINESCENTE, QUADRADA, *20 X 20* CM, EM PVC *2* MM ANTI-CHAMAS (SIMBOLOS, CORES E PICTOGRAMAS CONFORME NBR 13434) | E53: UN | F53: 1 | G53: 24.29 | H53: 24.29 | I53: 24.29 | J53: 24.29
B54: MATERIAL (C) - TOTAL | I54: 24.53 | J54: 24.53
A56: 277 | B56: FONTE | C56: CÓDIGO | D56: DESCRIÇÃO | E56: UNIDADE | F56: COEFIC. | G56: CUSTO UNITÁRIO | I56: CUSTO TOTAL (A) + (B) + (C) + (D) + (E)
G57: DESONERADO | H57: NÃO DESONER. | I57: DESONERADO | J57: NÃO DESONER.
B58: COMPOSIÇÃO | C58: COMP 277_SEE | D58: MARCAÇÃO NO PISO - 1X1 M PARA EXTINTOR | E58: M2 | I58: 29.69 | J58: 29.76
B59: AGETOP_I | C59: 5 | D59: SERVENTE | E59: h | F59: 0.0333 | G59: 8.75 | H59: 10.14 | I59: 0.29 | J59: 0.34
B60: MÃO DE OBRA (B) - TOTAL | I60: 0.29 | J60: 0.34
B61: SINAPI_I | C61: 5318 | D61: SOLVENTE DILUENTE A BASE DE AGUARRAS | E61: L | F61: 0.13 | G61: 11.98 | H61: 11.98 | I61: 1.56 | J61: 1.56
B62: SINAPI | C62: 5824 | D62: CAMINHÃO TOCO, PBT 16.000 KG, CARGA ÚTIL MÁX. 10.685 KG, DIST. ENTRE EIXOS 4,8 M, POTÊNCIA 189 CV, INCLUSIVE CARROCERIA FIXA ABERTA DE MADEIRA P/ TRANSPORTE GERAL DE CARGA SECA, DIMEN. APROX. 2,5 X 7,00 X 0,50 M - CHP DIURNO. AF_06/2014 | E62: CHP | F62: 0.0033 | G62: 115.5 | H62: 118.69 | I62: 0.38 | J62: 0.39
B63: SINAPI_I | C63: 7343 | D63: TINTA A BASE DE RESINA ACRILICA, PARA SINALIZACAO HORIZONTAL VIARIA (NBR 11862) | E63: L | F63: 0.6 | G63: 12.82 | H63: 12.82 | I63: 7.69 | J63: 7.69
B64: SINAPI_I | C64: 7348 | D64: TINTA ACRILICA PREMIUM PARA PISO | E64: L | F64: 0.03 | G64: 13.96 | H64: 13.96 | I64: 0.42 | J64: 0.42
B65: SINAPI_I | C65: 25972 | D65: MICROESFERAS DE VIDRO PARA SINALIZACAO HORIZONTAL VIARIA, TIPO I-B (PREMIX) - NBR 16184 | E65: KG | F65: 2.14 | G65: 8.88 | H65: 8.88 | I65: 19 | J65: 19
B66: SINAPI | C66: 95133 | D66: MÁQUINA DEMARCADORA DE FAIXA DE TRÁFEGO À FRIO, AUTOPROPELIDA, POTÊNCIA 38 HP - CHP DIURNO. AF_07/2016 | E66: CHP | F66: 0.0033 | G66: 105.93 | H66: 109.48 | I66: 0.35 | J66: 0.36
B67: MATERIAL (C) - TOTAL | I67: 29.4 | J67: 29.42
A69: 201 | B69: FONTE | C69: CÓDIGO | D69: DESCRIÇÃO | E69: UNIDADE | F69: COEFIC. | G69: CUSTO UNITÁRIO | I69: CUSTO TOTAL (A) + (B) + (C) + (D) + (E)
G70: DESONERADO | H70: NÃO DESONER. | I70: DESONERADO | J70: NÃO DESONER.
B71: COMPOSIÇÃO | C71: COMP 201_SEE | D71: ESTACA A TRADO DIAM.50 CM S/FERRO | E71: M | I71: 59.17 | J71: 64.55
B72: AGETOP_I | C72: 5 | D72: SERVENTE | E72: h | F72: 3.0298 | G72: 8.75 | H72: 10.14 | I72: 26.51 | J72: 30.72
B73: AGETOP_I | C73: 4 | D73: PEDREIRO | E73: h | F73: 0.3928 | G73: 13.95 | H73: 16.16 | I73: 5.48 | J73: 6.35
B74: AGETOP_I | C74: 32 | D74: OPERADOR DE BETONEIRA | E74: h | F74: 0.18 | G74: 10.51 | H74: 12.18 | I74: 1.89 | J74: 2.19
B75: MÃO DE OBRA (B) - TOTAL | I75: 33.88 | J75: 39.26
B76: AGETOP_I | C76: 1215 | D76: CIMENTO PORTLAND C.P. 32 | E76: Kg | F76: 27.6924 | G76: 0.39 | H76: 0.39 | I76: 10.8 | J76: 10.8
B77: AGETOP_I | C77: 2497 | D77: BRITA No.02 | E77: m3 | F77: 0.041 | G77: 74.9 | H77: 74.9 | I77: 3.07 | J77: 3.07
B78: AGETOP_I | C78: 2386 | D78: BRITA No. 01 | E78: m3 | F78: 0.041 | G78: 85.36 | H78: 85.36 | I78: 3.5 | J78: 3.5
B79: AGETOP_I | C79: 2804 | D79: AREIA GROSSA | E79: m3 | F79: 0.088 | G79: 90 | H79: 90 | I79: 7.92 | J79: 7.92
B80: MATERIAL (C) - TOTAL | I80: 25.29 | J80: 25.29
A82: 382 | B82: FONTE | C82: CÓDIGO | D82: DESCRIÇÃO | E82: UNIDADE | F82: COEFIC. | G82: CUSTO UNITÁRIO | I82: CUSTO TOTAL (A) + (B) + (C) + (D) + (E)
G83: DESONERADO | H83: NÃO DESONER. | I83: DESONERADO | J83: NÃO DESONER.
B84: COMPOSIÇÃO | C84: COMP 382_SEE | D84: TE DE REDUCAO DE FERRO GALVANIZADO, COM ROSCA BSP, DE 3/4" X 1/2" | E84: UN | I84: 24.25 | J84: 26.43
B85: AGETOP_I | C85: 8 | D85: AJUDANTE | E85: h | F85: 0.6 | G85: 8.75 | H85: 10.14 | I85: 5.25 | J85: 6.08
B86: AGETOP_I | C86: 11 | D86: ENCANADOR | E86: h | F86: 0.6105 | G86: 13.95 | H86: 16.16 | I86: 8.52 | J86: 9.87
B87: MÃO DE OBRA (B) - TOTAL | I87: 13.77 | J87: 15.95
B88: SINAPI_I | C88: 3146 | D88: FITA VEDA ROSCA EM ROLOS DE 18 MM X 10 M (L X C) | E88: UN | F88: 0.120754717 | G88: 3.4 | H88: 3.4 | I88: 0.41 | J88: 0.41
B89: SINAPI_I | C89: 6302 | D89: TE DE REDUCAO DE FERRO GALVANIZADO, COM ROSCA BSP, DE 3/4" X 1/2" | E89: UN | F89: 1 | G89: 10.07 | H89: 10.07 | I89: 10.07 | J89: 10.07
B90: MATERIAL (C) - TOTAL | I90: 10.48 | J90: 10.48
A92: 383 | B92: FONTE | C92: CÓDIGO | D92: DESCRIÇÃO | E92: UNIDADE | F92: COEFIC. | G92: CUSTO UNITÁRIO | I92: CUSTO TOTAL (A) + (B) + (C) + (D) + (E)
G93: DESONERADO | H93: NÃO DESONER. | I93: DESONERADO | J93: NÃO DESONER.
B94: COMPOSIÇÃO | C94: COMP 383_SEE | D94: BUCHA DE REDUCAO DE FERRO GALVANIZADO, COM ROSCA BSP, DE 1/2" X 1/4" | E94: UN | I94: 7.68 | J94: 8.26
B95: AGETOP_I | C95: 8 | D95: AJUDANTE | E95: h | F95: 0.16 | G95: 8.75 | H95: 10.14 | I95: 1.4 | J95: 1.62
B96: AGETOP_I | C96: 11 | D96: ENCANADOR | E96: h | F96: 0.16 | G96: 13.95 | H96: 16.16 | I96: 2.23 | J96: 2.59
B97: MÃO DE OBRA (B) - TOTAL | I97: 3.63 | J97: 4.21
B98: AGETOP_I | C98: H689 | D98: FITA VEDAROSCA 12 MM | E98: m | F98: 1.2 | G98: 0.28 | H98: 0.28 | I98: 0.34 | J98: 0.34
B99: SINAPI_I | C99: 770 | D99: BUCHA DE REDUCAO DE FERRO GALVANIZADO, COM ROSCA BSP, DE 1/2" X 1/4" | E99: UN | F99: 1 | G99: 3.71 | H99: 3.71 | I99: 3.71 | J99: 3.71
B100: MATERIAL (C) - TOTAL | I100: 4.05 | J100: 4.05
A102: 212 | B102: FONTE | C102: CÓDIGO | D102: DESCRIÇÃO | E102: UNIDADE | F102: COEFIC. | G102: CUSTO UNITÁRIO | I102: CUSTO TOTAL (A) + (B) + (C) + (D) + (E)
G103: DESONERADO | H103: NÃO DESONER. | I103: DESONERADO | J103: NÃO DESONER.
B104: COMPOSIÇÃO | C104: COMP 212_SEE | D104: NIPLE DE REDUÇÃO 1/2" X 1/4" BSP | E104: UN | I104: 9.68 | J104: 10.26
B105: AGETOP_I | C105: 8 | D105: AJUDANTE | E105: h | F105: 0.16 | G105: 8.75 | H105: 10.14 | I105: 1.4 | J105: 1.62
B106: AGETOP_I | C106: 11 | D106: ENCANADOR | E106: h | F106: 0.16 | G106: 13.95 | H106: 16.16 | I106: 2.23 | J106: 2.59
B107: MÃO DE OBRA (B) - TOTAL | I107: 3.63 | J107: 4.21
B108: COTAÇÃO | C108: COT 103_SEE | D108: NIPLE DE REDUÇÃO 1/2" X 1/4" BSP | E108: UN | F108: 1 | G108: 6.053333333 | H108: 6.053333333 | I108: 6.05 | J108: 6.05
B109: MATERIAL (C) - TOTAL | I109: 6.05 | J109: 6.05
A111: 213 | B111: FONTE | C111: CÓDIGO | D111: DESCRIÇÃO | E111: UNIDADE | F111: COEFIC. | G111: CUSTO UNITÁRIO | I111: CUSTO TOTAL (A) + (B) + (C) + (D) + (E)
G112: DESONERADO | H112: NÃO DESONER. | I112: DESONERADO | J112: NÃO DESONER.
B113: COMPOSIÇÃO | C113: COMP 213_SEE | D113: NIPLE DE REDUÇÃO 3/4" X 1/2" BSP | E113: UN | I113: 13.34 | J113: 13.92
B114: AGETOP_I | C114: 8 | D114: AJUDANTE | E114: h | F114: 0.16 | G114: 8.75 | H114: 10.14 | I114: 1.4 | J114: 1.62
B115: AGETOP_I | C115: 11 | D115: ENCANADOR | E115: h | F115: 0.16 | G115: 13.95 | H115: 16.16 | I115: 2.23 | J115: 2.59
B116: MÃO DE OBRA (B) - TOTAL | I116: 3.63 | J116: 4.21
B117: COTAÇÃO | C117: COT 104_SEE | D117: NIPLE DE REDUÇÃO 3/4" X 1/2" BSP | E117: UN | F117: 1 | G117: 9.71 | H117: 9.71 | I117: 9.71 | J117: 9.71
B118: MATERIAL (C) - TOTAL | I118: 9.71 | J118: 9.71
A120: 237 | B120: FONTE | C120: CÓDIGO | D120: DESCRIÇÃO | E120: UNIDADE | F120: COEFIC. | G120: CUSTO UNITÁRIO | I120: CUSTO TOTAL (A) + (B) + (C) + (D) + (E)
G121: DESONERADO | H121: NÃO DESONER. | I121: DESONERADO | J121: NÃO DESONER.
B122: COMPOSIÇÃO | C122: COMP 237_SEE | D122: FITA ANTICORROSIVA | E122: M | I122: 11.16 | J122: 11.88
B123: AGETOP_I | C123: 8 | D123: AJUDANTE | E123: h | F123: 0.2 | G123: 8.75 | H123: 10.14 | I123: 1.75 | J123: 2.03
B124: AGETOP_I | C124: 12 | D124: ELETRICISTA | E124: h | F124: 0.2 | G124: 13.95 | H124: 16.16 | I124: 2.79 | J124: 3.23
B125: MÃO DE OBRA (B) - TOTAL | I125: 4.54 | J125: 5.26
B126: SINAPI_I | C126: 39634 | D126: FITA ADESIVA ANTICORROSIVA DE PVC FLEXIVEL, COR PRETA, PARA PROTECAO TUBULACAO, 50 MM X 30 M (L X C), E= *0,25* MM | E126: M | F126: 1 | G126: 6.62 | H126: 6.62 | I126: 6.62 | J126: 6.62
B127: MATERIAL (C) - TOTAL | I127: 6.62 | J127: 6.62
A129: 542 | B129: FONTE | C129: CÓDIGO | D129: DESCRIÇÃO | E129: UNIDADE | F129: COEFIC. | G129: CUSTO UNITÁRIO | I129: CUSTO TOTAL (A) + (B) + (C) + (D) + (E)
G130: DESONERADO | H130: NÃO DESONER. | I130: DESONERADO | J130: NÃO DESONER.
B131: COMPOSIÇÃO | C131: COMP 542_SEE | D131: VÁLVULA UGV 3/4" (S) LATÃO | E131: UN | I131: 25.65 | J131: 27.2
B132: AGETOP_I | C132: 8 | D132: AJUDANTE | E132: h | F132: 0.432 | G132: 8.75 | H132: 10.14 | I132: 3.78 | J132: 4.38
B133: AGETOP_I | C133: 11 | D133: ENCANADOR | E133: h | F133: 0.432 | G133: 13.95 | H133: 16.16 | I133: 6.03 | J133: 6.98
B134: MÃO DE OBRA (B) - TOTAL | I134: 9.81 | J134: 11.36
B135: COTAÇÃO | C135: COT 281_SEE | D135: VÁLVULA UGV 3/4" (S) LATÃO | E135: UN | F135: 1 | G135: 15.83666667 | H135: 15.83666667 | I135: 15.84 | J135: 15.84
B136: MATERIAL (C) - TOTAL | I136: 15.84 | J136: 15.84
A138: 543 | B138: FONTE | C138: CÓDIGO | D138: DESCRIÇÃO | E138: UNIDADE | F138: COEFIC. | G138: CUSTO UNITÁRIO | I138: CUSTO TOTAL (A) + (B) + (C) + (D) + (E)
G139: DESONERADO | H139: NÃO DESONER. | I139: DESONERADO | J139: NÃO DESONER.
B140: COMPOSIÇÃO | C140: COMP 543_SEE | D140: VÁLVULA UGV 1/2" (S) LATÃO | E140: UN | I140: 24.98 | J140: 26.53
B141: AGETOP_I | C141: 8 | D141: AJUDANTE | E141: h | F141: 0.432 | G141: 8.75 | H141: 10.14 | I141: 3.78 | J141: 4.38
B142: AGETOP_I | C142: 11 | D142: ENCANADOR | E142: h | F142: 0.432 | G142: 13.95 | H142: 16.16 | I142: 6.03 | J142: 6.98
B143: MÃO DE OBRA (B) - TOTAL | I143: 9.81 | J143: 11.36
B144: COTAÇÃO | C144: COT 282_SEE | D144: VÁLVULA UGV 1/2" (S) LATÃO | E144: UN | F144: 1 | G144: 15.16666667 | H144: 15.16666667 | I144: 15.17 | J144: 15.17
B145: MATERIAL (C) - TOTAL | I145: 15.17 | J145: 15.17
A147: 211 | B147: FONTE | C147: CÓDIGO | D147: DESCRIÇÃO | E147: UNIDADE | F147: COEFIC. | G147: CUSTO UNITÁRIO | I147: CUSTO TOTAL (A) + (B) + (C) + (D) + (E)
G148: DESONERADO | H148: NÃO DESONER. | I148: DESONERADO | J148: NÃO DESONER.
B149: COMPOSIÇÃO | C149: COMP 211_SEE | D149: REGULADOR DE 2º ESTÁGIO 5KG/H | E149: UN | I149: 86.72 | J149: 90.86
B150: AGETOP_I | C150: 8 | D150: AJUDANTE | E150: h | F150: 1.15 | G150: 8.75 | H150: 10.14 | I150: 10.06 | J150: 11.66
B151: AGETOP_I | C151: 11 | D151: ENCANADOR | E151: h | F151: 1.15 | G151: 13.95 | H151: 16.16 | I151: 16.04 | J151: 18.58
B152: MÃO DE OBRA (B) - TOTAL | I152: 26.1 | J152: 30.24
B153: COTAÇÃO | C153: COT 102_SEE | D153: REGULADOR DE 2º ESTÁGIO 5KG/H | E153: UN | F153: 1 | G153: 59.83333333 | H153: 59.83333333 | I153: 59.83 | J153: 59.83
B154: AGETOP_I | C154: H689 | D154: FITA VEDAROSCA 12 MM | E154: m | F154: 2.82 | G154: 0.28 | H154: 0.28 | I154: 0.79 | J154: 0.79
B155: MATERIAL (C) - TOTAL | I155: 60.62 | J155: 60.62
A157: 210 | B157: FONTE | C157: CÓDIGO | D157: DESCRIÇÃO | E157: UNIDADE | F157: COEFIC. | G157: CUSTO UNITÁRIO | I157: CUSTO TOTAL (A) + (B) + (C) + (D) + (E)
G158: DESONERADO | H158: NÃO DESONER. | I158: DESONERADO | J158: NÃO DESONER.
B159: COMPOSIÇÃO | C159: COMP 210_SEE | D159: REGULADOR DE 1º ESTÁGIO 60KG/H MODELO AP-40 COM MANÔMETRO | E159: UN | I159: 232.47 | J159: 236.61
B160: AGETOP_I | C160: 8 | D160: AJUDANTE | E160: h | F160: 1.15 | G160: 8.75 | H160: 10.14 | I160: 10.06 | J160: 11.66
B161: AGETOP_I | C161: 11 | D161: ENCANADOR | E161: h | F161: 1.15 | G161: 13.95 | H161: 16.16 | I161: 16.04 | J161: 18.58
B162: MÃO DE OBRA (B) - TOTAL | I162: 26.1 | J162: 30.24
B163: COTAÇÃO | C163: COT 101_SEE | D163: REGULADOR DE 1º ESTÁGIO 60KG/H MODELO AP-40 COM MANÔMETRO | E163: UN | F163: 1 | G163: 205.5766667 | H163: 205.5766667 | I163: 205.58 | J163: 205.58
B164: AGETOP_I | C164: H689 | D164: FITA VEDAROSCA 12 MM | E164: m | F164: 2.82 | G164: 0.28 | H164: 0.28 | I164: 0.79 | J164: 0.79
B165: MATERIAL (C) - TOTAL | I165: 206.37 | J165: 206.37
A167: 235 | B167: FONTE | C167: CÓDIGO | D167: DESCRIÇÃO | E167: UNIDADE | F167: COEFIC. | G167: CUSTO UNITÁRIO | I167: CUSTO TOTAL (A) + (B) + (C) + (D) + (E)
G168: DESONERADO | H168: NÃO DESONER. | I168: DESONERADO | J168: NÃO DESONER.
B169: COMPOSIÇÃO | C169: COMP 235_SEE | D169: PLACA DE SINALIZAÇÃO EM PVC COD 01 - (300X300) PROIBIDO FUMAR | E169: UN | I169: 25.32 | J169: 25.44
B170: AGETOP_I | C170: 5 | D170: SERVENTE | E170: h | F170: 0.09 | G170: 8.75 | H170: 10.14 | I170: 0.79 | J170: 0.91
B171: MÃO DE OBRA (B) - TOTAL | I171: 0.79 | J171: 0.91
B172: AGETOP_I | C172: 3070 | D172: BUCHA DE NYLON S-6 | E172: un | F172: 2 | G172: 0.04 | H172: 0.04 | I172: 0.08 | J172: 0.08
B173: AGETOP_I | C173: 3393 | D173: PARAFUSO P/BUCHA S-6 | E173: un | F173: 2 | G173: 0.08 | H173: 0.08 | I173: 0.16 | J173: 0.16
B174: SINAPI_I | C174: 37556 | D174: PLACA DE SINALIZACAO DE SEGURANCA CONTRA INCENDIO, FOTOLUMINESCENTE, QUADRADA, *20 X 20* CM, EM PVC *2* MM ANTI-CHAMAS (SIMBOLOS, CORES E PICTOGRAMAS CONFORME NBR 13434) | E174: UN | F174: 1 | G174: 24.29 | H174: 24.29 | I174: 24.29 | J174: 24.29
B175: MATERIAL (C) - TOTAL | I175: 24.53 | J175: 24.53
A177: 236 | B177: FONTE | C177: CÓDIGO | D177: DESCRIÇÃO | E177: UNIDADE | F177: COEFIC. | G177: CUSTO UNITÁRIO | I177: CUSTO TOTAL (A) + (B) + (C) + (D) + (E)
G178: DESONERADO | H178: NÃO DESONER. | I178: DESONERADO | J178: NÃO DESONER.
B179: COMPOSIÇÃO | C179: COMP 236_SEE | D179: PLACA DE SINALIZAÇÃO EM PVC COD 06 - (300X300) PERIGO INFLAMÁVEL | E179: UN | I179: 25.32 | J179: 25.44
B180: AGETOP_I | C180: 5 | D180: SERVENTE | E180: h | F180: 0.09 | G180: 8.75 | H180: 10.14 | I180: 0.79 | J180: 0.91
B181: MÃO DE OBRA (B) - TOTAL | I181: 0.79 | J181: 0.91
B182: AGETOP_I | C182: 3070 | D182: BUCHA DE NYLON S-6 | E182: un | F182: 2 | G182: 0.04 | H182: 0.04 | I182: 0.08 | J182: 0.08
B183: AGETOP_I | C183: 3393 | D183: PARAFUSO P/BUCHA S-6 | E183: un | F183: 2 | G183: 0.08 | H183: 0.08 | I183: 0.16 | J183: 0.16
B184: SINAPI_I | C184: 37556 | D184: PLACA DE SINALIZACAO DE SEGURANCA CONTRA INCENDIO, FOTOLUMINESCENTE, QUADRADA, *20 X 20* CM, EM PVC *2* MM ANTI-CHAMAS (SIMBOLOS, CORES E PICTOGRAMAS CONFORME NBR 13434) | E184: UN | F184: 1 | G184: 24.29 | H184: 24.29 | I184: 24.29 | J184: 24.29
B185: MATERIAL (C) - TOTAL | I185: 24.53 | J185: 24.53
A187: 82 | B187: FONTE | C187: CÓDIGO | D187: DESCRIÇÃO | E187: UNIDADE | F187: COEFIC. | G187: CUSTO UNITÁRIO | I187: CUSTO TOTAL (A) + (B) + (C) + (D) + (E)
G188: DESONERADO | H188: NÃO DESONER. | I188: DESONERADO | J188: NÃO DESONER.
B189: COMPOSIÇÃO | C189: COMP 082_SEE | D189: CORRIMÃO PAREDE - SEDUC | E189: M | I189: 121.38 | J189: 125.41
B190: AGETOP_I | C190: 25 | D190: OFICIAL "B" | E190: h | F190: 1 | G190: 13.95 | H190: 16.16 | I190: 13.95 | J190: 16.16
B191: AGETOP_I | C191: 8 | D191: AJUDANTE | E191: h | F191: 1 | G191: 8.75 | H191: 10.14 | I191: 8.75 | J191: 10.14
B192: MÃO DE OBRA (B) - TOTAL | I192: 22.7 | J192: 26.3
B193: AGETOP_I | C193: 2376 | D193: TUBO INDUSTRIAL 2" CHAPA 13 | E193: Kg | F193: 5.5248 | G193: 5.23 | H193: 5.23 | I193: 28.89 | J193: 28.89
B194: AGETOP_I | C194: 2504 | D194: TUBO INDUSTRIAL D=25 MM CHAPA 13 | E194: Kg | F194: 1.1 | G194: 5.07 | H194: 5.07 | I194: 5.58 | J194: 5.58
B195: AGETOP_I | C195: 2417 | D195: MASSA PLASTICA | E195: Kg | F195: 0.2041 | G195: 10.58 | H195: 10.58 | I195: 2.16 | J195: 2.16
B196: AGETOP_I | C196: 2246 | D196: ELETRODO 2.5 OK | E196: Kg | F196: 0.1146 | G196: 8.7 | H196: 8.7 | I196: 1 | J196: 1
B197: AGETOP_I | C197: 1672 | D197: LIXA PARA FERRO ( NÚMERO 100 ) | E197: un | F197: 0.125 | G197: 2.12 | H197: 2.12 | I197: 0.27 | J197: 0.27
B198: AGETOP_I | C198: 1264 | D198: DISCO DE DESBASTE 7/8" P/ CONC./FERRO (1/4" X 7") | E198: un | F198: 0.025 | G198: 7 | H198: 7 | I198: 0.18 | J198: 0.18
B199: AGETOP_I | C199: 1334 | D199: DISCO DE CORTE DIAM. 5/8"- 10" | E199: un | F199: 0.1865 | G199: 5.5 | H199: 5.5 | I199: 1.03 | J199: 1.03
B200: AGETOP_I | C200: 2902 | D200: FABRICAÇÃO / MONTAGEM | E200: un | F200: 1 | G200: 50.44 | H200: 50.44 | I200: 50.44 | J200: 50.44
B201: AGETOP_I | C201: 2719 | D201: CHAPA PERFILADA 3/16" | E201: Kg | F201: 0.72 | G201: 5.04 | H201: 5.04 | I201: 3.63 | J201: 3.63
B202: AGETOP_I | C202: 2436 | D202: ACO CA-25 - 6,3 MM (1/4") - BARRA LISA A-36 | E202: Kg | F202: 0.25 | G202: 5.13 | H202: 5.13 | I202: 1.28 | J202: 1.28
B203: AGETOP | C203: 261602 | D203: PINT.ESMALTE/ESQUAD.FERRO C/FUNDO ANTICOR. | E203: m2 | F203: 0.3 | G203: 14.07 | H203: 15.51 | I203: 4.22 | J203: 4.65
B204: MATERIAL (C) - TOTAL | I204: 98.68 | J204: 99.11
A206: 83 | B206: FONTE | C206: CÓDIGO | D206: DESCRIÇÃO | E206: UNIDADE | F206: COEFIC. | G206: CUSTO UNITÁRIO | I206: CUSTO TOTAL (A) + (B) + (C) + (D) + (E)
G207: DESONERADO | H207: NÃO DESONER. | I207: DESONERADO | J207: NÃO DESONER.
B208: COMPOSIÇÃO | C208: COMP 083_SEE | D208: CORRIMÃO PISO - SEDUC | E208: M | I208: 143.18 | J208: 147.41
B209: AGETOP_I | C209: 25 | D209: OFICIAL "B" | E209: h | F209: 1 | G209: 13.95 | H209: 16.16 | I209: 13.95 | J209: 16.16
B210: AGETOP_I | C210: 8 | D210: AJUDANTE | E210: h | F210: 1 | G210: 8.75 | H210: 10.14 | I210: 8.75 | J210: 10.14
B211: MÃO DE OBRA (B) - TOTAL | I211: 22.7 | J211: 26.3
B212: AGETOP_I | C212: 2376 | D212: TUBO INDUSTRIAL 2" CHAPA 13 | E212: Kg | F212: 8.21975 | G212: 5.23 | H212: 5.23 | I212: 42.99 | J212: 42.99
B213: AGETOP_I | C213: 2504 | D213: TUBO INDUSTRIAL D=25 MM CHAPA 13 | E213: Kg | F213: 1.1 | G213: 5.07 | H213: 5.07 | I213: 5.58 | J213: 5.58
B214: AGETOP_I | C214: 2417 | D214: MASSA PLASTICA | E214: Kg | F214: 0.2041 | G214: 10.58 | H214: 10.58 | I214: 2.16 | J214: 2.16
B215: AGETOP_I | C215: 2246 | D215: ELETRODO 2.5 OK | E215: Kg | F215: 0.1146 | G215: 8.7 | H215: 8.7 | I215: 1 | J215: 1
B216: AGETOP_I | C216: 1672 | D216: LIXA PARA FERRO ( NÚMERO 100 ) | E216: un | F216: 0.125 | G216: 2.12 | H216: 2.12 | I216: 0.27 | J216: 0.27
B217: AGETOP_I | C217: 1264 | D217: DISCO DE DESBASTE 7/8" P/ CONC./FERRO (1/4" X 7") | E217: un | F217: 0.025 | G217: 7 | H217: 7 | I217: 0.18 | J217: 0.18
B218: AGETOP_I | C218: 1334 | D218: DISCO DE CORTE DIAM. 5/8"- 10" | E218: un | F218: 0.1865 | G218: 5.5 | H218: 5.5 | I218: 1.03 | J218: 1.03
B219: AGETOP_I | C219: 2902 | D219: FABRICAÇÃO / MONTAGEM | E219: un | F219: 1 | G219: 50.44 | H219: 50.44 | I219: 50.44 | J219: 50.44
B220: AGETOP_I | C220: 2150 | D220: CHAPA DE FERRO DOBRADA No.13 | E220: Kg | F220: 0.4352 | G220: 5.28 | H220: 5.28 | I220: 2.3 | J220: 2.3
B221: AGETOP_I | C221: 2719 | D221: CHAPA PERFILADA 3/16" | E221: Kg | F221: 1.1644 | G221: 5.04 | H221: 5.04 | I221: 5.87 | J221: 5.87
B222: AGETOP_I | C222: 2436 | D222: ACO CA-25 - 6,3 MM (1/4") - BARRA LISA A-36 | E222: Kg | F222: 0.4815 | G222: 5.13 | H222: 5.13 | I222: 2.47 | J222: 2.47
B223: AGETOP | C223: 261602 | D223: PINT.ESMALTE/ESQUAD.FERRO C/FUNDO ANTICOR. | E223: m2 | F223: 0.44 | G223: 14.07 | H223: 15.51 | I223: 6.19 | J223: 6.82
B224: MATERIAL (C) - TOTAL | I224: 120.48 | J224: 121.11
A226: 84 | B226: FONTE | C226: CÓDIGO | D226: DESCRIÇÃO | E226: UNIDADE | F226: COEFIC. | G226: CUSTO UNITÁRIO | I226: CUSTO TOTAL (A) + (B) + (C) + (D) + (E)
... 40 more rows
